Workbook

Sheet RoleConfig
A1: ID[csknu] | B1: name[ct] | C1: profession[csn] | D1: quality[csn] | E1: qualityType[cn] | F1: type[cn] | G1: HP[csn] | H1: attack[csn] | I1: spellAttack[csn] | J1: realAttack[csn] | K1: attackRange[cn] | L1: bullet[cn] | M1: bulletPos[cna] | N1: attackCD[cn] | O1: attackSpeed[csn] | P1: attackCrit[csn] | Q1: critNum[csn] | R1: defense[csn] | S1: spellDefense[csn] | T1: hurtFrame[cn] | U1: hit[csn] | V1: dodge[csn] | W1: moveSpeed[cn] | X1: skills[cna] | Y1: skillCDs[cna] | Z1: enterCDs[cna] | AA1: cost[cn] | AB1: lifeDuration[cn] | AC1: url[ct] | AD1: hitID[cn] | AE1: gameScale[cna] | AF1: uiScale[cn] | AG1: tips[ct] | AH1: sumcd[cn] | AI1: showSkillID[cn] | AJ1: describe[ct] | AK1: hplength[cn] | AL1: sound[ct]
A2: ID区间(0-10w) | B2: 名称 | C2: 职业类型 | D2: 品阶 | E2: 品质 | F2: 类型 | G2: 血量 | H2: 攻击力 | I2: 法术攻击力 | J2: 真实攻击力 | K2: 攻击范围 | L2: 子弹id | M2: 子弹偏移位置 | N2: 攻击cd | O2: 攻击速度‱(5000-50000) | P2: 攻击暴击率‱ | Q2: 暴击倍数‱ | R2: 防御力 | S2: 法术防御力 | T2: 伤害帧 | U2: 命中‱ | V2: 攻击闪避‱ | W2: 移动速度 | X2: 技能数组 | Y2: 技能cd数组 | Z2: 入场技能cd数组 | AA2: 召唤费用 | AB2: 生命时间 | AC2: 角色资源路径 | AD2: 击中特效ID | AE2: 游戏比例% | AF2: ui比例% | AG2: 突破描述ID | AH2: 召唤CD | AI2: 初始技能ID | AJ2: 角色描述ID | AK2: 血条长度 | AL2: 击中受击音效
A3: 10101 | B3: t2700 | C3: 1 | D3: 1 | E3: 1 | F3: 1 | G3: 490 | H3: 90 | I3: 0 | J3: 0 | K3: 100 | L3: 0 | M3: 0 | N3: 0.5 | O3: 10000 | P3: 300 | Q3: 15000 | R3: 30 | S3: 10 | T3: 0.33 | U3: 500 | V3: 0 | W3: 130 | X3: 101 | Y3: 15 | Z3: 5 | AA3: 3 | AB3: 0 | AC3: qiangbing | AD3: 11601 | AE3: 22^100 | AF3: 100 | AG3: 0 | AH3: 0.5 | AI3: 1000 | AJ3: t4500 | AK3: 100 | AL3: meleeHit | AM3: 枪兵
A4: 10102 | B4: t2700 | C4: 1 | D4: 2 | E4: 2 | F4: 1 | G4: =FLOOR(G3*1.2,1) -> 588 | H4: =FLOOR(H3*1.2,1) -> 108 | I4: 0 | J4: 0 | K4: 100 | L4: 0 | M4: 0 | N4: 0.5 | O4: 10000 | P4: 300 | Q4: 15000 | R4: =FLOOR(R3*1.2,1) -> 36 | S4: 12 | T4: 0.33 | U4: 500 | V4: 0 | W4: 130 | X4: 101 | Y4: 15 | Z4: 5 | AA4: 3 | AB4: 0 | AC4: qiangbing | AD4: 11601 | AE4: 22^100 | AF4: 100 | AG4: t6000 | AH4: 0.5 | AI4: 1000 | AJ4: t4500 | AK4: 100 | AL4: meleeHit
A5: 10103 | B5: t2700 | C5: 1 | D5: 3 | E5: 3 | F5: 1 | G5: 705 | H5: 129 | I5: 0 | J5: 0 | K5: 100 | L5: 0 | M5: 0 | N5: 0.5 | O5: 10000 | P5: 300 | Q5: 15000 | R5: 43 | S5: 14 | T5: 0.33 | U5: 500 | V5: 0 | W5: 130 | X5: 101 | Y5: 15 | Z5: 5 | AA5: 3 | AB5: 0 | AC5: qiangbing | AD5: 11601 | AE5: 22^100 | AF5: 100 | AG5: t6000 | AH5: 0.5 | AI5: 1000 | AJ5: t4500 | AK5: 100 | AL5: meleeHit
A6: 10104 | B6: t2700 | C6: 1 | D6: 4 | E6: 4 | F6: 1 | G6: =FLOOR(G5*1.54,1) -> 1085 | H6: =FLOOR(H5*1.4,1) -> 180 | I6: 0 | J6: 0 | K6: 100 | L6: 0 | M6: 0 | N6: 0.5 | O6: 10000 | P6: 300 | Q6: 15000 | R6: 51 | S6: 16 | T6: 0.33 | U6: 500 | V6: 0 | W6: 130 | X6: 101 | Y6: 15 | Z6: 5 | AA6: 3 | AB6: 0 | AC6: qiangbing | AD6: 11601 | AE6: 22^100 | AF6: 100 | AG6: t6129 | AH6: 0.5 | AI6: 1000 | AJ6: t4500 | AK6: 100 | AL6: meleeHit
A7: 10105 | B7: t2700 | C7: 1 | D7: 5 | E7: 4 | F7: 1 | G7: 1302 | H7: 216 | I7: 0 | J7: 0 | K7: 100 | L7: 0 | M7: 0 | N7: 0.5 | O7: 10000 | P7: 300 | Q7: 15000 | R7: 61 | S7: 18 | T7: 0.33 | U7: 500 | V7: 0 | W7: 130 | X7: 101 | Y7: 15 | Z7: 5 | AA7: 3 | AB7: 0 | AC7: qiangbing | AD7: 11601 | AE7: 22^100 | AF7: 100 | AG7: 0 | AH7: 0.5 | AI7: 1000 | AJ7: t4500 | AK7: 100 | AL7: meleeHit
A8: 10106 | B8: t2700 | C8: 1 | D8: 6 | E8: 4 | F8: 1 | G8: 1562 | H8: 259 | I8: 0 | J8: 0 | K8: 100 | L8: 0 | M8: 0 | N8: 0.5 | O8: 10000 | P8: 300 | Q8: 15000 | R8: 73 | S8: 20 | T8: 0.33 | U8: 500 | V8: 0 | W8: 130 | X8: 101 | Y8: 15 | Z8: 5 | AA8: 3 | AB8: 0 | AC8: qiangbing | AD8: 11601 | AE8: 22^100 | AF8: 100 | AG8: 0 | AH8: 0.5 | AI8: 1000 | AJ8: t4500 | AK8: 100 | AL8: meleeHit
A9: 10107 | B9: t2700 | C9: 1 | D9: 7 | E9: 5 | F9: 1 | G9: =FLOOR(G8*1.32,1) -> 2061 | H9: =FLOOR(H8*1.32,1) -> 341 | I9: 0 | J9: 0 | K9: 100 | L9: 0 | M9: 0 | N9: 0.5 | O9: 11000 | P9: 300 | Q9: 15000 | R9: 87 | S9: 22 | T9: 0.33 | U9: 500 | V9: 0 | W9: 130 | X9: 101 | Y9: 15 | Z9: 5 | AA9: 3 | AB9: 0 | AC9: qiangbing | AD9: 11601 | AE9: 22^100 | AF9: 100 | AG9: t6110 | AH9: 0.5 | AI9: 1000 | AJ9: t4500 | AK9: 100 | AL9: meleeHit
A10: 10108 | B10: t2700 | C10: 1 | D10: 8 | E10: 5 | F10: 1 | G10: 2473 | H10: 409 | I10: 0 | J10: 0 | K10: 100 | L10: 0 | M10: 0 | N10: 0.5 | O10: 11000 | P10: 300 | Q10: 15000 | R10: 104 | S10: 24 | T10: 0.33 | U10: 500 | V10: 0 | W10: 130 | X10: 101 | Y10: 15 | Z10: 5 | AA10: 3 | AB10: 0 | AC10: qiangbing | AD10: 11601 | AE10: 22^100 | AF10: 100 | AG10: 0 | AH10: 0.5 | AI10: 1000 | AJ10: t4500 | AK10: 100 | AL10: meleeHit
A11: 10109 | B11: t2700 | C11: 1 | D11: 9 | E11: 5 | F11: 1 | G11: 2967 | H11: 490 | I11: 0 | J11: 0 | K11: 100 | L11: 0 | M11: 0 | N11: 0.5 | O11: 11000 | P11: 300 | Q11: 15000 | R11: 124 | S11: 26 | T11: 0.33 | U11: 500 | V11: 0 | W11: 130 | X11: 101 | Y11: 15 | Z11: 5 | AA11: 3 | AB11: 0 | AC11: qiangbing | AD11: 11601 | AE11: 22^100 | AF11: 100 | AG11: 0 | AH11: 0.5 | AI11: 1000 | AJ11: t4500 | AK11: 100 | AL11: meleeHit
A12: 10110 | B12: t2700 | C12: 1 | D12: 10 | E12: 5 | F12: 1 | G12: 3560 | H12: 588 | I12: 0 | J12: 0 | K12: 100 | L12: 0 | M12: 0 | N12: 0.5 | O12: 11000 | P12: 300 | Q12: 15000 | R12: 148 | S12: 28 | T12: 0.33 | U12: 500 | V12: 0 | W12: 130 | X12: 101 | Y12: 15 | Z12: 5 | AA12: 3 | AB12: 0 | AC12: qiangbing | AD12: 11601 | AE12: 22^100 | AF12: 100 | AG12: 0 | AH12: 0.5 | AI12: 1000 | AJ12: t4500 | AK12: 100 | AL12: meleeHit
A13: 10111 | B13: t2700 | C13: 1 | D13: 11 | E13: 6 | F13: 1 | G13: =FLOOR(G12*1.32,1) -> 4699 | H13: =FLOOR(H12*1.32,1) -> 776 | I13: 0 | J13: 0 | K13: 100 | L13: 0 | M13: 0 | N13: 0.5 | O13: 11000 | P13: 300 | Q13: 15000 | R13: 177 | S13: 30 | T13: 0.33 | U13: 500 | V13: 0 | W13: 130 | X13: 101 | Y13: 15 | Z13: 5 | AA13: 3 | AB13: 0 | AC13: qiangbing | AD13: 11601 | AE13: 22^100 | AF13: 100 | AG13: t6007 | AH13: 0.5 | AI13: 1000 | AJ13: t4500 | AK13: 100 | AL13: meleeHit
A14: 10112 | B14: t2700 | C14: 1 | D14: 12 | E14: 6 | F14: 1 | G14: 5638 | H14: 931 | I14: 0 | J14: 0 | K14: 100 | L14: 0 | M14: 0 | N14: 0.5 | O14: 11000 | P14: 300 | Q14: 15000 | R14: 212 | S14: 32 | T14: 0.33 | U14: 500 | V14: 0 | W14: 130 | X14: 101 | Y14: 15 | Z14: 5 | AA14: 3 | AB14: 0 | AC14: qiangbing | AD14: 11601 | AE14: 22^100 | AF14: 100 | AG14: 0 | AH14: 0.5 | AI14: 1000 | AJ14: t4500 | AK14: 100 | AL14: meleeHit
A15: 10113 | B15: t2700 | C15: 1 | D15: 13 | E15: 6 | F15: 1 | G15: 6765 | H15: 1117 | I15: 0 | J15: 0 | K15: 100 | L15: 0 | M15: 0 | N15: 0.5 | O15: 11000 | P15: 300 | Q15: 15000 | R15: 254 | S15: 34 | T15: 0.33 | U15: 500 | V15: 0 | W15: 130 | X15: 101 | Y15: 15 | Z15: 5 | AA15: 3 | AB15: 0 | AC15: qiangbing | AD15: 11601 | AE15: 22^100 | AF15: 100 | AG15: 0 | AH15: 0.5 | AI15: 1000 | AJ15: t4500 | AK15: 100 | AL15: meleeHit
A16: 10114 | B16: t2700 | C16: 1 | D16: 14 | E16: 6 | F16: 1 | G16: 8118 | H16: 1340 | I16: 0 | J16: 0 | K16: 100 | L16: 0 | M16: 0 | N16: 0.5 | O16: 11000 | P16: 300 | Q16: 15000 | R16: 304 | S16: 36 | T16: 0.33 | U16: 500 | V16: 0 | W16: 130 | X16: 101 | Y16: 15 | Z16: 5 | AA16: 3 | AB16: 0 | AC16: qiangbing | AD16: 11601 | AE16: 22^100 | AF16: 100 | AG16: 0 | AH16: 0.5 | AI16: 1000 | AJ16: t4500 | AK16: 100 | AL16: meleeHit
A17: 10115 | B17: t2700 | C17: 1 | D17: 15 | E17: 6 | F17: 1 | G17: 9741 | H17: 1608 | I17: 0 | J17: 0 | K17: 100 | L17: 0 | M17: 0 | N17: 0.5 | O17: 11000 | P17: 300 | Q17: 15000 | R17: 364 | S17: 38 | T17: 0.33 | U17: 500 | V17: 0 | W17: 130 | X17: 101 | Y17: 15 | Z17: 5 | AA17: 3 | AB17: 0 | AC17: qiangbing | AD17: 11601 | AE17: 22^100 | AF17: 100 | AG17: 0 | AH17: 0.5 | AI17: 1000 | AJ17: t4500 | AK17: 100 | AL17: meleeHit
A18: 10116 | B18: t2700 | C18: 1 | D18: 16 | E18: 6 | F18: 1 | G18: 11689 | H18: 1929 | I18: 0 | J18: 0 | K18: 100 | L18: 0 | M18: 0 | N18: 0.5 | O18: 11000 | P18: 300 | Q18: 15000 | R18: 436 | S18: 40 | T18: 0.33 | U18: 500 | V18: 0 | W18: 130 | X18: 101 | Y18: 15 | Z18: 5 | AA18: 3 | AB18: 0 | AC18: qiangbing | AD18: 11601 | AE18: 22^100 | AF18: 100 | AG18: 0 | AH18: 0.5 | AI18: 1000 | AJ18: t4500 | AK18: 100 | AL18: meleeHit
A19: 10301 | B19: t2701 | C19: 4 | D19: 1 | E19: 1 | F19: 1 | G19: 210 | H19: 115 | I19: 0 | J19: 0 | K19: 450 | L19: 10301 | M19: 310^163 | N19: 0.8 | O19: 10000 | P19: 1000 | Q19: 15000 | R19: 15 | S19: 10 | T19: 0.3 | U19: 300 | V19: 0 | W19: 100 | X19: 202 | Y19: 0 | Z19: 0 | AA19: 3 | AB19: 0 | AC19: huoqiang | AD19: 0 | AE19: 19^100 | AF19: 80 | AG19: 0 | AH19: 1 | AI19: 1001 | AJ19: t4501 | AK19: 100 | AL19: gunHit | AM19: 火枪
A20: 10302 | B20: t2701 | C20: 4 | D20: 2 | E20: 2 | F20: 1 | G20: =FLOOR(G19*1.2,1) -> 252 | H20: =FLOOR(H19*1.2,1) -> 138 | I20: 0 | J20: 0 | K20: 450 | L20: 10301 | M20: 310^163 | N20: 0.8 | O20: 10000 | P20: 1000 | Q20: 15000 | R20: 18 | S20: 11 | T20: 0.3 | U20: 300 | V20: 0 | W20: 100 | X20: 202 | Y20: 0 | Z20: 0 | AA20: 3 | AB20: 0 | AC20: huoqiang | AD20: 0 | AE20: 19^100 | AF20: 80 | AG20: t6000 | AH20: 1 | AI20: 1001 | AJ20: t4501 | AK20: 100 | AL20: gunHit
A21: 10303 | B21: t2701 | C21: 4 | D21: 3 | E21: 3 | F21: 1 | G21: 302 | H21: 165 | I21: 0 | J21: 0 | K21: 450 | L21: 10301 | M21: 310^163 | N21: 0.8 | O21: 10000 | P21: 1000 | Q21: 15000 | R21: 21 | S21: 12 | T21: 0.3 | U21: 300 | V21: 0 | W21: 100 | X21: 202 | Y21: 0 | Z21: 0 | AA21: 3 | AB21: 0 | AC21: huoqiang | AD21: 0 | AE21: 19^100 | AF21: 80 | AG21: t6000 | AH21: 1 | AI21: 1001 | AJ21: t4501 | AK21: 100 | AL21: gunHit
A22: 10304 | B22: t2701 | C22: 4 | D22: 4 | E22: 4 | F22: 1 | G22: =FLOOR(G21*1.4,1) -> 422 | H22: =FLOOR(H21*1.4,1) -> 231 | I22: 0 | J22: 0 | K22: 450 | L22: 10301 | M22: 310^163 | N22: 0.8 | O22: 10000 | P22: 1000 | Q22: 15000 | R22: 25 | S22: 13 | T22: 0.3 | U22: 300 | V22: 0 | W22: 100 | X22: 201^202 | Y22: 15^0 | Z22: 5^0 | AA22: 3 | AB22: 0 | AC22: huoqiang | AD22: 0 | AE22: 19^100 | AF22: 80 | AG22: t6011 | AH22: 1 | AI22: 1001 | AJ22: t4501 | AK22: 100 | AL22: gunHit
A23: 10305 | B23: t2701 | C23: 4 | D23: 5 | E23: 4 | F23: 1 | G23: 506 | H23: 277 | I23: 0 | J23: 0 | K23: 450 | L23: 10301 | M23: 310^163 | N23: 0.8 | O23: 10000 | P23: 1000 | Q23: 15000 | R23: 30 | S23: 14 | T23: 0.3 | U23: 300 | V23: 0 | W23: 100 | X23: 201^202 | Y23: 15^0 | Z23: 5^0 | AA23: 3 | AB23: 0 | AC23: huoqiang | AD23: 0 | AE23: 19^100 | AF23: 80 | AG23: 0 | AH23: 1 | AI23: 1001 | AJ23: t4501 | AK23: 100 | AL23: gunHit
A24: 10306 | B24: t2701 | C24: 4 | D24: 6 | E24: 4 | F24: 1 | G24: 607 | H24: 332 | I24: 0 | J24: 0 | K24: 450 | L24: 10301 | M24: 310^163 | N24: 0.8 | O24: 10000 | P24: 1000 | Q24: 15000 | R24: 36 | S24: 15 | T24: 0.3 | U24: 300 | V24: 0 | W24: 100 | X24: 201^202 | Y24: 15^0 | Z24: 5^0 | AA24: 3 | AB24: 0 | AC24: huoqiang | AD24: 0 | AE24: 19^100 | AF24: 80 | AG24: 0 | AH24: 1 | AI24: 1001 | AJ24: t4501 | AK24: 100 | AL24: gunHit
A25: 10307 | B25: t2701 | C25: 4 | D25: 7 | E25: 5 | F25: 1 | G25: =FLOOR(G24*1.32,1) -> 801 | H25: =FLOOR(H24*1.32,1) -> 438 | I25: 0 | J25: 0 | K25: 550 | L25: 10301 | M25: 310^163 | N25: 0.8 | O25: 10000 | P25: 1000 | Q25: 15000 | R25: 43 | S25: 16 | T25: 0.3 | U25: 300 | V25: 0 | W25: 100 | X25: 201^202 | Y25: 15^0 | Z25: 5^0 | AA25: 3 | AB25: 0 | AC25: huoqiang | AD25: 0 | AE25: 19^100 | AF25: 80 | AG25: t6111 | AH25: 1 | AI25: 1001 | AJ25: t4501 | AK25: 100 | AL25: gunHit
A26: 10308 | B26: t2701 | C26: 4 | D26: 8 | E26: 5 | F26: 1 | G26: 961 | H26: 525 | I26: 0 | J26: 0 | K26: 550 | L26: 10301 | M26: 310^163 | N26: 0.8 | O26: 10000 | P26: 1000 | Q26: 15000 | R26: 51 | S26: 17 | T26: 0.3 | U26: 300 | V26: 0 | W26: 100 | X26: 201^202 | Y26: 15^0 | Z26: 5^0 | AA26: 3 | AB26: 0 | AC26: huoqiang | AD26: 0 | AE26: 19^100 | AF26: 80 | AG26: 0 | AH26: 1 | AI26: 1001 | AJ26: t4501 | AK26: 100 | AL26: gunHit
A27: 10309 | B27: t2701 | C27: 4 | D27: 9 | E27: 5 | F27: 1 | G27: 1153 | H27: 630 | I27: 0 | J27: 0 | K27: 550 | L27: 10301 | M27: 310^163 | N27: 0.8 | O27: 10000 | P27: 1000 | Q27: 15000 | R27: 61 | S27: 18 | T27: 0.3 | U27: 300 | V27: 0 | W27: 100 | X27: 201^202 | Y27: 15^0 | Z27: 5^0 | AA27: 3 | AB27: 0 | AC27: huoqiang | AD27: 0 | AE27: 19^100 | AF27: 80 | AG27: 0 | AH27: 1 | AI27: 1001 | AJ27: t4501 | AK27: 100 | AL27: gunHit
A28: 10310 | B28: t2701 | C28: 4 | D28: 10 | E28: 5 | F28: 1 | G28: 1383 | H28: 756 | I28: 0 | J28: 0 | K28: 550 | L28: 10301 | M28: 310^163 | N28: 0.8 | O28: 10000 | P28: 1000 | Q28: 15000 | R28: 73 | S28: 19 | T28: 0.3 | U28: 300 | V28: 0 | W28: 100 | X28: 201^202 | Y28: 15^0 | Z28: 5^0 | AA28: 3 | AB28: 0 | AC28: huoqiang | AD28: 0 | AE28: 19^100 | AF28: 80 | AG28: 0 | AH28: 1 | AI28: 1001 | AJ28: t4501 | AK28: 100 | AL28: gunHit
A29: 10311 | B29: t2701 | C29: 4 | D29: 11 | E29: 6 | F29: 1 | G29: =FLOOR(G28*1.32,1) -> 1825 | H29: =FLOOR(H28*1.32,1) -> 997 | I29: 0 | J29: 0 | K29: 550 | L29: 10301 | M29: 310^163 | N29: 0.8 | O29: 10000 | P29: 1000 | Q29: 15000 | R29: 87 | S29: 20 | T29: 0.3 | U29: 300 | V29: 0 | W29: 100 | X29: 201^202 | Y29: 15^0 | Z29: 5^0 | AA29: 3 | AB29: 0 | AC29: huoqiang | AD29: 0 | AE29: 19^100 | AF29: 80 | AG29: t6007 | AH29: 1 | AI29: 1001 | AJ29: t4501 | AK29: 100 | AL29: gunHit
A30: 10312 | B30: t2701 | C30: 4 | D30: 12 | E30: 6 | F30: 1 | G30: 2190 | H30: 1196 | I30: 0 | J30: 0 | K30: 550 | L30: 10301 | M30: 310^163 | N30: 0.8 | O30: 10000 | P30: 1000 | Q30: 15000 | R30: 104 | S30: 21 | T30: 0.3 | U30: 300 | V30: 0 | W30: 100 | X30: 201^202 | Y30: 15^0 | Z30: 5^0 | AA30: 3 | AB30: 0 | AC30: huoqiang | AD30: 0 | AE30: 19^100 | AF30: 80 | AG30: 0 | AH30: 1 | AI30: 1001 | AJ30: t4501 | AK30: 100 | AL30: gunHit
A31: 10313 | B31: t2701 | C31: 4 | D31: 13 | E31: 6 | F31: 1 | G31: 2628 | H31: 1435 | I31: 0 | J31: 0 | K31: 550 | L31: 10301 | M31: 310^163 | N31: 0.8 | O31: 10000 | P31: 1000 | Q31: 15000 | R31: 124 | S31: 22 | T31: 0.3 | U31: 300 | V31: 0 | W31: 100 | X31: 201^202 | Y31: 15^0 | Z31: 5^0 | AA31: 3 | AB31: 0 | AC31: huoqiang | AD31: 0 | AE31: 19^100 | AF31: 80 | AG31: 0 | AH31: 1 | AI31: 1001 | AJ31: t4501 | AK31: 100 | AL31: gunHit
A32: 10314 | B32: t2701 | C32: 4 | D32: 14 | E32: 6 | F32: 1 | G32: 3153 | H32: 1722 | I32: 0 | J32: 0 | K32: 550 | L32: 10301 | M32: 310^163 | N32: 0.8 | O32: 10000 | P32: 1000 | Q32: 15000 | R32: 148 | S32: 23 | T32: 0.3 | U32: 300 | V32: 0 | W32: 100 | X32: 201^202 | Y32: 15^0 | Z32: 5^0 | AA32: 3 | AB32: 0 | AC32: huoqiang | AD32: 0 | AE32: 19^100 | AF32: 80 | AG32: 0 | AH32: 1 | AI32: 1001 | AJ32: t4501 | AK32: 100 | AL32: gunHit
A33: 10315 | B33: t2701 | C33: 4 | D33: 15 | E33: 6 | F33: 1 | G33: 3783 | H33: 2066 | I33: 0 | J33: 0 | K33: 550 | L33: 10301 | M33: 310^163 | N33: 0.8 | O33: 10000 | P33: 1000 | Q33: 15000 | R33: 177 | S33: 24 | T33: 0.3 | U33: 300 | V33: 0 | W33: 100 | X33: 201^202 | Y33: 15^0 | Z33: 5^0 | AA33: 3 | AB33: 0 | AC33: huoqiang | AD33: 0 | AE33: 19^100 | AF33: 80 | AG33: 0 | AH33: 1 | AI33: 1001 | AJ33: t4501 | AK33: 100 | AL33: gunHit
A34: 10316 | B34: t2701 | C34: 4 | D34: 16 | E34: 6 | F34: 1 | G34: 4539 | H34: 2479 | I34: 0 | J34: 0 | K34: 550 | L34: 10301 | M34: 310^163 | N34: 0.8 | O34: 10000 | P34: 1000 | Q34: 15000 | R34: 212 | S34: 25 | T34: 0.3 | U34: 300 | V34: 0 | W34: 100 | X34: 201^202 | Y34: 15^0 | Z34: 5^0 | AA34: 3 | AB34: 0 | AC34: huoqiang | AD34: 0 | AE34: 19^100 | AF34: 80 | AG34: 0 | AH34: 1 | AI34: 1001 | AJ34: t4501 | AK34: 100 | AL34: gunHit
A35: 10401 | B35: t2702 | C35: 4 | D35: 1 | E35: 1 | F35: 2 | G35: =调试区!S35 -> 355 | H35: =调试区!T35 -> 201 | I35: 0 | J35: 0 | K35: 450 | L35: 10401 | M35: 190^200 | N35: 0.8 | O35: 10000 | P35: 500 | Q35: 15000 | R35: 15 | S35: 10 | T35: 0.56 | U35: 300 | V35: 0 | W35: 80 | X35: 0 | Y35: 0 | Z35: 0 | AA35: 5 | AB35: 0 | AC35: luobin | AD35: 10401 | AE35: 21^100 | AF35: 95 | AG35: 0 | AH35: 3 | AI35: 1002 | AJ35: t4502 | AK35: 100 | AL35: normalHit | AM35: 罗宾
A36: 10402 | B36: t2702 | C36: 4 | D36: 2 | E36: 2 | F36: 2 | G36: =FLOOR(G35*1.2,1) -> 426 | H36: =FLOOR(H35*1.2,1) -> 241 | I36: 0 | J36: 0 | K36: 450 | L36: 10401 | M36: 190^200 | N36: 0.8 | O36: 10000 | P36: 500 | Q36: 15000 | R36: 18 | S36: 11 | T36: 0.56 | U36: 300 | V36: 0 | W36: 80 | X36: 0 | Y36: 0 | Z36: 0 | AA36: 5 | AB36: 0 | AC36: luobin | AD36: 10401 | AE36: 21^100 | AF36: 95 | AG36: t6000 | AH36: 3 | AI36: 1002 | AJ36: t4502 | AK36: 100 | AL36: normalHit
A37: 10403 | B37: t2702 | C37: 4 | D37: 3 | E37: 3 | F37: 2 | G37: 511 | H37: 289 | I37: 0 | J37: 0 | K37: 450 | L37: 10401 | M37: 190^200 | N37: 0.8 | O37: 10000 | P37: 500 | Q37: 15000 | R37: 21 | S37: 12 | T37: 0.56 | U37: 300 | V37: 0 | W37: 80 | X37: 0 | Y37: 0 | Z37: 0 | AA37: 5 | AB37: 0 | AC37: luobin | AD37: 10401 | AE37: 21^100 | AF37: 95 | AG37: t6000 | AH37: 3 | AI37: 1002 | AJ37: t4502 | AK37: 100 | AL37: normalHit
A38: 10404 | B38: t2702 | C38: 4 | D38: 4 | E38: 4 | F38: 2 | G38: =FLOOR(G37*1.4,1) -> 715 | H38: =FLOOR(H37*1.54,1) -> 445 | I38: 0 | J38: 0 | K38: 450 | L38: 10401 | M38: 190^200 | N38: 0.8 | O38: 10000 | P38: 500 | Q38: 15000 | R38: 25 | S38: 13 | T38: 0.56 | U38: 300 | V38: 0 | W38: 80 | X38: 0 | Y38: 0 | Z38: 0 | AA38: 5 | AB38: 0 | AC38: luobin | AD38: 10401 | AE38: 21^100 | AF38: 95 | AG38: t6130 | AH38: 3 | AI38: 1002 | AJ38: t4502 | AK38: 100 | AL38: normalHit
A39: 10405 | B39: t2702 | C39: 4 | D39: 5 | E39: 4 | F39: 2 | G39: 858 | H39: 534 | I39: 0 | J39: 0 | K39: 450 | L39: 10401 | M39: 190^200 | N39: 0.8 | O39: 10000 | P39: 500 | Q39: 15000 | R39: 30 | S39: 14 | T39: 0.56 | U39: 300 | V39: 0 | W39: 80 | X39: 0 | Y39: 0 | Z39: 0 | AA39: 5 | AB39: 0 | AC39: luobin | AD39: 10401 | AE39: 21^100 | AF39: 95 | AG39: 0 | AH39: 3 | AI39: 1002 | AJ39: t4502 | AK39: 100 | AL39: normalHit
A40: 10406 | B40: t2702 | C40: 4 | D40: 6 | E40: 4 | F40: 2 | G40: 1029 | H40: 640 | I40: 0 | J40: 0 | K40: 450 | L40: 10401 | M40: 190^200 | N40: 0.8 | O40: 10000 | P40: 500 | Q40: 15000 | R40: 36 | S40: 15 | T40: 0.56 | U40: 300 | V40: 0 | W40: 80 | X40: 0 | Y40: 0 | Z40: 0 | AA40: 5 | AB40: 0 | AC40: luobin | AD40: 10401 | AE40: 21^100 | AF40: 95 | AG40: 0 | AH40: 3 | AI40: 1002 | AJ40: t4502 | AK40: 100 | AL40: normalHit
A41: 10407 | B41: t2702 | C41: 4 | D41: 7 | E41: 5 | F41: 2 | G41: =FLOOR(G40*1.32,1) -> 1358 | H41: =FLOOR(H40*1.32,1) -> 844 | I41: 0 | J41: 0 | K41: 450 | L41: 10401 | M41: 190^200 | N41: 0.8 | O41: 12000 | P41: 500 | Q41: 15000 | R41: 43 | S41: 16 | T41: 0.56 | U41: 300 | V41: 0 | W41: 80 | X41: 0 | Y41: 0 | Z41: 0 | AA41: 5 | AB41: 0 | AC41: luobin | AD41: 10401 | AE41: 21^100 | AF41: 95 | AG41: t6125 | AH41: 3 | AI41: 1002 | AJ41: t4502 | AK41: 100 | AL41: normalHit
A42: 10408 | B42: t2702 | C42: 4 | D42: 8 | E42: 5 | F42: 2 | G42: 1629 | H42: 1012 | I42: 0 | J42: 0 | K42: 450 | L42: 10401 | M42: 190^200 | N42: 0.8 | O42: 12000 | P42: 500 | Q42: 15000 | R42: 51 | S42: 17 | T42: 0.56 | U42: 300 | V42: 0 | W42: 80 | X42: 0 | Y42: 0 | Z42: 0 | AA42: 5 | AB42: 0 | AC42: luobin | AD42: 10401 | AE42: 21^100 | AF42: 95 | AG42: 0 | AH42: 3 | AI42: 1002 | AJ42: t4502 | AK42: 100 | AL42: normalHit
A43: 10409 | B43: t2702 | C43: 4 | D43: 9 | E43: 5 | F43: 2 | G43: 1954 | H43: 1214 | I43: 0 | J43: 0 | K43: 450 | L43: 10401 | M43: 190^200 | N43: 0.8 | O43: 12000 | P43: 500 | Q43: 15000 | R43: 61 | S43: 18 | T43: 0.56 | U43: 300 | V43: 0 | W43: 80 | X43: 0 | Y43: 0 | Z43: 0 | AA43: 5 | AB43: 0 | AC43: luobin | AD43: 10401 | AE43: 21^100 | AF43: 95 | AG43: 0 | AH43: 3 | AI43: 1002 | AJ43: t4502 | AK43: 100 | AL43: normalHit
A44: 10410 | B44: t2702 | C44: 4 | D44: 10 | E44: 5 | F44: 2 | G44: 2344 | H44: 1456 | I44: 0 | J44: 0 | K44: 450 | L44: 10401 | M44: 190^200 | N44: 0.8 | O44: 12000 | P44: 500 | Q44: 15000 | R44: 73 | S44: 19 | T44: 0.56 | U44: 300 | V44: 0 | W44: 80 | X44: 0 | Y44: 0 | Z44: 0 | AA44: 5 | AB44: 0 | AC44: luobin | AD44: 10401 | AE44: 21^100 | AF44: 95 | AG44: 0 | AH44: 3 | AI44: 1002 | AJ44: t4502 | AK44: 100 | AL44: normalHit
A45: 10411 | B45: t2702 | C45: 4 | D45: 11 | E45: 6 | F45: 2 | G45: =FLOOR(G44*1.32,1) -> 3094 | H45: =FLOOR(H44*1.32,1) -> 1921 | I45: 0 | J45: 0 | K45: 450 | L45: 10401 | M45: 190^200 | N45: 0.8 | O45: 12000 | P45: 500 | Q45: 15000 | R45: 87 | S45: 20 | T45: 0.56 | U45: 300 | V45: 0 | W45: 80 | X45: 0 | Y45: 0 | Z45: 0 | AA45: 5 | AB45: 0 | AC45: luobin | AD45: 10401 | AE45: 21^100 | AF45: 95 | AG45: t6007 | AH45: 3 | AI45: 1002 | AJ45: t4502 | AK45: 100 | AL45: normalHit
A46: 10412 | B46: t2702 | C46: 4 | D46: 12 | E46: 6 | F46: 2 | G46: 3712 | H46: 2305 | I46: 0 | J46: 0 | K46: 450 | L46: 10401 | M46: 190^200 | N46: 0.8 | O46: 12000 | P46: 500 | Q46: 15000 | R46: 104 | S46: 21 | T46: 0.56 | U46: 300 | V46: 0 | W46: 80 | X46: 0 | Y46: 0 | Z46: 0 | AA46: 5 | AB46: 0 | AC46: luobin | AD46: 10401 | AE46: 21^100 | AF46: 95 | AG46: 0 | AH46: 3 | AI46: 1002 | AJ46: t4502 | AK46: 100 | AL46: normalHit
A47: 10413 | B47: t2702 | C47: 4 | D47: 13 | E47: 6 | F47: 2 | G47: 4454 | H47: 2766 | I47: 0 | J47: 0 | K47: 450 | L47: 10401 | M47: 190^200 | N47: 0.8 | O47: 12000 | P47: 500 | Q47: 15000 | R47: 124 | S47: 22 | T47: 0.56 | U47: 300 | V47: 0 | W47: 80 | X47: 0 | Y47: 0 | Z47: 0 | AA47: 5 | AB47: 0 | AC47: luobin | AD47: 10401 | AE47: 21^100 | AF47: 95 | AG47: 0 | AH47: 3 | AI47: 1002 | AJ47: t4502 | AK47: 100 | AL47: normalHit
A48: 10414 | B48: t2702 | C48: 4 | D48: 14 | E48: 6 | F48: 2 | G48: 5344 | H48: 3319 | I48: 0 | J48: 0 | K48: 450 | L48: 10401 | M48: 190^200 | N48: 0.8 | O48: 12000 | P48: 500 | Q48: 15000 | R48: 148 | S48: 23 | T48: 0.56 | U48: 300 | V48: 0 | W48: 80 | X48: 0 | Y48: 0 | Z48: 0 | AA48: 5 | AB48: 0 | AC48: luobin | AD48: 10401 | AE48: 21^100 | AF48: 95 | AG48: 0 | AH48: 3 | AI48: 1002 | AJ48: t4502 | AK48: 100 | AL48: normalHit
A49: 10415 | B49: t2702 | C49: 4 | D49: 15 | E49: 6 | F49: 2 | G49: 6412 | H49: 3982 | I49: 0 | J49: 0 | K49: 450 | L49: 10401 | M49: 190^200 | N49: 0.8 | O49: 12000 | P49: 500 | Q49: 15000 | R49: 177 | S49: 24 | T49: 0.56 | U49: 300 | V49: 0 | W49: 80 | X49: 0 | Y49: 0 | Z49: 0 | AA49: 5 | AB49: 0 | AC49: luobin | AD49: 10401 | AE49: 21^100 | AF49: 95 | AG49: 0 | AH49: 3 | AI49: 1002 | AJ49: t4502 | AK49: 100 | AL49: normalHit
A50: 10416 | B50: t2702 | C50: 4 | D50: 16 | E50: 6 | F50: 2 | G50: 7694 | H50: 4778 | I50: 0 | J50: 0 | K50: 450 | L50: 10401 | M50: 190^200 | N50: 0.8 | O50: 12000 | P50: 500 | Q50: 15000 | R50: 212 | S50: 25 | T50: 0.56 | U50: 300 | V50: 0 | W50: 80 | X50: 0 | Y50: 0 | Z50: 0 | AA50: 5 | AB50: 0 | AC50: luobin | AD50: 10401 | AE50: 21^100 | AF50: 95 | AG50: 0 | AH50: 3 | AI50: 1002 | AJ50: t4502 | AK50: 100 | AL50: normalHit
A51: 10501 | B51: t2703 | C51: 3 | D51: 1 | E51: 1 | F51: 1 | G51: 351 | H51: 131 | I51: 0 | J51: 0 | K51: 100 | L51: 0 | M51: 0 | N51: 0.65 | O51: 10000 | P51: 300 | Q51: 15000 | R51: 20 | S51: 10 | T51: 0.37 | U51: 300 | V51: 0 | W51: 150 | X51: 301^302 | Y51: 1^9999 | Z51: 1^9999 | AA51: 4 | AB51: 0 | AC51: xiaochou | AD51: 10701 | AE51: 21^100 | AF51: 90 | AG51: 0 | AH51: 2 | AI51: 1003 | AJ51: t4503 | AK51: 100 | AL51: meleeHit | AM51: 小丑
A52: 10502 | B52: t2703 | C52: 3 | D52: 2 | E52: 2 | F52: 1 | G52: =FLOOR(G51*1.2,1) -> 421 | H52: =FLOOR(H51*1.2,1) -> 157 | I52: 0 | J52: 0 | K52: 100 | L52: 0 | M52: 0 | N52: 0.65 | O52: 10000 | P52: 300 | Q52: 15000 | R52: 24 | S52: 11 | T52: 0.37 | U52: 300 | V52: 0 | W52: 150 | X52: 301^302 | Y52: 1^9999 | Z52: 1^9999 | AA52: 4 | AB52: 0 | AC52: xiaochou | AD52: 10701 | AE52: 21^100 | AF52: 90 | AG52: t6000 | AH52: 2 | AI52: 1003 | AJ52: t4503 | AK52: 100 | AL52: meleeHit
A53: 10503 | B53: t2703 | C53: 3 | D53: 3 | E53: 3 | F53: 1 | G53: 505 | H53: 188 | I53: 0 | J53: 0 | K53: 100 | L53: 0 | M53: 0 | N53: 0.65 | O53: 10000 | P53: 300 | Q53: 15000 | R53: 28 | S53: 12 | T53: 0.37 | U53: 300 | V53: 0 | W53: 150 | X53: 301^302 | Y53: 1^9999 | Z53: 1^9999 | AA53: 4 | AB53: 0 | AC53: xiaochou | AD53: 10701 | AE53: 21^100 | AF53: 90 | AG53: t6000 | AH53: 2 | AI53: 1003 | AJ53: t4503 | AK53: 100 | AL53: meleeHit
A54: 10504 | B54: t2703 | C54: 3 | D54: 4 | E54: 4 | F54: 1 | G54: =FLOOR(G53*1.4,1) -> 707 | H54: =FLOOR(H53*1.4,1) -> 263 | I54: 0 | J54: 0 | K54: 100 | L54: 0 | M54: 0 | N54: 0.65 | O54: 10000 | P54: 300 | Q54: 15000 | R54: 33 | S54: 13 | T54: 0.37 | U54: 300 | V54: 0 | W54: 150 | X54: 301^302^303 | Y54: 1^9999^0 | Z54: 1^9999^0 | AA54: 4 | AB54: 0 | AC54: xiaochou | AD54: 10701 | AE54: 21^100 | AF54: 90 | AG54: t6012 | AH54: 2 | AI54: 1003 | AJ54: t4503 | AK54: 100 | AL54: meleeHit
A55: 10505 | B55: t2703 | C55: 3 | D55: 5 | E55: 4 | F55: 1 | G55: 848 | H55: 315 | I55: 0 | J55: 0 | K55: 100 | L55: 0 | M55: 0 | N55: 0.65 | O55: 10000 | P55: 300 | Q55: 15000 | R55: 39 | S55: 14 | T55: 0.37 | U55: 300 | V55: 0 | W55: 150 | X55: 301^302^303 | Y55: 1^9999^0 | Z55: 1^9999^0 | AA55: 4 | AB55: 0 | AC55: xiaochou | AD55: 10701 | AE55: 21^100 | AF55: 90 | AG55: 0 | AH55: 2 | AI55: 1003 | AJ55: t4503 | AK55: 100 | AL55: meleeHit
A56: 10506 | B56: t2703 | C56: 3 | D56: 6 | E56: 4 | F56: 1 | G56: 1017 | H56: 378 | I56: 0 | J56: 0 | K56: 100 | L56: 0 | M56: 0 | N56: 0.65 | O56: 10000 | P56: 300 | Q56: 15000 | R56: 46 | S56: 15 | T56: 0.37 | U56: 300 | V56: 0 | W56: 150 | X56: 301^302^303 | Y56: 1^9999^0 | Z56: 1^9999^0 | AA56: 4 | AB56: 0 | AC56: xiaochou | AD56: 10701 | AE56: 21^100 | AF56: 90 | AG56: 0 | AH56: 2 | AI56: 1003 | AJ56: t4503 | AK56: 100 | AL56: meleeHit
A57: 10507 | B57: t2703 | C57: 3 | D57: 7 | E57: 5 | F57: 1 | G57: =FLOOR(G56*1.32,1) -> 1342 | H57: =FLOOR(H56*1.32,1) -> 498 | I57: 0 | J57: 0 | K57: 100 | L57: 0 | M57: 0 | N57: 0.65 | O57: 10000 | P57: 300 | Q57: 17000 | R57: 55 | S57: 16 | T57: 0.37 | U57: 300 | V57: 0 | W57: 200 | X57: 301^302^303 | Y57: 1^9999^0 | Z57: 1^9999^0 | AA57: 4 | AB57: 0 | AC57: xiaochou | AD57: 10701 | AE57: 21^100 | AF57: 90 | AG57: t6112 | AH57: 2 | AI57: 1003 | AJ57: t4503 | AK57: 100 | AL57: meleeHit
A58: 10508 | B58: t2703 | C58: 3 | D58: 8 | E58: 5 | F58: 1 | G58: 1610 | H58: 597 | I58: 0 | J58: 0 | K58: 100 | L58: 0 | M58: 0 | N58: 0.65 | O58: 10000 | P58: 300 | Q58: 17000 | R58: 66 | S58: 17 | T58: 0.37 | U58: 300 | V58: 0 | W58: 200 | X58: 301^302^303 | Y58: 1^9999^0 | Z58: 1^9999^0 | AA58: 4 | AB58: 0 | AC58: xiaochou | AD58: 10701 | AE58: 21^100 | AF58: 90 | AG58: 0 | AH58: 2 | AI58: 1003 | AJ58: t4503 | AK58: 100 | AL58: meleeHit
A59: 10509 | B59: t2703 | C59: 3 | D59: 9 | E59: 5 | F59: 1 | G59: 1932 | H59: 716 | I59: 0 | J59: 0 | K59: 100 | L59: 0 | M59: 0 | N59: 0.65 | O59: 10000 | P59: 300 | Q59: 17000 | R59: 79 | S59: 18 | T59: 0.37 | U59: 300 | V59: 0 | W59: 200 | X59: 301^302^303 | Y59: 1^9999^0 | Z59: 1^9999^0 | AA59: 4 | AB59: 0 | AC59: xiaochou | AD59: 10701 | AE59: 21^100 | AF59: 90 | AG59: 0 | AH59: 2 | AI59: 1003 | AJ59: t4503 | AK59: 100 | AL59: meleeHit
A60: 10510 | B60: t2703 | C60: 3 | D60: 10 | E60: 5 | F60: 1 | G60: 2318 | H60: 859 | I60: 0 | J60: 0 | K60: 100 | L60: 0 | M60: 0 | N60: 0.65 | O60: 10000 | P60: 300 | Q60: 17000 | R60: 94 | S60: 19 | T60: 0.37 | U60: 300 | V60: 0 | W60: 200 | X60: 301^302^303 | Y60: 1^9999^0 | Z60: 1^9999^0 | AA60: 4 | AB60: 0 | AC60: xiaochou | AD60: 10701 | AE60: 21^100 | AF60: 90 | AG60: 0 | AH60: 2 | AI60: 1003 | AJ60: t4503 | AK60: 100 | AL60: meleeHit
A61: 10511 | B61: t2703 | C61: 3 | D61: 11 | E61: 6 | F61: 1 | G61: =FLOOR(G60*1.32,1) -> 3059 | H61: =FLOOR(H60*1.32,1) -> 1133 | I61: 0 | J61: 0 | K61: 100 | L61: 0 | M61: 0 | N61: 0.65 | O61: 10000 | P61: 300 | Q61: 17000 | R61: 112 | S61: 20 | T61: 0.37 | U61: 300 | V61: 0 | W61: 200 | X61: 301^302^303 | Y61: 1^9999^0 | Z61: 1^9999^0 | AA61: 4 | AB61: 0 | AC61: xiaochou | AD61: 10701 | AE61: 21^100 | AF61: 90 | AG61: t6007 | AH61: 2 | AI61: 1003 | AJ61: t4503 | AK61: 100 | AL61: meleeHit
A62: 10512 | B62: t2703 | C62: 3 | D62: 12 | E62: 6 | F62: 1 | G62: 3670 | H62: 1359 | I62: 0 | J62: 0 | K62: 100 | L62: 0 | M62: 0 | N62: 0.65 | O62: 10000 | P62: 300 | Q62: 17000 | R62: 134 | S62: 21 | T62: 0.37 | U62: 300 | V62: 0 | W62: 200 | X62: 301^302^303 | Y62: 1^9999^0 | Z62: 1^9999^0 | AA62: 4 | AB62: 0 | AC62: xiaochou | AD62: 10701 | AE62: 21^100 | AF62: 90 | AG62: 0 | AH62: 2 | AI62: 1003 | AJ62: t4503 | AK62: 100 | AL62: meleeHit
A63: 10513 | B63: t2703 | C63: 3 | D63: 13 | E63: 6 | F63: 1 | G63: 4404 | H63: 1630 | I63: 0 | J63: 0 | K63: 100 | L63: 0 | M63: 0 | N63: 0.65 | O63: 10000 | P63: 300 | Q63: 17000 | R63: 160 | S63: 22 | T63: 0.37 | U63: 300 | V63: 0 | W63: 200 | X63: 301^302^303 | Y63: 1^9999^0 | Z63: 1^9999^0 | AA63: 4 | AB63: 0 | AC63: xiaochou | AD63: 10701 | AE63: 21^100 | AF63: 90 | AG63: 0 | AH63: 2 | AI63: 1003 | AJ63: t4503 | AK63: 100 | AL63: meleeHit
A64: 10514 | B64: t2703 | C64: 3 | D64: 14 | E64: 6 | F64: 1 | G64: 5284 | H64: 1956 | I64: 0 | J64: 0 | K64: 100 | L64: 0 | M64: 0 | N64: 0.65 | O64: 10000 | P64: 300 | Q64: 17000 | R64: 192 | S64: 23 | T64: 0.37 | U64: 300 | V64: 0 | W64: 200 | X64: 301^302^303 | Y64: 1^9999^0 | Z64: 1^9999^0 | AA64: 4 | AB64: 0 | AC64: xiaochou | AD64: 10701 | AE64: 21^100 | AF64: 90 | AG64: 0 | AH64: 2 | AI64: 1003 | AJ64: t4503 | AK64: 100 | AL64: meleeHit
A65: 10515 | B65: t2703 | C65: 3 | D65: 15 | E65: 6 | F65: 1 | G65: 6340 | H65: 2347 | I65: 0 | J65: 0 | K65: 100 | L65: 0 | M65: 0 | N65: 0.65 | O65: 10000 | P65: 300 | Q65: 17000 | R65: 230 | S65: 24 | T65: 0.37 | U65: 300 | V65: 0 | W65: 200 | X65: 301^302^303 | Y65: 1^9999^0 | Z65: 1^9999^0 | AA65: 4 | AB65: 0 | AC65: xiaochou | AD65: 10701 | AE65: 21^100 | AF65: 90 | AG65: 0 | AH65: 2 | AI65: 1003 | AJ65: t4503 | AK65: 100 | AL65: meleeHit
A66: 10516 | B66: t2703 | C66: 3 | D66: 16 | E66: 6 | F66: 1 | G66: 7608 | H66: 2816 | I66: 0 | J66: 0 | K66: 100 | L66: 0 | M66: 0 | N66: 0.65 | O66: 10000 | P66: 300 | Q66: 17000 | R66: 276 | S66: 25 | T66: 0.37 | U66: 300 | V66: 0 | W66: 200 | X66: 301^302^303 | Y66: 1^9999^0 | Z66: 1^9999^0 | AA66: 4 | AB66: 0 | AC66: xiaochou | AD66: 10701 | AE66: 21^100 | AF66: 90 | AG66: 0 | AH66: 2 | AI66: 1003 | AJ66: t4503 | AK66: 100 | AL66: meleeHit
A67: 10601 | B67: t2704 | C67: 3 | D67: 1 | E67: 1 | F67: 1 | G67: 288 | H67: 148 | I67: 0 | J67: 0 | K67: 100 | L67: 0 | M67: 0 | N67: 0.75 | O67: 10000 | P67: 300 | Q67: 15000 | R67: 20 | S67: 10 | T67: 0.4 | U67: 300 | V67: 4000 | W67: 135 | X67: 0 | Y67: 0 | Z67: 0 | AA67: 5 | AB67: 0 | AC67: heibao | AD67: 10601 | AE67: 22^100 | AF67: 100 | AG67: 0 | AH67: 2 | AI67: 1004 | AJ67: t4504 | AK67: 100 | AL67: normalHit | AM67: 特查拉
A68: 10602 | B68: t2704 | C68: 3 | D68: 2 | E68: 2 | F68: 1 | G68: =FLOOR(G67*1.2,1) -> 345 | H68: 177 | I68: 0 | J68: 0 | K68: 100 | L68: 0 | M68: 0 | N68: 0.75 | O68: 10000 | P68: 300 | Q68: 15000 | R68: 24 | S68: 11 | T68: 0.4 | U68: 300 | V68: 4000 | W68: 135 | X68: 0 | Y68: 0 | Z68: 0 | AA68: 5 | AB68: 0 | AC68: heibao | AD68: 10601 | AE68: 22^100 | AF68: 100 | AG68: t6000 | AH68: 2 | AI68: 1004 | AJ68: t4504 | AK68: 100 | AL68: normalHit
A69: 10603 | B69: t2704 | C69: 3 | D69: 3 | E69: 3 | F69: 1 | G69: 414 | H69: 212 | I69: 0 | J69: 0 | K69: 100 | L69: 0 | M69: 0 | N69: 0.75 | O69: 10000 | P69: 300 | Q69: 15000 | R69: =FLOOR(R68*1.2,1) -> 28 | S69: 12 | T69: 0.4 | U69: 300 | V69: 4000 | W69: 135 | X69: 0 | Y69: 0 | Z69: 0 | AA69: 5 | AB69: 0 | AC69: heibao | AD69: 10601 | AE69: 22^100 | AF69: 100 | AG69: t6000 | AH69: 2 | AI69: 1004 | AJ69: t4504 | AK69: 100 | AL69: normalHit
A70: 10604 | B70: t2704 | C70: 3 | D70: 4 | E70: 4 | F70: 1 | G70: =FLOOR(G69*1.4,1) -> 579 | H70: =FLOOR(H69*1.4,1) -> 296 | I70: 0 | J70: 0 | K70: 100 | L70: 0 | M70: 0 | N70: 0.75 | O70: 10000 | P70: 300 | Q70: 15000 | R70: 33 | S70: 13 | T70: 0.4 | U70: 300 | V70: 4000 | W70: 135 | X70: 401 | Y70: 0 | Z70: 0 | AA70: 5 | AB70: 0 | AC70: heibao | AD70: 10601 | AE70: 22^100 | AF70: 100 | AG70: t6022 | AH70: 2 | AI70: 1004 | AJ70: t4504 | AK70: 100 | AL70: normalHit
A71: 10605 | B71: t2704 | C71: 3 | D71: 5 | E71: 4 | F71: 1 | G71: 694 | H71: 355 | I71: 0 | J71: 0 | K71: 100 | L71: 0 | M71: 0 | N71: 0.75 | O71: 10000 | P71: 300 | Q71: 15000 | R71: 39 | S71: 14 | T71: 0.4 | U71: 300 | V71: 4000 | W71: 135 | X71: 401 | Y71: 0 | Z71: 0 | AA71: 5 | AB71: 0 | AC71: heibao | AD71: 10601 | AE71: 22^100 | AF71: 100 | AG71: 0 | AH71: 2 | AI71: 1004 | AJ71: t4504 | AK71: 100 | AL71: normalHit
A72: 10606 | B72: t2704 | C72: 3 | D72: 6 | E72: 4 | F72: 1 | G72: 832 | H72: 426 | I72: 0 | J72: 0 | K72: 100 | L72: 0 | M72: 0 | N72: 0.75 | O72: 10000 | P72: 300 | Q72: 15000 | R72: 46 | S72: 15 | T72: 0.4 | U72: 300 | V72: 4000 | W72: 135 | X72: 401 | Y72: 0 | Z72: 0 | AA72: 5 | AB72: 0 | AC72: heibao | AD72: 10601 | AE72: 22^100 | AF72: 100 | AG72: 0 | AH72: 2 | AI72: 1004 | AJ72: t4504 | AK72: 100 | AL72: normalHit
A73: 10607 | B73: t2704 | C73: 3 | D73: 7 | E73: 5 | F73: 1 | G73: =FLOOR(G72*1.32,1) -> 1098 | H73: =FLOOR(H72*1.44,1) -> 613 | I73: 0 | J73: 0 | K73: 100 | L73: 0 | M73: 0 | N73: 0.75 | O73: 10000 | P73: 300 | Q73: 15000 | R73: 55 | S73: 16 | T73: 0.4 | U73: 300 | V73: 4000 | W73: 135 | X73: 401 | Y73: 0 | Z73: 0 | AA73: 5 | AB73: 0 | AC73: heibao | AD73: 10601 | AE73: 22^100 | AF73: 100 | AG73: t6008 | AH73: 2 | AI73: 1004 | AJ73: t4504 | AK73: 100 | AL73: normalHit
A74: 10608 | B74: t2704 | C74: 3 | D74: 8 | E74: 5 | F74: 1 | G74: =FLOOR(G73*1.2,1) -> 1317 | H74: 735 | I74: 0 | J74: 0 | K74: 100 | L74: 0 | M74: 0 | N74: 0.75 | O74: 10000 | P74: 300 | Q74: 15000 | R74: 66 | S74: 17 | T74: 0.4 | U74: 300 | V74: 4000 | W74: 135 | X74: 401 | Y74: 0 | Z74: 0 | AA74: 5 | AB74: 0 | AC74: heibao | AD74: 10601 | AE74: 22^100 | AF74: 100 | AG74: 0 | AH74: 2 | AI74: 1004 | AJ74: t4504 | AK74: 100 | AL74: normalHit
A75: 10609 | B75: t2704 | C75: 3 | D75: 9 | E75: 5 | F75: 1 | G75: 1580 | H75: =FLOOR(H74*1.2,1) -> 882 | I75: 0 | J75: 0 | K75: 100 | L75: 0 | M75: 0 | N75: 0.75 | O75: 10000 | P75: 300 | Q75: 15000 | R75: 79 | S75: 18 | T75: 0.4 | U75: 300 | V75: 4000 | W75: 135 | X75: 401 | Y75: 0 | Z75: 0 | AA75: 5 | AB75: 0 | AC75: heibao | AD75: 10601 | AE75: 22^100 | AF75: 100 | AG75: 0 | AH75: 2 | AI75: 1004 | AJ75: t4504 | AK75: 100 | AL75: normalHit
A76: 10610 | B76: t2704 | C76: 3 | D76: 10 | E76: 5 | F76: 1 | G76: 1896 | H76: 1058 | I76: 0 | J76: 0 | K76: 100 | L76: 0 | M76: 0 | N76: 0.75 | O76: 10000 | P76: 300 | Q76: 15000 | R76: 94 | S76: 19 | T76: 0.4 | U76: 300 | V76: 4000 | W76: 135 | X76: 401 | Y76: 0 | Z76: 0 | AA76: 5 | AB76: 0 | AC76: heibao | AD76: 10601 | AE76: 22^100 | AF76: 100 | AG76: 0 | AH76: 2 | AI76: 1004 | AJ76: t4504 | AK76: 100 | AL76: normalHit
A77: 10611 | B77: t2704 | C77: 3 | D77: 11 | E77: 6 | F77: 1 | G77: =FLOOR(G76*1.32,1) -> 2502 | H77: =FLOOR(H76*1.32,1) -> 1396 | I77: 0 | J77: 0 | K77: 100 | L77: 0 | M77: 0 | N77: 0.75 | O77: 10000 | P77: 300 | Q77: 15000 | R77: 112 | S77: 20 | T77: 0.4 | U77: 300 | V77: 4000 | W77: 135 | X77: 401 | Y77: 0 | Z77: 0 | AA77: 5 | AB77: 0 | AC77: heibao | AD77: 10601 | AE77: 22^100 | AF77: 100 | AG77: t6007 | AH77: 2 | AI77: 1004 | AJ77: t4504 | AK77: 100 | AL77: normalHit
A78: 10612 | B78: t2704 | C78: 3 | D78: 12 | E78: 6 | F78: 1 | G78: 3002 | H78: 1675 | I78: 0 | J78: 0 | K78: 100 | L78: 0 | M78: 0 | N78: 0.75 | O78: 10000 | P78: 300 | Q78: 15000 | R78: 134 | S78: 21 | T78: 0.4 | U78: 300 | V78: 4000 | W78: 135 | X78: 401 | Y78: 0 | Z78: 0 | AA78: 5 | AB78: 0 | AC78: heibao | AD78: 10601 | AE78: 22^100 | AF78: 100 | AG78: 0 | AH78: 2 | AI78: 1004 | AJ78: t4504 | AK78: 100 | AL78: normalHit
A79: 10613 | B79: t2704 | C79: 3 | D79: 13 | E79: 6 | F79: 1 | G79: 3602 | H79: 2010 | I79: 0 | J79: 0 | K79: 100 | L79: 0 | M79: 0 | N79: 0.75 | O79: 10000 | P79: 300 | Q79: 15000 | R79: 160 | S79: 22 | T79: 0.4 | U79: 300 | V79: 4000 | W79: 135 | X79: 401 | Y79: 0 | Z79: 0 | AA79: 5 | AB79: 0 | AC79: heibao | AD79: 10601 | AE79: 22^100 | AF79: 100 | AG79: 0 | AH79: 2 | AI79: 1004 | AJ79: t4504 | AK79: 100 | AL79: normalHit
A80: 10614 | B80: t2704 | C80: 3 | D80: 14 | E80: 6 | F80: 1 | G80: 4322 | H80: 2412 | I80: 0 | J80: 0 | K80: 100 | L80: 0 | M80: 0 | N80: 0.75 | O80: 10000 | P80: 300 | Q80: 15000 | R80: 192 | S80: 23 | T80: 0.4 | U80: 300 | V80: 4000 | W80: 135 | X80: 401 | Y80: 0 | Z80: 0 | AA80: 5 | AB80: 0 | AC80: heibao | AD80: 10601 | AE80: 22^100 | AF80: 100 | AG80: 0 | AH80: 2 | AI80: 1004 | AJ80: t4504 | AK80: 100 | AL80: normalHit
A81: 10615 | B81: t2704 | C81: 3 | D81: 15 | E81: 6 | F81: 1 | G81: 5186 | H81: 2894 | I81: 0 | J81: 0 | K81: 100 | L81: 0 | M81: 0 | N81: 0.75 | O81: 10000 | P81: 300 | Q81: 15000 | R81: 230 | S81: 24 | T81: 0.4 | U81: 300 | V81: 4000 | W81: 135 | X81: 401 | Y81: 0 | Z81: 0 | AA81: 5 | AB81: 0 | AC81: heibao | AD81: 10601 | AE81: 22^100 | AF81: 100 | AG81: 0 | AH81: 2 | AI81: 1004 | AJ81: t4504 | AK81: 100 | AL81: normalHit
A82: 10616 | B82: t2704 | C82: 3 | D82: 16 | E82: 6 | F82: 1 | G82: 6223 | H82: 3472 | I82: 0 | J82: 0 | K82: 100 | L82: 0 | M82: 0 | N82: 0.75 | O82: 10000 | P82: 300 | Q82: 15000 | R82: 276 | S82: 25 | T82: 0.4 | U82: 300 | V82: 4000 | W82: 135 | X82: 401 | Y82: 0 | Z82: 0 | AA82: 5 | AB82: 0 | AC82: heibao | AD82: 10601 | AE82: 22^100 | AF82: 100 | AG82: 0 | AH82: 2 | AI82: 1004 | AJ82: t4504 | AK82: 100 | AL82: normalHit
A83: 10701 | B83: t2705 | C83: 3 | D83: 1 | E83: 1 | F83: 2 | G83: =调试区!S83 -> 605 | H83: =调试区!T83 -> 419 | I83: 0 | J83: 0 | K83: 100 | L83: 0 | M83: 0 | N83: 0.75 | O83: 10000 | P83: 300 | Q83: 15000 | R83: 20 | S83: 10 | T83: 0.37 | U83: 300 | V83: 0 | W83: 180 | X83: 402 | Y83: 0^0 | Z83: 0^0 | AA83: 8 | AB83: 0 | AC83: yuzhibo | AD83: 10701 | AE83: 23^100 | AF83: 110 | AG83: 0 | AH83: 3 | AI83: 1005 | AJ83: t4505 | AK83: 100 | AL83: meleeHit | AM83: 宇智波
A84: 10702 | B84: t2705 | C84: 3 | D84: 2 | E84: 2 | F84: 2 | G84: =FLOOR(G83*1.2,1) -> 726 | H84: =FLOOR(H83*1.2,1) -> 502 | I84: 0 | J84: 0 | K84: 100 | L84: 0 | M84: 0 | N84: 0.75 | O84: 10000 | P84: 300 | Q84: 15000 | R84: =FLOOR(R83*1.2,1) -> 24 | S84: 11 | T84: 0.37 | U84: 300 | V84: 0 | W84: 180 | X84: 402 | Y84: 0^0 | Z84: 0^0 | AA84: 7 | AB84: 0 | AC84: yuzhibo | AD84: 10701 | AE84: 23^100 | AF84: 110 | AG84: t6000 | AH84: 3 | AI84: 1005 | AJ84: t4505 | AK84: 100 | AL84: meleeHit
A85: 10703 | B85: t2705 | C85: 3 | D85: 3 | E85: 3 | F85: 2 | G85: =FLOOR(G84*1.2,1) -> 871 | H85: =FLOOR(H84*1.2,1) -> 602 | I85: 0 | J85: 0 | K85: 100 | L85: 0 | M85: 0 | N85: 0.75 | O85: 10000 | P85: 300 | Q85: 15000 | R85: 28 | S85: 12 | T85: 0.37 | U85: 300 | V85: 0 | W85: 180 | X85: 402 | Y85: 0^0 | Z85: 0^0 | AA85: 7 | AB85: 0 | AC85: yuzhibo | AD85: 10701 | AE85: 23^100 | AF85: 110 | AG85: t6000 | AH85: 3 | AI85: 1005 | AJ85: t4505 | AK85: 100 | AL85: meleeHit
A86: 10704 | B86: t2705 | C86: 3 | D86: 4 | E86: 4 | F86: 2 | G86: =FLOOR(G85*1.54,1) -> 1341 | H86: =FLOOR(H85*1.4,1) -> 842 | I86: 0 | J86: 0 | K86: 100 | L86: 0 | M86: 0 | N86: 0.75 | O86: 10000 | P86: 300 | Q86: 15000 | R86: 33 | S86: 13 | T86: 0.37 | U86: 300 | V86: 0 | W86: 180 | X86: 402 | Y86: 0^0 | Z86: 0^0 | AA86: 7 | AB86: 0 | AC86: yuzhibo | AD86: 10701 | AE86: 23^100 | AF86: 110 | AG86: t6129 | AH86: 3 | AI86: 1005 | AJ86: t4505 | AK86: 100 | AL86: meleeHit
A87: 10705 | B87: t2705 | C87: 3 | D87: 5 | E87: 4 | F87: 2 | G87: =FLOOR(G86*1.2,1) -> 1609 | H87: =FLOOR(H86*1.2,1) -> 1010 | I87: 0 | J87: 0 | K87: 100 | L87: 0 | M87: 0 | N87: 0.75 | O87: 10000 | P87: 300 | Q87: 15000 | R87: 39 | S87: 14 | T87: 0.37 | U87: 300 | V87: 0 | W87: 180 | X87: 402 | Y87: 0^0 | Z87: 0^0 | AA87: 7 | AB87: 0 | AC87: yuzhibo | AD87: 10701 | AE87: 23^100 | AF87: 110 | AG87: 0 | AH87: 3 | AI87: 1005 | AJ87: t4505 | AK87: 100 | AL87: meleeHit
A88: 10706 | B88: t2705 | C88: 3 | D88: 6 | E88: 4 | F88: 2 | G88: =FLOOR(G87*1.2,1) -> 1930 | H88: =FLOOR(H87*1.2,1) -> 1212 | I88: 0 | J88: 0 | K88: 100 | L88: 0 | M88: 0 | N88: 0.75 | O88: 10000 | P88: 300 | Q88: 15000 | R88: 46 | S88: 15 | T88: 0.37 | U88: 300 | V88: 0 | W88: 180 | X88: 402 | Y88: 0^0 | Z88: 0^0 | AA88: 7 | AB88: 0 | AC88: yuzhibo | AD88: 10701 | AE88: 23^100 | AF88: 110 | AG88: 0 | AH88: 3 | AI88: 1005 | AJ88: t4505 | AK88: 100 | AL88: meleeHit
A89: 10707 | B89: t2705 | C89: 3 | D89: 7 | E89: 5 | F89: 2 | G89: =FLOOR(G88*1.32,1) -> 2547 | H89: =FLOOR(H88*1.32,1) -> 1599 | I89: 0 | J89: 0 | K89: 100 | L89: 0 | M89: 0 | N89: 0.75 | O89: 10000 | P89: 300 | Q89: 15000 | R89: 55 | S89: 16 | T89: 0.37 | U89: 300 | V89: 0 | W89: 180 | X89: 401^402 | Y89: 0^0 | Z89: 0^0 | AA89: 7 | AB89: 0 | AC89: yuzhibo | AD89: 10701 | AE89: 23^100 | AF89: 110 | AG89: t6128 | AH89: 3 | AI89: 1005 | AJ89: t4505 | AK89: 100 | AL89: meleeHit
A90: 10708 | B90: t2705 | C90: 3 | D90: 8 | E90: 5 | F90: 2 | G90: =FLOOR(G89*1.2,1) -> 3056 | H90: =FLOOR(H89*1.2,1) -> 1918 | I90: 0 | J90: 0 | K90: 100 | L90: 0 | M90: 0 | N90: 0.75 | O90: 10000 | P90: 300 | Q90: 15000 | R90: 66 | S90: 17 | T90: 0.37 | U90: 300 | V90: 0 | W90: 180 | X90: 401^402 | Y90: 0^0 | Z90: 0^0 | AA90: 7 | AB90: 0 | AC90: yuzhibo | AD90: 10701 | AE90: 23^100 | AF90: 110 | AG90: 0 | AH90: 3 | AI90: 1005 | AJ90: t4505 | AK90: 100 | AL90: meleeHit
A91: 10709 | B91: t2705 | C91: 3 | D91: 9 | E91: 5 | F91: 2 | G91: 3667 | H91: =FLOOR(H90*1.2,1) -> 2301 | I91: 0 | J91: 0 | K91: 100 | L91: 0 | M91: 0 | N91: 0.75 | O91: 10000 | P91: 300 | Q91: 15000 | R91: 79 | S91: 18 | T91: 0.37 | U91: 300 | V91: 0 | W91: 180 | X91: 401^402 | Y91: 0^0 | Z91: 0^0 | AA91: 7 | AB91: 0 | AC91: yuzhibo | AD91: 10701 | AE91: 23^100 | AF91: 110 | AG91: 0 | AH91: 3 | AI91: 1005 | AJ91: t4505 | AK91: 100 | AL91: meleeHit
A92: 10710 | B92: t2705 | C92: 3 | D92: 10 | E92: 5 | F92: 2 | G92: 4400 | H92: =FLOOR(H91*1.2,1) -> 2761 | I92: 0 | J92: 0 | K92: 100 | L92: 0 | M92: 0 | N92: 0.75 | O92: 10000 | P92: 300 | Q92: 15000 | R92: 94 | S92: 19 | T92: 0.37 | U92: 300 | V92: 0 | W92: 180 | X92: 401^402 | Y92: 0^0 | Z92: 0^0 | AA92: 7 | AB92: 0 | AC92: yuzhibo | AD92: 10701 | AE92: 23^100 | AF92: 110 | AG92: 0 | AH92: 3 | AI92: 1005 | AJ92: t4505 | AK92: 100 | AL92: meleeHit
A93: 10711 | B93: t2705 | C93: 3 | D93: 11 | E93: 6 | F93: 2 | G93: =FLOOR(G92*1.32,1) -> 5808 | H93: =FLOOR(H92*1.32,1) -> 3644 | I93: 0 | J93: 0 | K93: 100 | L93: 0 | M93: 0 | N93: 0.75 | O93: 10000 | P93: 300 | Q93: 15000 | R93: 112 | S93: 20 | T93: 0.37 | U93: 300 | V93: 0 | W93: 180 | X93: 401^402 | Y93: 0^0 | Z93: 0^0 | AA93: 7 | AB93: 0 | AC93: yuzhibo | AD93: 10701 | AE93: 23^100 | AF93: 110 | AG93: t6007 | AH93: 3 | AI93: 1005 | AJ93: t4505 | AK93: 100 | AL93: meleeHit
A94: 10712 | B94: t2705 | C94: 3 | D94: 12 | E94: 6 | F94: 2 | G94: 6969 | H94: =FLOOR(H93*1.2,1) -> 4372 | I94: 0 | J94: 0 | K94: 100 | L94: 0 | M94: 0 | N94: 0.75 | O94: 10000 | P94: 300 | Q94: 15000 | R94: 134 | S94: 21 | T94: 0.37 | U94: 300 | V94: 0 | W94: 180 | X94: 401^402 | Y94: 0^0 | Z94: 0^0 | AA94: 7 | AB94: 0 | AC94: yuzhibo | AD94: 10701 | AE94: 23^100 | AF94: 110 | AG94: 0 | AH94: 3 | AI94: 1005 | AJ94: t4505 | AK94: 100 | AL94: meleeHit
A95: 10713 | B95: t2705 | C95: 3 | D95: 13 | E95: 6 | F95: 2 | G95: 8362 | H95: =FLOOR(H94*1.2,1) -> 5246 | I95: 0 | J95: 0 | K95: 100 | L95: 0 | M95: 0 | N95: 0.75 | O95: 10000 | P95: 300 | Q95: 15000 | R95: 160 | S95: 22 | T95: 0.37 | U95: 300 | V95: 0 | W95: 180 | X95: 401^402 | Y95: 0^0 | Z95: 0^0 | AA95: 7 | AB95: 0 | AC95: yuzhibo | AD95: 10701 | AE95: 23^100 | AF95: 110 | AG95: 0 | AH95: 3 | AI95: 1005 | AJ95: t4505 | AK95: 100 | AL95: meleeHit
A96: 10714 | B96: t2705 | C96: 3 | D96: 14 | E96: 6 | F96: 2 | G96: 10034 | H96: =FLOOR(H95*1.2,1) -> 6295 | I96: 0 | J96: 0 | K96: 100 | L96: 0 | M96: 0 | N96: 0.75 | O96: 10000 | P96: 300 | Q96: 15000 | R96: 192 | S96: 23 | T96: 0.37 | U96: 300 | V96: 0 | W96: 180 | X96: 401^402 | Y96: 0^0 | Z96: 0^0 | AA96: 7 | AB96: 0 | AC96: yuzhibo | AD96: 10701 | AE96: 23^100 | AF96: 110 | AG96: 0 | AH96: 3 | AI96: 1005 | AJ96: t4505 | AK96: 100 | AL96: meleeHit
A97: 10715 | B97: t2705 | C97: 3 | D97: 15 | E97: 6 | F97: 2 | G97: 12040 | H97: =FLOOR(H96*1.2,1) -> 7554 | I97: 0 | J97: 0 | K97: 100 | L97: 0 | M97: 0 | N97: 0.75 | O97: 10000 | P97: 300 | Q97: 15000 | R97: 230 | S97: 24 | T97: 0.37 | U97: 300 | V97: 0 | W97: 180 | X97: 401^402 | Y97: 0^0 | Z97: 0^0 | AA97: 7 | AB97: 0 | AC97: yuzhibo | AD97: 10701 | AE97: 23^100 | AF97: 110 | AG97: 0 | AH97: 3 | AI97: 1005 | AJ97: t4505 | AK97: 100 | AL97: meleeHit
A98: 10716 | B98: t2705 | C98: 3 | D98: 16 | E98: 6 | F98: 2 | G98: 14448 | H98: =FLOOR(H97*1.2,1) -> 9064 | I98: 0 | J98: 0 | K98: 100 | L98: 0 | M98: 0 | N98: 0.75 | O98: 10000 | P98: 300 | Q98: 15000 | R98: 276 | S98: 25 | T98: 0.37 | U98: 300 | V98: 0 | W98: 70 | X98: 401^402 | Y98: 0^0 | Z98: 0^0 | AA98: 7 | AB98: 0 | AC98: yuzhibo | AD98: 10701 | AE98: 23^100 | AF98: 110 | AG98: 0 | AH98: 3 | AI98: 1005 | AJ98: t4505 | AK98: 100 | AL98: meleeHit
A99: 10801 | B99: t2706 | C99: 2 | D99: 1 | E99: 1 | F99: 1 | G99: 230 | H99: 0 | I99: 82 | J99: 0 | K99: 350 | L99: 10801 | M99: -50^260 | N99: 1 | O99: 10000 | P99: 300 | Q99: 15000 | R99: 16 | S99: 10 | T99: 0.33 | U99: 300 | V99: 0 | W99: 70 | X99: 501 | Y99: 15 | Z99: 5 | AA99: 6 | AB99: 0 | AC99: alading | AD99: 0 | AE99: 25^100 | AF99: 100 | AG99: 0 | AH99: 3 | AI99: 1006 | AJ99: t4506 | AK99: 100 | AL99: magicHit | AM99: 阿拉丁
A100: 10802 | B100: t2706 | C100: 2 | D100: 2 | E100: 2 | F100: 1 | G100: =FLOOR(G99*1.2,1) -> 276 | H100: 0 | I100: =FLOOR(I99*1.2,1) -> 98 | J100: 0 | K100: 350 | L100: 10801 | M100: -50^260 | N100: 1 | O100: 10000 | P100: 300 | Q100: 15000 | R100: =FLOOR(R99*1.2,1) -> 19 | S100: 12 | T100: 0.33 | U100: 300 | V100: 0 | W100: 70 | X100: 501 | Y100: 15 | Z100: 5 | AA100: 6 | AB100: 0 | AC100: alading | AD100: 0 | AE100: 25^100 | AF100: 100 | AG100: t6000 | AH100: 3 | AI100: 1006 | AJ100: t4506 | AK100: 100 | AL100: magicHit
A101: 10803 | B101: t2706 | C101: 2 | D101: 3 | E101: 3 | F101: 1 | G101: 331 | H101: 0 | I101: =FLOOR(I100*1.2,1) -> 117 | J101: 0 | K101: 350 | L101: 10801 | M101: -50^260 | N101: 1 | O101: 10000 | P101: 300 | Q101: 15000 | R101: 22 | S101: 14 | T101: 0.33 | U101: 300 | V101: 0 | W101: 70 | X101: 501 | Y101: 15 | Z101: 5 | AA101: 6 | AB101: 0 | AC101: alading | AD101: 0 | AE101: 25^100 | AF101: 100 | AG101: t6000 | AH101: 3 | AI101: 1006 | AJ101: t4506 | AK101: 100 | AL101: magicHit
A102: 10804 | B102: t2706 | C102: 2 | D102: 4 | E102: 4 | F102: 1 | G102: =FLOOR(G101*1.4,1) -> 463 | H102: 0 | I102: =FLOOR(I101*1.4,1) -> 163 | J102: 0 | K102: 350 | L102: 10801 | M102: -50^260 | N102: 1 | O102: 10000 | P102: 300 | Q102: 15000 | R102: 26 | S102: 16 | T102: 0.33 | U102: 300 | V102: 0 | W102: 70 | X102: 501^511 | Y102: 15^20 | Z102: 5^5 | AA102: 6 | AB102: 0 | AC102: alading | AD102: 0 | AE102: 25^100 | AF102: 100 | AG102: t6014 | AH102: 3 | AI102: 1006 | AJ102: t4506 | AK102: 100 | AL102: magicHit
A103: 10805 | B103: t2706 | C103: 2 | D103: 5 | E103: 4 | F103: 1 | G103: 555 | H103: 0 | I103: =FLOOR(I102*1.2,1) -> 195 | J103: 0 | K103: 350 | L103: 10801 | M103: -50^260 | N103: 1 | O103: 10000 | P103: 300 | Q103: 15000 | R103: 31 | S103: 19 | T103: 0.33 | U103: 300 | V103: 0 | W103: 70 | X103: 501^511 | Y103: 15^20 | Z103: 5^5 | AA103: 6 | AB103: 0 | AC103: alading | AD103: 0 | AE103: 25^100 | AF103: 100 | AG103: 0 | AH103: 3 | AI103: 1006 | AJ103: t4506 | AK103: 100 | AL103: magicHit
A104: 10806 | B104: t2706 | C104: 2 | D104: 6 | E104: 4 | F104: 1 | G104: 666 | H104: 0 | I104: =FLOOR(I103*1.2,1) -> 234 | J104: 0 | K104: 350 | L104: 10801 | M104: -50^260 | N104: 1 | O104: 10000 | P104: 300 | Q104: 15000 | R104: 37 | S104: 22 | T104: 0.33 | U104: 300 | V104: 0 | W104: 70 | X104: 501^511 | Y104: 15^20 | Z104: 5^5 | AA104: 6 | AB104: 0 | AC104: alading | AD104: 0 | AE104: 25^100 | AF104: 100 | AG104: 0 | AH104: 3 | AI104: 1006 | AJ104: t4506 | AK104: 100 | AL104: magicHit
A105: 10807 | B105: t2706 | C105: 2 | D105: 7 | E105: 5 | F105: 1 | G105: =FLOOR(G104*1.32,1) -> 879 | H105: 0 | I105: =FLOOR(I104*1.32,1) -> 308 | J105: 0 | K105: 350 | L105: 10801 | M105: -50^260 | N105: 1 | O105: 10000 | P105: 300 | Q105: 15000 | R105: 44 | S105: 26 | T105: 0.33 | U105: 300 | V105: 0 | W105: 70 | X105: 502^511 | Y105: 15^20 | Z105: 5^5 | AA105: 6 | AB105: 0 | AC105: alading | AD105: 0 | AE105: 25^100 | AF105: 100 | AG105: t6114 | AH105: 3 | AI105: 1006 | AJ105: t4506 | AK105: 100 | AL105: magicHit
A106: 10808 | B106: t2706 | C106: 2 | D106: 8 | E106: 5 | F106: 1 | G106: 1054 | H106: 0 | I106: =FLOOR(I105*1.2,1) -> 369 | J106: 0 | K106: 350 | L106: 10801 | M106: -50^260 | N106: 1 | O106: 10000 | P106: 300 | Q106: 15000 | R106: 52 | S106: 28 | T106: 0.33 | U106: 300 | V106: 0 | W106: 70 | X106: 502^511 | Y106: 15^20 | Z106: 5^5 | AA106: 6 | AB106: 0 | AC106: alading | AD106: 0 | AE106: 25^100 | AF106: 100 | AG106: 0 | AH106: 3 | AI106: 1006 | AJ106: t4506 | AK106: 100 | AL106: magicHit
A107: 10809 | B107: t2706 | C107: 2 | D107: 9 | E107: 5 | F107: 1 | G107: 1264 | H107: 0 | I107: =FLOOR(I106*1.2,1) -> 442 | J107: 0 | K107: 350 | L107: 10801 | M107: -50^260 | N107: 1 | O107: 10000 | P107: 300 | Q107: 15000 | R107: 62 | S107: 30 | T107: 0.33 | U107: 300 | V107: 0 | W107: 70 | X107: 502^511 | Y107: 15^20 | Z107: 5^5 | AA107: 6 | AB107: 0 | AC107: alading | AD107: 0 | AE107: 25^100 | AF107: 100 | AG107: 0 | AH107: 3 | AI107: 1006 | AJ107: t4506 | AK107: 100 | AL107: magicHit
A108: 10810 | B108: t2706 | C108: 2 | D108: 10 | E108: 5 | F108: 1 | G108: 1516 | H108: 0 | I108: =FLOOR(I107*1.2,1) -> 530 | J108: 0 | K108: 350 | L108: 10801 | M108: -50^260 | N108: 1 | O108: 10000 | P108: 300 | Q108: 15000 | R108: 74 | S108: 33 | T108: 0.33 | U108: 300 | V108: 0 | W108: 70 | X108: 502^511 | Y108: 15^20 | Z108: 5^5 | AA108: 6 | AB108: 0 | AC108: alading | AD108: 0 | AE108: 25^100 | AF108: 100 | AG108: 0 | AH108: 3 | AI108: 1006 | AJ108: t4506 | AK108: 100 | AL108: magicHit
A109: 10811 | B109: t2706 | C109: 2 | D109: 11 | E109: 6 | F109: 1 | G109: =FLOOR(G108*1.32,1) -> 2001 | H109: =FLOOR(H108*1.32,1) -> 0 | I109: =FLOOR(I108*1.32,1) -> 699 | J109: 0 | K109: 350 | L109: 10801 | M109: -50^260 | N109: 1 | O109: 10000 | P109: 300 | Q109: 15000 | R109: 88 | S109: 36 | T109: 0.33 | U109: 300 | V109: 0 | W109: 70 | X109: 502^511 | Y109: 15^20 | Z109: 5^5 | AA109: 6 | AB109: 0 | AC109: alading | AD109: 0 | AE109: 25^100 | AF109: 100 | AG109: t6007 | AH109: 3 | AI109: 1006 | AJ109: t4506 | AK109: 100 | AL109: magicHit
A110: 10812 | B110: t2706 | C110: 2 | D110: 12 | E110: 6 | F110: 1 | G110: 2401 | H110: 0 | I110: =FLOOR(I109*1.2,1) -> 838 | J110: 0 | K110: 350 | L110: 10801 | M110: -50^260 | N110: 1 | O110: 10000 | P110: 300 | Q110: 15000 | R110: 105 | S110: 39 | T110: 0.33 | U110: 300 | V110: 0 | W110: 70 | X110: 502^511 | Y110: 15^20 | Z110: 5^5 | AA110: 6 | AB110: 0 | AC110: alading | AD110: 0 | AE110: 25^100 | AF110: 100 | AG110: 0 | AH110: 3 | AI110: 1006 | AJ110: t4506 | AK110: 100 | AL110: magicHit
A111: 10813 | B111: t2706 | C111: 2 | D111: 13 | E111: 6 | F111: 1 | G111: 2881 | H111: 0 | I111: =FLOOR(I110*1.2,1) -> 1005 | J111: 0 | K111: 350 | L111: 10801 | M111: -50^260 | N111: 1 | O111: 10000 | P111: 300 | Q111: 15000 | R111: 126 | S111: 42 | T111: 0.33 | U111: 300 | V111: 0 | W111: 70 | X111: 502^511 | Y111: 15^20 | Z111: 5^5 | AA111: 6 | AB111: 0 | AC111: alading | AD111: 0 | AE111: 25^100 | AF111: 100 | AG111: 0 | AH111: 3 | AI111: 1006 | AJ111: t4506 | AK111: 100 | AL111: magicHit
A112: 10814 | B112: t2706 | C112: 2 | D112: 14 | E112: 6 | F112: 1 | G112: 3457 | H112: 0 | I112: =FLOOR(I111*1.2,1) -> 1206 | J112: 0 | K112: 350 | L112: 10801 | M112: -50^260 | N112: 1 | O112: 10000 | P112: 300 | Q112: 15000 | R112: 151 | S112: 46 | T112: 0.33 | U112: 300 | V112: 0 | W112: 70 | X112: 502^511 | Y112: 15^20 | Z112: 5^5 | AA112: 6 | AB112: 0 | AC112: alading | AD112: 0 | AE112: 25^100 | AF112: 100 | AG112: 0 | AH112: 3 | AI112: 1006 | AJ112: t4506 | AK112: 100 | AL112: magicHit
A113: 10815 | B113: t2706 | C113: 2 | D113: 15 | E113: 6 | F113: 1 | G113: 4148 | H113: 0 | I113: =FLOOR(I112*1.2,1) -> 1447 | J113: 0 | K113: 350 | L113: 10801 | M113: -50^260 | N113: 1 | O113: 10000 | P113: 300 | Q113: 15000 | R113: 181 | S113: 50 | T113: 0.33 | U113: 300 | V113: 0 | W113: 70 | X113: 502^511 | Y113: 15^20 | Z113: 5^5 | AA113: 6 | AB113: 0 | AC113: alading | AD113: 0 | AE113: 25^100 | AF113: 100 | AG113: 0 | AH113: 3 | AI113: 1006 | AJ113: t4506 | AK113: 100 | AL113: magicHit
A114: 10816 | B114: t2706 | C114: 2 | D114: 16 | E114: 6 | F114: 1 | G114: 4977 | H114: 0 | I114: =FLOOR(I113*1.2,1) -> 1736 | J114: 0 | K114: 350 | L114: 10801 | M114: -50^260 | N114: 1 | O114: 10000 | P114: 300 | Q114: 15000 | R114: 217 | S114: 55 | T114: 0.33 | U114: 300 | V114: 0 | W114: 70 | X114: 502^511 | Y114: 15^20 | Z114: 5^5 | AA114: 6 | AB114: 0 | AC114: alading | AD114: 0 | AE114: 25^100 | AF114: 100 | AG114: 0 | AH114: 3 | AI114: 1006 | AJ114: t4506 | AK114: 100 | AL114: magicHit
A115: 10901 | B115: t2707 | C115: 2 | D115: 1 | E115: 1 | F115: 1 | G115: 161 | H115: 0 | I115: 198 | J115: 0 | K115: 350 | L115: 10901 | M115: 194^302 | N115: 1.2 | O115: 10000 | P115: 200 | Q115: 15000 | R115: 16 | S115: 10 | T115: 0.33 | U115: 300 | V115: 0 | W115: 80 | X115: 601 | Y115: 25 | Z115: 5 | AA115: 7 | AB115: 0 | AC115: fudimo | AD115: 0 | AE115: 21^100 | AF115: 80 | AG115: 0 | AH115: 3 | AI115: 1007 | AJ115: t4507 | AK115: 100 | AL115: magicHit | AM115: 黑魔王
A116: 10902 | B116: t2707 | C116: 2 | D116: 2 | E116: 2 | F116: 1 | G116: =FLOOR(G115*1.2,1) -> 193 | H116: 0 | I116: =FLOOR(I115*1.2,1) -> 237 | J116: 0 | K116: 350 | L116: 10901 | M116: 194^302 | N116: 1.2 | O116: 10000 | P116: 200 | Q116: 15000 | R116: =FLOOR(R115*1.2,1) -> 19 | S116: 12 | T116: 0.33 | U116: 300 | V116: 0 | W116: 80 | X116: 601 | Y116: 25 | Z116: 5 | AA116: 7 | AB116: 0 | AC116: fudimo | AD116: 0 | AE116: 21^100 | AF116: 80 | AG116: t6000 | AH116: 3 | AI116: 1007 | AJ116: t4507 | AK116: 100 | AL116: magicHit
A117: 10903 | B117: t2707 | C117: 2 | D117: 3 | E117: 3 | F117: 1 | G117: 231 | H117: 0 | I117: 284 | J117: 0 | K117: 350 | L117: 10901 | M117: 194^302 | N117: 1.2 | O117: 10000 | P117: 200 | Q117: 15000 | R117: 22 | S117: 14 | T117: 0.33 | U117: 300 | V117: 0 | W117: 80 | X117: 601 | Y117: 25 | Z117: 5 | AA117: 7 | AB117: 0 | AC117: fudimo | AD117: 0 | AE117: 21^100 | AF117: 80 | AG117: t6000 | AH117: 3 | AI117: 1007 | AJ117: t4507 | AK117: 100 | AL117: magicHit
A118: 10904 | B118: t2707 | C118: 2 | D118: 4 | E118: 4 | F118: 1 | G118: =FLOOR(G117*1.4,1) -> 323 | H118: 0 | I118: =FLOOR(I117*1.4,1) -> 397 | J118: 0 | K118: 350 | L118: 10901 | M118: 194^302 | N118: 1.2 | O118: 10000 | P118: 200 | Q118: 15000 | R118: 26 | S118: 16 | T118: 0.33 | U118: 300 | V118: 0 | W118: 80 | X118: 601 | Y118: 20 | Z118: 5 | AA118: 7 | AB118: 0 | AC118: fudimo | AD118: 0 | AE118: 21^100 | AF118: 80 | AG118: t6015 | AH118: 3 | AI118: 1007 | AJ118: t4507 | AK118: 100 | AL118: magicHit
A119: 10905 | B119: t2707 | C119: 2 | D119: 5 | E119: 4 | F119: 1 | G119: 387 | H119: 0 | I119: 476 | J119: 0 | K119: 350 | L119: 10901 | M119: 194^302 | N119: 1.2 | O119: 10000 | P119: 200 | Q119: 15000 | R119: 31 | S119: 19 | T119: 0.33 | U119: 300 | V119: 0 | W119: 80 | X119: 601 | Y119: 20 | Z119: 5 | AA119: 7 | AB119: 0 | AC119: fudimo | AD119: 0 | AE119: 21^100 | AF119: 80 | AG119: 0 | AH119: 3 | AI119: 1007 | AJ119: t4507 | AK119: 100 | AL119: magicHit
A120: 10906 | B120: t2707 | C120: 2 | D120: 6 | E120: 4 | F120: 1 | G120: 464 | H120: 0 | I120: 571 | J120: 0 | K120: 350 | L120: 10901 | M120: 194^302 | N120: 1.2 | O120: 10000 | P120: 200 | Q120: 15000 | R120: 37 | S120: 22 | T120: 0.33 | U120: 300 | V120: 0 | W120: 80 | X120: 601 | Y120: 20 | Z120: 5 | AA120: 7 | AB120: 0 | AC120: fudimo | AD120: 0 | AE120: 21^100 | AF120: 80 | AG120: 0 | AH120: 3 | AI120: 1007 | AJ120: t4507 | AK120: 100 | AL120: magicHit
A121: 10907 | B121: t2707 | C121: 2 | D121: 7 | E121: 5 | F121: 1 | G121: =FLOOR(G120*1.32,1) -> 612 | H121: 0 | I121: =FLOOR(I120*1.32,1) -> 753 | J121: 0 | K121: 350 | L121: 10901 | M121: 194^302 | N121: 1.2 | O121: 10000 | P121: 200 | Q121: 15000 | R121: 44 | S121: 26 | T121: 0.33 | U121: 300 | V121: 0 | W121: 80 | X121: 602 | Y121: 20 | Z121: 5 | AA121: 7 | AB121: 0 | AC121: fudimo | AD121: 0 | AE121: 21^100 | AF121: 80 | AG121: t6115 | AH121: 3 | AI121: 1007 | AJ121: t4507 | AK121: 100 | AL121: magicHit
A122: 10908 | B122: t2707 | C122: 2 | D122: 8 | E122: 5 | F122: 1 | G122: 734 | H122: 0 | I122: 903 | J122: 0 | K122: 350 | L122: 10901 | M122: 194^302 | N122: 1.2 | O122: 10000 | P122: 200 | Q122: 15000 | R122: 52 | S122: 28 | T122: 0.33 | U122: 300 | V122: 0 | W122: 80 | X122: 602 | Y122: 20 | Z122: 5 | AA122: 7 | AB122: 0 | AC122: fudimo | AD122: 0 | AE122: 21^100 | AF122: 80 | AG122: 0 | AH122: 3 | AI122: 1007 | AJ122: t4507 | AK122: 100 | AL122: magicHit
A123: 10909 | B123: t2707 | C123: 2 | D123: 9 | E123: 5 | F123: 1 | G123: 880 | H123: 0 | I123: 1083 | J123: 0 | K123: 350 | L123: 10901 | M123: 194^302 | N123: 1.2 | O123: 10000 | P123: 200 | Q123: 15000 | R123: 62 | S123: 30 | T123: 0.33 | U123: 300 | V123: 0 | W123: 80 | X123: 602 | Y123: 20 | Z123: 5 | AA123: 7 | AB123: 0 | AC123: fudimo | AD123: 0 | AE123: 21^100 | AF123: 80 | AG123: 0 | AH123: 3 | AI123: 1007 | AJ123: t4507 | AK123: 100 | AL123: magicHit
A124: 10910 | B124: t2707 | C124: 2 | D124: 10 | E124: 5 | F124: 1 | G124: 1056 | H124: 0 | I124: 1299 | J124: 0 | K124: 350 | L124: 10901 | M124: 194^302 | N124: 1.2 | O124: 10000 | P124: 200 | Q124: 15000 | R124: 74 | S124: 33 | T124: 0.33 | U124: 300 | V124: 0 | W124: 80 | X124: 602 | Y124: 20 | Z124: 5 | AA124: 7 | AB124: 0 | AC124: fudimo | AD124: 0 | AE124: 21^100 | AF124: 80 | AG124: 0 | AH124: 3 | AI124: 1007 | AJ124: t4507 | AK124: 100 | AL124: magicHit
A125: 10911 | B125: t2707 | C125: 2 | D125: 11 | E125: 6 | F125: 1 | G125: =FLOOR(G124*1.32,1) -> 1393 | H125: =FLOOR(H124*1.32,1) -> 0 | I125: =FLOOR(I124*1.32,1) -> 1714 | J125: 0 | K125: 350 | L125: 10901 | M125: 194^302 | N125: 1.2 | O125: 10000 | P125: 200 | Q125: 15000 | R125: 88 | S125: 36 | T125: 0.33 | U125: 300 | V125: 0 | W125: 80 | X125: 602 | Y125: 20 | Z125: 5 | AA125: 7 | AB125: 0 | AC125: fudimo | AD125: 0 | AE125: 21^100 | AF125: 80 | AG125: t6007 | AH125: 3 | AI125: 1007 | AJ125: t4507 | AK125: 100 | AL125: magicHit
A126: 10912 | B126: t2707 | C126: 2 | D126: 12 | E126: 6 | F126: 1 | G126: 1671 | H126: 0 | I126: 2056 | J126: 0 | K126: 350 | L126: 10901 | M126: 194^302 | N126: 1.2 | O126: 10000 | P126: 200 | Q126: 15000 | R126: 105 | S126: 39 | T126: 0.33 | U126: 300 | V126: 0 | W126: 80 | X126: 602 | Y126: 20 | Z126: 5 | AA126: 7 | AB126: 0 | AC126: fudimo | AD126: 0 | AE126: 21^100 | AF126: 80 | AG126: 0 | AH126: 3 | AI126: 1007 | AJ126: t4507 | AK126: 100 | AL126: magicHit
A127: 10913 | B127: t2707 | C127: 2 | D127: 13 | E127: 6 | F127: 1 | G127: 2005 | H127: 0 | I127: 2467 | J127: 0 | K127: 350 | L127: 10901 | M127: 194^302 | N127: 1.2 | O127: 10000 | P127: 200 | Q127: 15000 | R127: 126 | S127: 42 | T127: 0.33 | U127: 300 | V127: 0 | W127: 80 | X127: 602 | Y127: 20 | Z127: 5 | AA127: 7 | AB127: 0 | AC127: fudimo | AD127: 0 | AE127: 21^100 | AF127: 80 | AG127: 0 | AH127: 3 | AI127: 1007 | AJ127: t4507 | AK127: 100 | AL127: magicHit
A128: 10914 | B128: t2707 | C128: 2 | D128: 14 | E128: 6 | F128: 1 | G128: 2406 | H128: 0 | I128: 2960 | J128: 0 | K128: 350 | L128: 10901 | M128: 194^302 | N128: 1.2 | O128: 10000 | P128: 200 | Q128: 15000 | R128: 151 | S128: 46 | T128: 0.33 | U128: 300 | V128: 0 | W128: 80 | X128: 602 | Y128: 20 | Z128: 5 | AA128: 7 | AB128: 0 | AC128: fudimo | AD128: 0 | AE128: 21^100 | AF128: 80 | AG128: 0 | AH128: 3 | AI128: 1007 | AJ128: t4507 | AK128: 100 | AL128: magicHit
A129: 10915 | B129: t2707 | C129: 2 | D129: 15 | E129: 6 | F129: 1 | G129: 2887 | H129: 0 | I129: 3552 | J129: 0 | K129: 350 | L129: 10901 | M129: 194^302 | N129: 1.2 | O129: 10000 | P129: 200 | Q129: 15000 | R129: 181 | S129: 50 | T129: 0.33 | U129: 300 | V129: 0 | W129: 80 | X129: 602 | Y129: 20 | Z129: 5 | AA129: 7 | AB129: 0 | AC129: fudimo | AD129: 0 | AE129: 21^100 | AF129: 80 | AG129: 0 | AH129: 3 | AI129: 1007 | AJ129: t4507 | AK129: 100 | AL129: magicHit
A130: 10916 | B130: t2707 | C130: 2 | D130: 16 | E130: 6 | F130: 1 | G130: 3464 | H130: 0 | I130: 4262 | J130: 0 | K130: 350 | L130: 10901 | M130: 194^302 | N130: 1.2 | O130: 10000 | P130: 200 | Q130: 15000 | R130: 217 | S130: 55 | T130: 0.33 | U130: 300 | V130: 0 | W130: 80 | X130: 602 | Y130: 20 | Z130: 5 | AA130: 7 | AB130: 0 | AC130: fudimo | AD130: 0 | AE130: 21^100 | AF130: 80 | AG130: 0 | AH130: 3 | AI130: 1007 | AJ130: t4507 | AK130: 100 | AL130: magicHit
A131: 11001 | B131: t2708 | C131: 2 | D131: 1 | E131: 1 | F131: 1 | G131: 165 | H131: 0 | I131: 66 | J131: 0 | K131: 350 | L131: 11001 | M131: 75^275 | N131: 1.2 | O131: 10000 | P131: 200 | Q131: 15000 | R131: 16 | S131: 10 | T131: 0.4 | U131: 300 | V131: 0 | W131: 90 | X131: 701 | Y131: 15 | Z131: 5 | AA131: 5 | AB131: 0 | AC131: mushi | AD131: 0 | AE131: 21^100 | AF131: 95 | AG131: 0 | AH131: 3 | AI131: 1008 | AJ131: t4508 | AK131: 100 | AL131: magicHit | AM131: 萨莉
A132: 11002 | B132: t2708 | C132: 2 | D132: 2 | E132: 2 | F132: 1 | G132: =FLOOR(G131*1.2,1) -> 198 | H132: 0 | I132: =FLOOR(I131*1.2,1) -> 79 | J132: 0 | K132: 350 | L132: 11001 | M132: 75^275 | N132: 1.2 | O132: 10000 | P132: 200 | Q132: 15000 | R132: =FLOOR(R131*1.2,1) -> 19 | S132: 12 | T132: 0.4 | U132: 300 | V132: 0 | W132: 90 | X132: 701 | Y132: 15 | Z132: 5 | AA132: 5 | AB132: 0 | AC132: mushi | AD132: 0 | AE132: 21^100 | AF132: 95 | AG132: t6000 | AH132: 3 | AI132: 1008 | AJ132: t4508 | AK132: 100 | AL132: magicHit
A133: 11003 | B133: t2708 | C133: 2 | D133: 3 | E133: 3 | F133: 1 | G133: 237 | H133: 0 | I133: 94 | J133: 0 | K133: 350 | L133: 11001 | M133: 75^275 | N133: 1.2 | O133: 10000 | P133: 200 | Q133: 15000 | R133: 22 | S133: 14 | T133: 0.4 | U133: 300 | V133: 0 | W133: 90 | X133: 701 | Y133: 15 | Z133: 5 | AA133: 5 | AB133: 0 | AC133: mushi | AD133: 0 | AE133: 21^100 | AF133: 95 | AG133: t6000 | AH133: 3 | AI133: 1008 | AJ133: t4508 | AK133: 100 | AL133: magicHit
A134: 11004 | B134: t2708 | C134: 2 | D134: 4 | E134: 4 | F134: 1 | G134: =FLOOR(G133*1.4,1) -> 331 | H134: 0 | I134: =FLOOR(I133*1.4,1) -> 131 | J134: 0 | K134: 350 | L134: 11001 | M134: 75^275 | N134: 1.2 | O134: 10000 | P134: 200 | Q134: 15000 | R134: 26 | S134: 16 | T134: 0.4 | U134: 300 | V134: 0 | W134: 90 | X134: 702 | Y134: 15 | Z134: 5 | AA134: 5 | AB134: 0 | AC134: mushi | AD134: 0 | AE134: 21^100 | AF134: 95 | AG134: t6016 | AH134: 3 | AI134: 1008 | AJ134: t4508 | AK134: 100 | AL134: magicHit
A135: 11005 | B135: t2708 | C135: 2 | D135: 5 | E135: 4 | F135: 1 | G135: 397 | H135: 0 | I135: 157 | J135: 0 | K135: 350 | L135: 11001 | M135: 75^275 | N135: 1.2 | O135: 10000 | P135: 200 | Q135: 15000 | R135: 31 | S135: 19 | T135: 0.4 | U135: 300 | V135: 0 | W135: 90 | X135: 702 | Y135: 15 | Z135: 5 | AA135: 5 | AB135: 0 | AC135: mushi | AD135: 0 | AE135: 21^100 | AF135: 95 | AG135: 0 | AH135: 3 | AI135: 1008 | AJ135: t4508 | AK135: 100 | AL135: magicHit
A136: 11006 | B136: t2708 | C136: 2 | D136: 6 | E136: 4 | F136: 1 | G136: 476 | H136: 0 | I136: 188 | J136: 0 | K136: 350 | L136: 11001 | M136: 75^275 | N136: 1.2 | O136: 10000 | P136: 200 | Q136: 15000 | R136: 37 | S136: 22 | T136: 0.4 | U136: 300 | V136: 0 | W136: 90 | X136: 702 | Y136: 15 | Z136: 5 | AA136: 5 | AB136: 0 | AC136: mushi | AD136: 0 | AE136: 21^100 | AF136: 95 | AG136: 0 | AH136: 3 | AI136: 1008 | AJ136: t4508 | AK136: 100 | AL136: magicHit
A137: 11007 | B137: t2708 | C137: 2 | D137: 7 | E137: 5 | F137: 1 | G137: =FLOOR(G136*1.32,1) -> 628 | H137: 0 | I137: =FLOOR(I136*1.32,1) -> 248 | J137: 0 | K137: 350 | L137: 11001 | M137: 75^275 | N137: 1.2 | O137: 10000 | P137: 200 | Q137: 15000 | R137: 44 | S137: 26 | T137: 0.4 | U137: 300 | V137: 0 | W137: 90 | X137: 702 | Y137: 10 | Z137: 5 | AA137: 5 | AB137: 0 | AC137: mushi | AD137: 0 | AE137: 21^100 | AF137: 95 | AG137: t6116 | AH137: 3 | AI137: 1008 | AJ137: t4508 | AK137: 100 | AL137: magicHit
A138: 11008 | B138: t2708 | C138: 2 | D138: 8 | E138: 5 | F138: 1 | G138: 753 | H138: 0 | I138: 297 | J138: 0 | K138: 350 | L138: 11001 | M138: 75^275 | N138: 1.2 | O138: 10000 | P138: 200 | Q138: 15000 | R138: 52 | S138: 28 | T138: 0.4 | U138: 300 | V138: 0 | W138: 90 | X138: 702 | Y138: 10 | Z138: 5 | AA138: 5 | AB138: 0 | AC138: mushi | AD138: 0 | AE138: 21^100 | AF138: 95 | AG138: 0 | AH138: 3 | AI138: 1008 | AJ138: t4508 | AK138: 100 | AL138: magicHit
A139: 11009 | B139: t2708 | C139: 2 | D139: 9 | E139: 5 | F139: 1 | G139: 903 | H139: 0 | I139: 356 | J139: 0 | K139: 350 | L139: 11001 | M139: 75^275 | N139: 1.2 | O139: 10000 | P139: 200 | Q139: 15000 | R139: 62 | S139: 30 | T139: 0.4 | U139: 300 | V139: 0 | W139: 90 | X139: 702 | Y139: 10 | Z139: 5 | AA139: 5 | AB139: 0 | AC139: mushi | AD139: 0 | AE139: 21^100 | AF139: 95 | AG139: 0 | AH139: 3 | AI139: 1008 | AJ139: t4508 | AK139: 100 | AL139: magicHit
A140: 11010 | B140: t2708 | C140: 2 | D140: 10 | E140: 5 | F140: 1 | G140: 1083 | H140: 0 | I140: 427 | J140: 0 | K140: 350 | L140: 11001 | M140: 75^275 | N140: 1.2 | O140: 10000 | P140: 200 | Q140: 15000 | R140: 74 | S140: 33 | T140: 0.4 | U140: 300 | V140: 0 | W140: 90 | X140: 702 | Y140: 10 | Z140: 5 | AA140: 5 | AB140: 0 | AC140: mushi | AD140: 0 | AE140: 21^100 | AF140: 95 | AG140: 0 | AH140: 3 | AI140: 1008 | AJ140: t4508 | AK140: 100 | AL140: magicHit
A141: 11011 | B141: t2708 | C141: 2 | D141: 11 | E141: 6 | F141: 1 | G141: =FLOOR(G140*1.32,1) -> 1429 | H141: =FLOOR(H140*1.32,1) -> 0 | I141: =FLOOR(I140*1.32,1) -> 563 | J141: 0 | K141: 350 | L141: 11001 | M141: 75^275 | N141: 1.2 | O141: 10000 | P141: 200 | Q141: 15000 | R141: 88 | S141: 36 | T141: 0.4 | U141: 300 | V141: 0 | W141: 90 | X141: 702 | Y141: 10 | Z141: 5 | AA141: 5 | AB141: 0 | AC141: mushi | AD141: 0 | AE141: 21^100 | AF141: 95 | AG141: t6007 | AH141: 3 | AI141: 1008 | AJ141: t4508 | AK141: 100 | AL141: magicHit
A142: 11012 | B142: t2708 | C142: 2 | D142: 12 | E142: 6 | F142: 1 | G142: 1714 | H142: 0 | I142: 675 | J142: 0 | K142: 350 | L142: 11001 | M142: 75^275 | N142: 1.2 | O142: 10000 | P142: 200 | Q142: 15000 | R142: 105 | S142: 39 | T142: 0.4 | U142: 300 | V142: 0 | W142: 90 | X142: 702 | Y142: 10 | Z142: 5 | AA142: 5 | AB142: 0 | AC142: mushi | AD142: 0 | AE142: 21^100 | AF142: 95 | AG142: 0 | AH142: 3 | AI142: 1008 | AJ142: t4508 | AK142: 100 | AL142: magicHit
A143: 11013 | B143: t2708 | C143: 2 | D143: 13 | E143: 6 | F143: 1 | G143: 2056 | H143: 0 | I143: 810 | J143: 0 | K143: 350 | L143: 11001 | M143: 75^275 | N143: 1.2 | O143: 10000 | P143: 200 | Q143: 15000 | R143: 126 | S143: 42 | T143: 0.4 | U143: 300 | V143: 0 | W143: 90 | X143: 702 | Y143: 10 | Z143: 5 | AA143: 5 | AB143: 0 | AC143: mushi | AD143: 0 | AE143: 21^100 | AF143: 95 | AG143: 0 | AH143: 3 | AI143: 1008 | AJ143: t4508 | AK143: 100 | AL143: magicHit
A144: 11014 | B144: t2708 | C144: 2 | D144: 14 | E144: 6 | F144: 1 | G144: 2467 | H144: 0 | I144: 972 | J144: 0 | K144: 350 | L144: 11001 | M144: 75^275 | N144: 1.2 | O144: 10000 | P144: 200 | Q144: 15000 | R144: 151 | S144: 46 | T144: 0.4 | U144: 300 | V144: 0 | W144: 90 | X144: 702 | Y144: 10 | Z144: 5 | AA144: 5 | AB144: 0 | AC144: mushi | AD144: 0 | AE144: 21^100 | AF144: 95 | AG144: 0 | AH144: 3 | AI144: 1008 | AJ144: t4508 | AK144: 100 | AL144: magicHit
A145: 11015 | B145: t2708 | C145: 2 | D145: 15 | E145: 6 | F145: 1 | G145: 2960 | H145: 0 | I145: 1166 | J145: 0 | K145: 350 | L145: 11001 | M145: 75^275 | N145: 1.2 | O145: 10000 | P145: 200 | Q145: 15000 | R145: 181 | S145: 50 | T145: 0.4 | U145: 300 | V145: 0 | W145: 90 | X145: 702 | Y145: 10 | Z145: 5 | AA145: 5 | AB145: 0 | AC145: mushi | AD145: 0 | AE145: 21^100 | AF145: 95 | AG145: 0 | AH145: 3 | AI145: 1008 | AJ145: t4508 | AK145: 100 | AL145: magicHit
A146: 11016 | B146: t2708 | C146: 2 | D146: 16 | E146: 6 | F146: 1 | G146: 3552 | H146: 0 | I146: 1399 | J146: 0 | K146: 350 | L146: 11001 | M146: 75^275 | N146: 1.2 | O146: 10000 | P146: 200 | Q146: 15000 | R146: 217 | S146: 55 | T146: 0.4 | U146: 300 | V146: 0 | W146: 90 | X146: 702 | Y146: 10 | Z146: 5 | AA146: 5 | AB146: 0 | AC146: mushi | AD146: 0 | AE146: 21^100 | AF146: 95 | AG146: 0 | AH146: 3 | AI146: 1008 | AJ146: t4508 | AK146: 100 | AL146: magicHit
A147: 11101 | B147: t2709 | C147: 1 | D147: 1 | E147: 1 | F147: 1 | G147: 669 | H147: 89 | I147: 0 | J147: 0 | K147: 100 | L147: 0 | M147: 0 | N147: 1 | O147: 10000 | P147: 300 | Q147: 15000 | R147: 30 | S147: 10 | T147: 0.29 | U147: 300 | V147: 0 | W147: 105 | X147: 801 | Y147: 20 | Z147: 5 | AA147: 4 | AB147: 0 | AC147: chenguohan | AD147: 11601 | AE147: 25^100 | AF147: 100 | AG147: 0 | AH147: 2 | AI147: 1009 | AJ147: t4509 | AK147: 100 | AL147: normalHit | AM147: 巨汉
A148: 11102 | B148: t2709 | C148: 1 | D148: 2 | E148: 2 | F148: 1 | G148: =FLOOR(G147*1.2,1) -> 802 | H148: =FLOOR(H147*1.2,1) -> 106 | I148: 0 | J148: 0 | K148: 100 | L148: 0 | M148: 0 | N148: 1 | O148: 10000 | P148: 300 | Q148: 15000 | R148: =FLOOR(R147*1.2,1) -> 36 | S148: 12 | T148: 0.29 | U148: 300 | V148: 0 | W148: 105 | X148: 801 | Y148: 20 | Z148: 5 | AA148: 4 | AB148: 0 | AC148: chenguohan | AD148: 11601 | AE148: 25^100 | AF148: 100 | AG148: t6000 | AH148: 2 | AI148: 1009 | AJ148: t4509 | AK148: 100 | AL148: normalHit
A149: 11103 | B149: t2709 | C149: 1 | D149: 3 | E149: 3 | F149: 1 | G149: 962 | H149: 127 | I149: 0 | J149: 0 | K149: 100 | L149: 0 | M149: 0 | N149: 1 | O149: 10000 | P149: 300 | Q149: 15000 | R149: 43 | S149: 14 | T149: 0.29 | U149: 300 | V149: 0 | W149: 105 | X149: 801 | Y149: 20 | Z149: 5 | AA149: 4 | AB149: 0 | AC149: chenguohan | AD149: 11601 | AE149: 25^100 | AF149: 100 | AG149: t6000 | AH149: 2 | AI149: 1009 | AJ149: t4509 | AK149: 100 | AL149: normalHit
A150: 11104 | B150: t2709 | C150: 1 | D150: 4 | E150: 4 | F150: 1 | G150: =FLOOR(G149*1.4,1) -> 1346 | H150: =FLOOR(H149*1.4,1) -> 177 | I150: 0 | J150: 0 | K150: 100 | L150: 0 | M150: 0 | N150: 1 | O150: 10000 | P150: 300 | Q150: 15000 | R150: =FLOOR(R149*1.32,1) -> 56 | S150: =FLOOR(S149*1.32,1) -> 18 | T150: 0.29 | U150: 300 | V150: 0 | W150: 105 | X150: 801 | Y150: 20 | Z150: 5 | AA150: 4 | AB150: 0 | AC150: chenguohan | AD150: 11601 | AE150: 25^100 | AF150: 100 | AG150: t6017 | AH150: 2 | AI150: 1009 | AJ150: t4509 | AK150: 100 | AL150: normalHit
A151: 11105 | B151: t2709 | C151: 1 | D151: 5 | E151: 4 | F151: 1 | G151: 1615 | H151: 212 | I151: 0 | J151: 0 | K151: 100 | L151: 0 | M151: 0 | N151: 1 | O151: 10000 | P151: 300 | Q151: 15000 | R151: 67 | S151: 21 | T151: 0.29 | U151: 300 | V151: 0 | W151: 105 | X151: 801 | Y151: 20 | Z151: 5 | AA151: 4 | AB151: 0 | AC151: chenguohan | AD151: 11601 | AE151: 25^100 | AF151: 100 | AG151: 0 | AH151: 2 | AI151: 1009 | AJ151: t4509 | AK151: 100 | AL151: normalHit
A152: 11106 | B152: t2709 | C152: 1 | D152: 6 | E152: 4 | F152: 1 | G152: 1938 | H152: 254 | I152: 0 | J152: 0 | K152: 100 | L152: 0 | M152: 0 | N152: 1 | O152: 10000 | P152: 300 | Q152: 15000 | R152: 80 | S152: 25 | T152: 0.29 | U152: 300 | V152: 0 | W152: 105 | X152: 801 | Y152: 20 | Z152: 5 | AA152: 4 | AB152: 0 | AC152: chenguohan | AD152: 11601 | AE152: 25^100 | AF152: 100 | AG152: 0 | AH152: 2 | AI152: 1009 | AJ152: t4509 | AK152: 100 | AL152: normalHit
A153: 11107 | B153: t2709 | C153: 1 | D153: 7 | E153: 5 | F153: 1 | G153: =FLOOR(G152*1.44,1) -> 2790 | H153: =FLOOR(H152*1.32,1) -> 335 | I153: 0 | J153: 0 | K153: 100 | L153: 0 | M153: 0 | N153: 1 | O153: 10000 | P153: 300 | Q153: 15000 | R153: 96 | S153: 30 | T153: 0.29 | U153: 300 | V153: 0 | W153: 105 | X153: 801 | Y153: 20 | Z153: 5 | AA153: 4 | AB153: 0 | AC153: chenguohan | AD153: 11601 | AE153: 25^100 | AF153: 100 | AG153: t6009 | AH153: 2 | AI153: 1009 | AJ153: t4509 | AK153: 100 | AL153: normalHit
A154: 11108 | B154: t2709 | C154: 1 | D154: 8 | E154: 5 | F154: 1 | G154: 3348 | H154: 402 | I154: 0 | J154: 0 | K154: 100 | L154: 0 | M154: 0 | N154: 1 | O154: 10000 | P154: 300 | Q154: 15000 | R154: 115 | S154: 36 | T154: 0.29 | U154: 300 | V154: 0 | W154: 105 | X154: 801 | Y154: 20 | Z154: 5 | AA154: 4 | AB154: 0 | AC154: chenguohan | AD154: 11601 | AE154: 25^100 | AF154: 100 | AG154: 0 | AH154: 2 | AI154: 1009 | AJ154: t4509 | AK154: 100 | AL154: normalHit
A155: 11109 | B155: t2709 | C155: 1 | D155: 9 | E155: 5 | F155: 1 | G155: 4017 | H155: 482 | I155: 0 | J155: 0 | K155: 100 | L155: 0 | M155: 0 | N155: 1 | O155: 10000 | P155: 300 | Q155: 15000 | R155: 138 | S155: 43 | T155: 0.29 | U155: 300 | V155: 0 | W155: 105 | X155: 801 | Y155: 20 | Z155: 5 | AA155: 4 | AB155: 0 | AC155: chenguohan | AD155: 11601 | AE155: 25^100 | AF155: 100 | AG155: 0 | AH155: 2 | AI155: 1009 | AJ155: t4509 | AK155: 100 | AL155: normalHit
A156: 11110 | B156: t2709 | C156: 1 | D156: 10 | E156: 5 | F156: 1 | G156: 4820 | H156: 578 | I156: =FLOOR(I155*1.32,1) -> 0 | J156: 0 | K156: 100 | L156: 0 | M156: 0 | N156: 1 | O156: 10000 | P156: 300 | Q156: 15000 | R156: 165 | S156: 51 | T156: 0.29 | U156: 300 | V156: 0 | W156: 105 | X156: 801 | Y156: 20 | Z156: 5 | AA156: 4 | AB156: 0 | AC156: chenguohan | AD156: 11601 | AE156: 25^100 | AF156: 100 | AG156: 0 | AH156: 2 | AI156: 1009 | AJ156: t4509 | AK156: 100 | AL156: normalHit
A157: 11111 | B157: t2709 | C157: 1 | D157: 11 | E157: 6 | F157: 1 | G157: =FLOOR(G156*1.32,1) -> 6362 | H157: =FLOOR(H156*1.32,1) -> 762 | I157: 0 | J157: 0 | K157: 100 | L157: 0 | M157: 0 | N157: 1 | O157: 10000 | P157: 300 | Q157: 15000 | R157: 198 | S157: 61 | T157: 0.29 | U157: 300 | V157: 0 | W157: 105 | X157: 801 | Y157: 20 | Z157: 5 | AA157: 4 | AB157: 0 | AC157: chenguohan | AD157: 11601 | AE157: 25^100 | AF157: 100 | AG157: t6007 | AH157: 2 | AI157: 1009 | AJ157: t4509 | AK157: 100 | AL157: normalHit
A158: 11112 | B158: t2709 | C158: 1 | D158: 12 | E158: 6 | F158: 1 | G158: 7634 | H158: 914 | I158: 0 | J158: 0 | K158: 100 | L158: 0 | M158: 0 | N158: 1 | O158: 10000 | P158: 300 | Q158: 15000 | R158: 237 | S158: 73 | T158: 0.29 | U158: 300 | V158: 0 | W158: 105 | X158: 801 | Y158: 20 | Z158: 5 | AA158: 4 | AB158: 0 | AC158: chenguohan | AD158: 11601 | AE158: 25^100 | AF158: 100 | AG158: 0 | AH158: 2 | AI158: 1009 | AJ158: t4509 | AK158: 100 | AL158: normalHit
A159: 11113 | B159: t2709 | C159: 1 | D159: 13 | E159: 6 | F159: 1 | G159: 9160 | H159: 1096 | I159: 0 | J159: 0 | K159: 100 | L159: 0 | M159: 0 | N159: 1 | O159: 10000 | P159: 300 | Q159: 15000 | R159: 284 | S159: 87 | T159: 0.29 | U159: 300 | V159: 0 | W159: 105 | X159: 801 | Y159: 20 | Z159: 5 | AA159: 4 | AB159: 0 | AC159: chenguohan | AD159: 11601 | AE159: 25^100 | AF159: 100 | AG159: 0 | AH159: 2 | AI159: 1009 | AJ159: t4509 | AK159: 100 | AL159: normalHit
A160: 11114 | B160: t2709 | C160: 1 | D160: 14 | E160: 6 | F160: 1 | G160: 10992 | H160: 1315 | I160: 0 | J160: 0 | K160: 100 | L160: 0 | M160: 0 | N160: 1 | O160: 10000 | P160: 300 | Q160: 15000 | R160: 340 | S160: 104 | T160: 0.29 | U160: 300 | V160: 0 | W160: 105 | X160: 801 | Y160: 20 | Z160: 5 | AA160: 4 | AB160: 0 | AC160: chenguohan | AD160: 11601 | AE160: 25^100 | AF160: 100 | AG160: 0 | AH160: 2 | AI160: 1009 | AJ160: t4509 | AK160: 100 | AL160: normalHit
A161: 11115 | B161: t2709 | C161: 1 | D161: 15 | E161: 6 | F161: 1 | G161: 13190 | H161: 1578 | I161: 0 | J161: 0 | K161: 100 | L161: 0 | M161: 0 | N161: 1 | O161: 10000 | P161: 300 | Q161: 15000 | R161: 408 | S161: 124 | T161: 0.29 | U161: 300 | V161: 0 | W161: 105 | X161: 801 | Y161: 20 | Z161: 5 | AA161: 4 | AB161: 0 | AC161: chenguohan | AD161: 11601 | AE161: 25^100 | AF161: 100 | AG161: 0 | AH161: 2 | AI161: 1009 | AJ161: t4509 | AK161: 100 | AL161: normalHit
A162: 11116 | B162: t2709 | C162: 1 | D162: 16 | E162: 6 | F162: 1 | G162: 15828 | H162: 1893 | I162: 0 | J162: 0 | K162: 100 | L162: 0 | M162: 0 | N162: 1 | O162: 10000 | P162: 300 | Q162: 15000 | R162: 489 | S162: 148 | T162: 0.29 | U162: 300 | V162: 0 | W162: 105 | X162: 801 | Y162: 20 | Z162: 5 | AA162: 4 | AB162: 0 | AC162: chenguohan | AD162: 11601 | AE162: 25^100 | AF162: 100 | AG162: 0 | AH162: 2 | AI162: 1009 | AJ162: t4509 | AK162: 100 | AL162: normalHit
A163: 11201 | B163: t2710 | C163: 3 | D163: 1 | E163: 1 | F163: 2 | G163: =调试区!S163 -> 1224 | H163: =调试区!T163 -> 278 | I163: 0 | J163: 0 | K163: 100 | L163: 0 | M163: 0 | N163: 0.8 | O163: 10000 | P163: 200 | Q163: 15000 | R163: 30 | S163: 10 | T163: 0.45 | U163: 300 | V163: 0 | W163: 150 | X163: 901 | Y163: 0 | Z163: 0 | AA163: 7 | AB163: 0 | AC163: tianshi | AD163: 11701 | AE163: 36^100 | AF163: 144 | AG163: 0 | AH163: 5 | AI163: 1010 | AJ163: t4510 | AK163: 100 | AL163: meleeHit | AM163: 奥利尔
A164: 11202 | B164: t2710 | C164: 3 | D164: 2 | E164: 2 | F164: 2 | G164: =FLOOR(G163*1.2,1) -> 1468 | H164: =FLOOR(H163*1.2,1) -> 333 | I164: 0 | J164: 0 | K164: 100 | L164: 0 | M164: 0 | N164: 0.8 | O164: 10000 | P164: 200 | Q164: 15000 | R164: =FLOOR(R163*1.2,1) -> 36 | S164: 12 | T164: 0.45 | U164: 300 | V164: 0 | W164: 150 | X164: 901 | Y164: 0 | Z164: 0 | AA164: 7 | AB164: 0 | AC164: tianshi | AD164: 11701 | AE164: 36^100 | AF164: 144 | AG164: t6000 | AH164: 5 | AI164: 1010 | AJ164: t4510 | AK164: 100 | AL164: meleeHit
A165: 11203 | B165: t2710 | C165: 3 | D165: 3 | E165: 3 | F165: 2 | G165: 1761 | H165: 399 | I165: 0 | J165: 0 | K165: 100 | L165: 0 | M165: 0 | N165: 0.8 | O165: 10000 | P165: 200 | Q165: 15000 | R165: 43 | S165: 14 | T165: 0.45 | U165: 300 | V165: 0 | W165: 150 | X165: 901 | Y165: 0 | Z165: 0 | AA165: 7 | AB165: 0 | AC165: tianshi | AD165: 11701 | AE165: 36^100 | AF165: 144 | AG165: t6001 | AH165: 5 | AI165: 1010 | AJ165: t4510 | AK165: 100 | AL165: meleeHit
A166: 11204 | B166: t2710 | C166: 3 | D166: 4 | E166: 4 | F166: 2 | G166: =FLOOR(G165*1.4,1) -> 2465 | H166: =FLOOR(H165*1.4,1) -> 558 | I166: 0 | J166: 0 | K166: 100 | L166: 0 | M166: 0 | N166: 0.8 | O166: 12000 | P166: 200 | Q166: 15000 | R166: 51 | S166: 16 | T166: 0.45 | U166: 300 | V166: 0 | W166: 150 | X166: 901 | Y166: 0 | Z166: 0 | AA166: 7 | AB166: 0 | AC166: tianshi | AD166: 11701 | AE166: 36^100 | AF166: 144 | AG166: t6019 | AH166: 5 | AI166: 1010 | AJ166: t4510 | AK166: 100 | AL166: meleeHit
A167: 11205 | B167: t2710 | C167: 3 | D167: 5 | E167: 4 | F167: 2 | G167: 2958 | H167: 669 | I167: 0 | J167: 0 | K167: 100 | L167: 0 | M167: 0 | N167: 0.8 | O167: 12000 | P167: 200 | Q167: 15000 | R167: 61 | S167: 18 | T167: 0.45 | U167: 300 | V167: 0 | W167: 150 | X167: 901 | Y167: 0 | Z167: 0 | AA167: 7 | AB167: 0 | AC167: tianshi | AD167: 11701 | AE167: 36^100 | AF167: 144 | AG167: 0 | AH167: 5 | AI167: 1010 | AJ167: t4510 | AK167: 100 | AL167: meleeHit
A168: 11206 | B168: t2710 | C168: 3 | D168: 6 | E168: 4 | F168: 2 | G168: 3549 | H168: 802 | I168: 0 | J168: 0 | K168: 100 | L168: 0 | M168: 0 | N168: 0.8 | O168: 12000 | P168: 200 | Q168: 15000 | R168: 73 | S168: 20 | T168: 0.45 | U168: 300 | V168: 0 | W168: 150 | X168: 901 | Y168: 0 | Z168: 0 | AA168: 7 | AB168: 0 | AC168: tianshi | AD168: 11701 | AE168: 36^100 | AF168: 144 | AG168: 0 | AH168: 5 | AI168: 1010 | AJ168: t4510 | AK168: 100 | AL168: meleeHit
A169: 11207 | B169: t2710 | C169: 3 | D169: 7 | E169: 5 | F169: 2 | G169: =FLOOR(G168*1.32,1) -> 4684 | H169: =FLOOR(H168*1.32,1) -> 1058 | I169: 0 | J169: 0 | K169: 100 | L169: 0 | M169: 0 | N169: 0.8 | O169: 12000 | P169: 200 | Q169: 15000 | R169: 87 | S169: 22 | T169: 0.45 | U169: 300 | V169: 0 | W169: 150 | X169: 901^902 | Y169: 0^0 | Z169: 0^0 | AA169: 7 | AB169: 0 | AC169: tianshi | AD169: 11701 | AE169: 36^100 | AF169: 144 | AG169: t6119 | AH169: 5 | AI169: 1010 | AJ169: t4510 | AK169: 100 | AL169: meleeHit
A170: 11208 | B170: t2710 | C170: 3 | D170: 8 | E170: 5 | F170: 2 | G170: 5620 | H170: 1269 | I170: 0 | J170: 0 | K170: 100 | L170: 0 | M170: 0 | N170: 0.8 | O170: 12000 | P170: 200 | Q170: 15000 | R170: 104 | S170: 24 | T170: 0.45 | U170: 300 | V170: 0 | W170: 150 | X170: 901^902 | Y170: 0^0 | Z170: 0^0 | AA170: 7 | AB170: 0 | AC170: tianshi | AD170: 11701 | AE170: 36^100 | AF170: 144 | AG170: 0 | AH170: 5 | AI170: 1010 | AJ170: t4510 | AK170: 100 | AL170: meleeHit
A171: 11209 | B171: t2710 | C171: 3 | D171: 9 | E171: 5 | F171: 2 | G171: 6744 | H171: 1522 | I171: 0 | J171: 0 | K171: 100 | L171: 0 | M171: 0 | N171: 0.8 | O171: 12000 | P171: 200 | Q171: 15000 | R171: 124 | S171: 26 | T171: 0.45 | U171: 300 | V171: 0 | W171: 150 | X171: 901^902 | Y171: 0^0 | Z171: 0^0 | AA171: 7 | AB171: 0 | AC171: tianshi | AD171: 11701 | AE171: 36^100 | AF171: 144 | AG171: 0 | AH171: 5 | AI171: 1010 | AJ171: t4510 | AK171: 100 | AL171: meleeHit
A172: 11210 | B172: t2710 | C172: 3 | D172: 10 | E172: 5 | F172: 2 | G172: 8092 | H172: 1826 | I172: =FLOOR(I171*1.32,1) -> 0 | J172: 0 | K172: 100 | L172: 0 | M172: 0 | N172: 0.8 | O172: 12000 | P172: 200 | Q172: 15000 | R172: 148 | S172: 28 | T172: 0.45 | U172: 300 | V172: 0 | W172: 150 | X172: 901^902 | Y172: 0^0 | Z172: 0^0 | AA172: 7 | AB172: 0 | AC172: tianshi | AD172: 11701 | AE172: 36^100 | AF172: 144 | AG172: 0 | AH172: 5 | AI172: 1010 | AJ172: t4510 | AK172: 100 | AL172: meleeHit
A173: 11211 | B173: t2710 | C173: 3 | D173: 11 | E173: 6 | F173: 2 | G173: =FLOOR(G172*1.32,1) -> 10681 | H173: =FLOOR(H172*1.32,1) -> 2410 | I173: 0 | J173: 0 | K173: 100 | L173: 0 | M173: 0 | N173: 0.8 | O173: 12000 | P173: 200 | Q173: 15000 | R173: 177 | S173: 30 | T173: 0.45 | U173: 300 | V173: 0 | W173: 150 | X173: 901^902 | Y173: 0^0 | Z173: 0^0 | AA173: 7 | AB173: 0 | AC173: tianshi | AD173: 11701 | AE173: 36^100 | AF173: 144 | AG173: t6007 | AH173: 5 | AI173: 1010 | AJ173: t4510 | AK173: 100 | AL173: meleeHit
A174: 11212 | B174: t2710 | C174: 3 | D174: 12 | E174: 6 | F174: 2 | G174: 12817 | H174: 2892 | I174: 0 | J174: 0 | K174: 100 | L174: 0 | M174: 0 | N174: 0.8 | O174: 12000 | P174: 200 | Q174: 15000 | R174: 212 | S174: 32 | T174: 0.45 | U174: 300 | V174: 0 | W174: 150 | X174: 901^902 | Y174: 0^0 | Z174: 0^0 | AA174: 7 | AB174: 0 | AC174: tianshi | AD174: 11701 | AE174: 36^100 | AF174: 144 | AG174: 0 | AH174: 5 | AI174: 1010 | AJ174: t4510 | AK174: 100 | AL174: meleeHit
A175: 11213 | B175: t2710 | C175: 3 | D175: 13 | E175: 6 | F175: 2 | G175: 15380 | H175: 3470 | I175: 0 | J175: 0 | K175: 100 | L175: 0 | M175: 0 | N175: 0.8 | O175: 12000 | P175: 200 | Q175: 15000 | R175: 254 | S175: 34 | T175: 0.45 | U175: 300 | V175: 0 | W175: 150 | X175: 901^902 | Y175: 0^0 | Z175: 0^0 | AA175: 7 | AB175: 0 | AC175: tianshi | AD175: 11701 | AE175: 36^100 | AF175: 144 | AG175: 0 | AH175: 5 | AI175: 1010 | AJ175: t4510 | AK175: 100 | AL175: meleeHit
A176: 11214 | B176: t2710 | C176: 3 | D176: 14 | E176: 6 | F176: 2 | G176: 18456 | H176: 4164 | I176: 0 | J176: 0 | K176: 100 | L176: 0 | M176: 0 | N176: 0.8 | O176: 12000 | P176: 200 | Q176: 15000 | R176: 304 | S176: 36 | T176: 0.45 | U176: 300 | V176: 0 | W176: 150 | X176: 901^902 | Y176: 0^0 | Z176: 0^0 | AA176: 7 | AB176: 0 | AC176: tianshi | AD176: 11701 | AE176: 36^100 | AF176: 144 | AG176: 0 | AH176: 5 | AI176: 1010 | AJ176: t4510 | AK176: 100 | AL176: meleeHit
A177: 11215 | B177: t2710 | C177: 3 | D177: 15 | E177: 6 | F177: 2 | G177: 22147 | H177: 4996 | I177: 0 | J177: 0 | K177: 100 | L177: 0 | M177: 0 | N177: 0.8 | O177: 12000 | P177: 200 | Q177: 15000 | R177: 364 | S177: 38 | T177: 0.45 | U177: 300 | V177: 0 | W177: 150 | X177: 901^902 | Y177: 0^0 | Z177: 0^0 | AA177: 7 | AB177: 0 | AC177: tianshi | AD177: 11701 | AE177: 36^100 | AF177: 144 | AG177: 0 | AH177: 5 | AI177: 1010 | AJ177: t4510 | AK177: 100 | AL177: meleeHit
A178: 11216 | B178: t2710 | C178: 3 | D178: 16 | E178: 6 | F178: 2 | G178: 26576 | H178: 5995 | I178: 0 | J178: 0 | K178: 100 | L178: 0 | M178: 0 | N178: 0.8 | O178: 12000 | P178: 200 | Q178: 15000 | R178: 436 | S178: 40 | T178: 0.45 | U178: 300 | V178: 0 | W178: 150 | X178: 901^902 | Y178: 0^0 | Z178: 0^0 | AA178: 7 | AB178: 0 | AC178: tianshi | AD178: 11701 | AE178: 36^100 | AF178: 144 | AG178: 0 | AH178: 5 | AI178: 1010 | AJ178: t4510 | AK178: 100 | AL178: meleeHit
A179: 11301 | B179: t2711 | C179: 2 | D179: 1 | E179: 1 | F179: 1 | G179: 220 | H179: 0 | I179: 44 | J179: 0 | K179: 350 | L179: 11301 | M179: -100^335 | N179: 1.2 | O179: 10000 | P179: 100 | Q179: 15000 | R179: 16 | S179: 10 | T179: 0.33 | U179: 300 | V179: 0 | W179: 85 | X179: 1001 | Y179: 15 | Z179: 5 | AA179: 5 | AB179: 0 | AC179: saman | AD179: 0 | AE179: 22^100 | AF179: 100 | AG179: 0 | AH179: 5 | AI179: 1011 | AJ179: t4511 | AK179: 100 | AL179: magicHit | AM179: 玛法里奥
A180: 11302 | B180: t2711 | C180: 2 | D180: 2 | E180: 2 | F180: 1 | G180: =FLOOR(G179*1.2,1) -> 264 | H180: 0 | I180: =FLOOR(I179*1.2,1) -> 52 | J180: 0 | K180: 350 | L180: 11301 | M180: -100^335 | N180: 1.2 | O180: 10000 | P180: 100 | Q180: 15000 | R180: =FLOOR(R179*1.2,1) -> 19 | S180: 12 | T180: 0.33 | U180: 300 | V180: 0 | W180: 85 | X180: 1001 | Y180: 15 | Z180: 5 | AA180: 5 | AB180: 0 | AC180: saman | AD180: 0 | AE180: 22^100 | AF180: 100 | AG180: t6000 | AH180: 5 | AI180: 1011 | AJ180: t4511 | AK180: 100 | AL180: magicHit
A181: 11303 | B181: t2711 | C181: 2 | D181: 3 | E181: 3 | F181: 1 | G181: =FLOOR(G180*1.2,1) -> 316 | H181: 0 | I181: 62 | J181: 0 | K181: 350 | L181: 11301 | M181: -100^335 | N181: 1.2 | O181: 10000 | P181: 100 | Q181: 15000 | R181: 22 | S181: 14 | T181: 0.33 | U181: 300 | V181: 0 | W181: 85 | X181: 1001 | Y181: 15 | Z181: 5 | AA181: 5 | AB181: 0 | AC181: saman | AD181: 0 | AE181: 22^100 | AF181: 100 | AG181: t6000 | AH181: 5 | AI181: 1011 | AJ181: t4511 | AK181: 100 | AL181: magicHit
A182: 11304 | B182: t2711 | C182: 2 | D182: 4 | E182: 4 | F182: 1 | G182: =FLOOR(G181*1.61,1) -> 508 | H182: 0 | I182: =FLOOR(I181*1.4,1) -> 86 | J182: 0 | K182: 350 | L182: 11301 | M182: -100^335 | N182: 1.2 | O182: 10000 | P182: 100 | Q182: 15000 | R182: 26 | S182: 16 | T182: 0.33 | U182: 300 | V182: 0 | W182: 85 | X182: 1001 | Y182: 15 | Z182: 5 | AA182: 5 | AB182: 0 | AC182: saman | AD182: 0 | AE182: 22^100 | AF182: 100 | AG182: t6132 | AH182: 5 | AI182: 1011 | AJ182: t4511 | AK182: 100 | AL182: magicHit
A183: 11305 | B183: t2711 | C183: 2 | D183: 5 | E183: 4 | F183: 1 | G183: =FLOOR(G182*1.2,1) -> 609 | H183: 0 | I183: 103 | J183: 0 | K183: 350 | L183: 11301 | M183: -100^335 | N183: 1.2 | O183: 10000 | P183: 100 | Q183: 15000 | R183: 31 | S183: 19 | T183: 0.33 | U183: 300 | V183: 0 | W183: 85 | X183: 1001 | Y183: 15 | Z183: 5 | AA183: 5 | AB183: 0 | AC183: saman | AD183: 0 | AE183: 22^100 | AF183: 100 | AG183: 0 | AH183: 5 | AI183: 1011 | AJ183: t4511 | AK183: 100 | AL183: magicHit
A184: 11306 | B184: t2711 | C184: 2 | D184: 6 | E184: 4 | F184: 1 | G184: 730 | H184: 0 | I184: 123 | J184: 0 | K184: 350 | L184: 11301 | M184: -100^335 | N184: 1.2 | O184: 10000 | P184: 100 | Q184: 15000 | R184: 37 | S184: 22 | T184: 0.33 | U184: 300 | V184: 0 | W184: 85 | X184: 1001 | Y184: 15 | Z184: 5 | AA184: 5 | AB184: 0 | AC184: saman | AD184: 0 | AE184: 22^100 | AF184: 100 | AG184: 0 | AH184: 5 | AI184: 1011 | AJ184: t4511 | AK184: 100 | AL184: magicHit
A185: 11307 | B185: t2711 | C185: 2 | D185: 7 | E185: 5 | F185: 1 | G185: =FLOOR(G184*1.32,1) -> 963 | H185: 0 | I185: =FLOOR(I184*1.32,1) -> 162 | J185: 0 | K185: 350 | L185: 11301 | M185: -100^335 | N185: 1.2 | O185: 10000 | P185: 100 | Q185: 15000 | R185: 44 | S185: 26 | T185: 0.33 | U185: 300 | V185: 0 | W185: 85 | X185: 1001^1002 | Y185: 15^30 | Z185: 5^5 | AA185: 5 | AB185: 0 | AC185: saman | AD185: 0 | AE185: 22^100 | AF185: 100 | AG185: t6124 | AH185: 5 | AI185: 1011 | AJ185: t4511 | AK185: 100 | AL185: magicHit
A186: 11308 | B186: t2711 | C186: 2 | D186: 8 | E186: 5 | F186: 1 | G186: 1155 | H186: 0 | I186: 194 | J186: 0 | K186: 350 | L186: 11301 | M186: -100^335 | N186: 1.2 | O186: 10000 | P186: 100 | Q186: 15000 | R186: 52 | S186: 28 | T186: 0.33 | U186: 300 | V186: 0 | W186: 85 | X186: 1001^1002 | Y186: 15^30 | Z186: 5^5 | AA186: 5 | AB186: 0 | AC186: saman | AD186: 0 | AE186: 22^100 | AF186: 100 | AG186: 0 | AH186: 5 | AI186: 1011 | AJ186: t4511 | AK186: 100 | AL186: magicHit
A187: 11309 | B187: t2711 | C187: 2 | D187: 9 | E187: 5 | F187: 1 | G187: 1386 | H187: 0 | I187: 232 | J187: 0 | K187: 350 | L187: 11301 | M187: -100^335 | N187: 1.2 | O187: 10000 | P187: 100 | Q187: 15000 | R187: 62 | S187: 30 | T187: 0.33 | U187: 300 | V187: 0 | W187: 85 | X187: 1001^1002 | Y187: 15^30 | Z187: 5^5 | AA187: 5 | AB187: 0 | AC187: saman | AD187: 0 | AE187: 22^100 | AF187: 100 | AG187: 0 | AH187: 5 | AI187: 1011 | AJ187: t4511 | AK187: 100 | AL187: magicHit
A188: 11310 | B188: t2711 | C188: 2 | D188: 10 | E188: 5 | F188: 1 | G188: 1663 | H188: 0 | I188: 278 | J188: 0 | K188: 350 | L188: 11301 | M188: -100^335 | N188: 1.2 | O188: 10000 | P188: 100 | Q188: 15000 | R188: 74 | S188: 33 | T188: 0.33 | U188: 300 | V188: 0 | W188: 85 | X188: 1001^1002 | Y188: 15^30 | Z188: 5^5 | AA188: 5 | AB188: 0 | AC188: saman | AD188: 0 | AE188: 22^100 | AF188: 100 | AG188: 0 | AH188: 5 | AI188: 1011 | AJ188: t4511 | AK188: 100 | AL188: magicHit
A189: 11311 | B189: t2711 | C189: 2 | D189: 11 | E189: 6 | F189: 1 | G189: =FLOOR(G188*1.32,1) -> 2195 | H189: =FLOOR(H188*1.32,1) -> 0 | I189: =FLOOR(I188*1.32,1) -> 366 | J189: 0 | K189: 350 | L189: 11301 | M189: -100^335 | N189: 1.2 | O189: 10000 | P189: 100 | Q189: 15000 | R189: 88 | S189: 36 | T189: 0.33 | U189: 300 | V189: 0 | W189: 85 | X189: 1001^1002 | Y189: 15^30 | Z189: 5^5 | AA189: 5 | AB189: 0 | AC189: saman | AD189: 0 | AE189: 22^100 | AF189: 100 | AG189: t6007 | AH189: 5 | AI189: 1011 | AJ189: t4511 | AK189: 100 | AL189: magicHit
A190: 11312 | B190: t2711 | C190: 2 | D190: 12 | E190: 6 | F190: 1 | G190: 2634 | H190: 0 | I190: 439 | J190: 0 | K190: 350 | L190: 11301 | M190: -100^335 | N190: 1.2 | O190: 10000 | P190: 100 | Q190: 15000 | R190: 105 | S190: 39 | T190: 0.33 | U190: 300 | V190: 0 | W190: 85 | X190: 1001^1002 | Y190: 15^30 | Z190: 5^5 | AA190: 5 | AB190: 0 | AC190: saman | AD190: 0 | AE190: 22^100 | AF190: 100 | AG190: 0 | AH190: 5 | AI190: 1011 | AJ190: t4511 | AK190: 100 | AL190: magicHit
A191: 11313 | B191: t2711 | C191: 2 | D191: 13 | E191: 6 | F191: 1 | G191: 3160 | H191: 0 | I191: 526 | J191: 0 | K191: 350 | L191: 11301 | M191: -100^335 | N191: 1.2 | O191: 10000 | P191: 100 | Q191: 15000 | R191: 126 | S191: 42 | T191: 0.33 | U191: 300 | V191: 0 | W191: 85 | X191: 1001^1002 | Y191: 15^30 | Z191: 5^5 | AA191: 5 | AB191: 0 | AC191: saman | AD191: 0 | AE191: 22^100 | AF191: 100 | AG191: 0 | AH191: 5 | AI191: 1011 | AJ191: t4511 | AK191: 100 | AL191: magicHit
A192: 11314 | B192: t2711 | C192: 2 | D192: 14 | E192: 6 | F192: 1 | G192: 3792 | H192: 0 | I192: 631 | J192: 0 | K192: 350 | L192: 11301 | M192: -100^335 | N192: 1.2 | O192: 10000 | P192: 100 | Q192: 15000 | R192: 151 | S192: 46 | T192: 0.33 | U192: 300 | V192: 0 | W192: 85 | X192: 1001^1002 | Y192: 15^30 | Z192: 5^5 | AA192: 5 | AB192: 0 | AC192: saman | AD192: 0 | AE192: 22^100 | AF192: 100 | AG192: 0 | AH192: 5 | AI192: 1011 | AJ192: t4511 | AK192: 100 | AL192: magicHit
A193: 11315 | B193: t2711 | C193: 2 | D193: 15 | E193: 6 | F193: 1 | G193: 4550 | H193: 0 | I193: 757 | J193: 0 | K193: 350 | L193: 11301 | M193: -100^335 | N193: 1.2 | O193: 10000 | P193: 100 | Q193: 15000 | R193: 181 | S193: 50 | T193: 0.33 | U193: 300 | V193: 0 | W193: 85 | X193: 1001^1002 | Y193: 15^30 | Z193: 5^5 | AA193: 5 | AB193: 0 | AC193: saman | AD193: 0 | AE193: 22^100 | AF193: 100 | AG193: 0 | AH193: 5 | AI193: 1011 | AJ193: t4511 | AK193: 100 | AL193: magicHit
A194: 11316 | B194: t2711 | C194: 2 | D194: 16 | E194: 6 | F194: 1 | G194: 5460 | H194: 0 | I194: 908 | J194: 0 | K194: 350 | L194: 11301 | M194: -100^335 | N194: 1.2 | O194: 10000 | P194: 100 | Q194: 15000 | R194: 217 | S194: 55 | T194: 0.33 | U194: 300 | V194: 0 | W194: 85 | X194: 1001^1002 | Y194: 15^30 | Z194: 5^5 | AA194: 5 | AB194: 0 | AC194: saman | AD194: 0 | AE194: 22^100 | AF194: 100 | AG194: 0 | AH194: 5 | AI194: 1011 | AJ194: t4511 | AK194: 100 | AL194: magicHit
A195: 11401 | B195: 图腾 | C195: 0 | D195: 0 | E195: 0 | F195: 3 | G195: 5000 | H195: 0 | I195: 0 | J195: 0 | K195: 1100 | L195: 0 | M195: 0 | N195: 9999 | O195: 999900 | P195: 0 | Q195: 0 | R195: 10000 | S195: 10000 | T195: 9999 | U195: 0 | V195: 0 | W195: 0 | X195: 1101 | Y195: 0 | Z195: 0 | AA195: 0 | AB195: 10 | AC195: tuteng | AD195: 0 | AE195: 20^100 | AF195: 100 | AG195: 0 | AH195: 0 | AI195: 1 | AJ195: 0 | AK195: 100 | AL195: 0 | AM195: 图腾
A196: 11501 | B196: t2712 | C196: 4 | D196: 1 | E196: 1 | F196: 1 | G196: 220 | H196: 110 | I196: 0 | J196: 0 | K196: 450 | L196: 11501 | M196: 207^188 | N196: 1 | O196: 10000 | P196: 500 | Q196: 15000 | R196: 15 | S196: 10 | T196: 0.36 | U196: 300 | V196: 0 | W196: 150 | X196: 0 | Y196: 0 | Z196: 0 | AA196: 5 | AB196: 0 | AC196: yuelunche | AD196: 11701 | AE196: 20^100 | AF196: 95 | AG196: 0 | AH196: 5 | AI196: 1012 | AJ196: t4512 | AK196: 100 | AL196: normalHit | AM196: 露娜
A197: 11502 | B197: t2712 | C197: 4 | D197: 2 | E197: 2 | F197: 1 | G197: =FLOOR(G196*1.2,1) -> 264 | H197: =FLOOR(H196*1.2,1) -> 132 | I197: 0 | J197: 0 | K197: 450 | L197: 11501 | M197: 207^188 | N197: 1 | O197: 10000 | P197: 500 | Q197: 15000 | R197: =FLOOR(R196*1.2,1) -> 18 | S197: 11 | T197: 0.36 | U197: 300 | V197: 0 | W197: 150 | X197: 0 | Y197: 0 | Z197: 0 | AA197: 5 | AB197: 0 | AC197: yuelunche | AD197: 11701 | AE197: 20^100 | AF197: 95 | AG197: t6000 | AH197: 5 | AI197: 1012 | AJ197: t4512 | AK197: 100 | AL197: normalHit
A198: 11503 | B198: t2712 | C198: 4 | D198: 3 | E198: 3 | F198: 1 | G198: =FLOOR(G197*1.2,1) -> 316 | H198: =FLOOR(H197*1.2,1) -> 158 | I198: 0 | J198: 0 | K198: 450 | L198: 11501 | M198: 207^188 | N198: 1 | O198: 10000 | P198: 500 | Q198: 15000 | R198: 21 | S198: 12 | T198: 0.36 | U198: 300 | V198: 0 | W198: 150 | X198: 0 | Y198: 0 | Z198: 0 | AA198: 5 | AB198: 0 | AC198: yuelunche | AD198: 11701 | AE198: 20^100 | AF198: 95 | AG198: t6000 | AH198: 5 | AI198: 1012 | AJ198: t4512 | AK198: 100 | AL198: normalHit
A199: 11504 | B199: t2712 | C199: 4 | D199: 4 | E199: 4 | F199: 1 | G199: =FLOOR(G198*1.4,1) -> 442 | H199: =FLOOR(H198*1.54,1) -> 243 | I199: 0 | J199: 0 | K199: 450 | L199: 11501 | M199: 207^188 | N199: 1 | O199: 10000 | P199: 500 | Q199: 15000 | R199: 25 | S199: 13 | T199: 0.36 | U199: 300 | V199: 0 | W199: 150 | X199: 0 | Y199: 0 | Z199: 0 | AA199: 5 | AB199: 0 | AC199: yuelunche | AD199: 11701 | AE199: 20^100 | AF199: 95 | AG199: t6130 | AH199: 5 | AI199: 1012 | AJ199: t4512 | AK199: 100 | AL199: normalHit
A200: 11505 | B200: t2712 | C200: 4 | D200: 5 | E200: 4 | F200: 1 | G200: =FLOOR(G199*1.2,1) -> 530 | H200: 291 | I200: 0 | J200: 0 | K200: 450 | L200: 11501 | M200: 207^188 | N200: 1 | O200: 10000 | P200: 500 | Q200: 15000 | R200: 30 | S200: 14 | T200: 0.36 | U200: 300 | V200: 0 | W200: 150 | X200: 0 | Y200: 0 | Z200: 0 | AA200: 5 | AB200: 0 | AC200: yuelunche | AD200: 11701 | AE200: 20^100 | AF200: 95 | AG200: 0 | AH200: 5 | AI200: 1012 | AJ200: t4512 | AK200: 100 | AL200: normalHit
... 129 more rows

Sheet 注释
A1: skillCDs： 0代表初始放一次的永久BUFF。 9999代表是另外一个技能触发的技能，比如刺客的背刺触发暴击率提升BUFF
A2: type:1.普通角色。2.唯一角色。3.图腾。4.召唤物。5.基地。
A3: attackCD：图腾配置9999
A4: hurtFrame：图腾配置0
A5: moveSpeed：移动速度图腾配置0
A6: lifeDuration：正常角色配置0，召唤物有时间的配置时间

Sheet 属性战力计算公式
C1: 战力系数 | D1: 战斗力计算 | F1: 405 | G1: =F1*1.2 -> 486
A2: 基础属性 | B2: 攻击 | C2: 2 | D2: （攻击）*系数 | F2: =FLOOR(F1*1.2,1) -> 486 | G2: =F2*1.2 -> 583.2
B3: 法术攻击 | C3: 2 | D3: （攻击）*系数 | F3: 583 | G3: 699.6
B4: 生命 | C4: 0.8 | D4: （生命）*系数 | F4: =FLOOR(F3*1.32,1) -> 769 | G4: 922.8
B5: 防御 | C5: 1 | D5: (生命值/(1-（防御/（防御+防御常数））*生命系数 | F5: 922 | G5: 1106.4
B6: 法术防御 | C6: 1 | D6: (生命值/(1-（防御/（防御+防御常数））*生命系数 | F6: 1106 | G6: 1327.2
B7: 攻速 | C7: 1 | D7: （攻击/攻击速度*攻击系数）*攻速系数 | F7: 1327 | G7: 1592.4
B8: 暴击率 | C8: 1 | D8: （暴击率*攻击*暴击伤害*2）*系数 | F8: 1592 | G8: 1910.4
B9: 暴伤 | C9: 1 | D9: （暴击率*攻击*暴击伤害*2）*系数 | F9: 1910 | G9: 2292
B10: 命中 | C10: 1 | D10: （攻击/攻击速度*命中）*系数 | F10: =FLOOR(F9*1.32,1) -> 2521 | G10: 3025.2
B11: 闪躲 | C11: 1 | D11: （生命系数*生命/（1-闪避））*系数 | F11: 3025 | G11: 3630
F12: 3630 | G12: 4356
F13: 4356 | G13: 5227.2
F14: 5227 | G14: 6272.4
F15: 6272 | G15: 7526.4
F16: 7526 | G16: 9031.2
F17: 210 | G17: 252
F18: =FLOOR(F17*1.2,1) -> 252 | G18: 302.4
F19: 302 | G19: 362.4
F20: 362 | G20: 434.4
F21: 434 | G21: 520.8
F22: 520 | G22: 624
F23: 624 | G23: 748.8
F24: 748 | G24: 897.6
F25: 897 | G25: 1076.4
F26: =FLOOR(F25*1.32,1) -> 1184 | G26: 1420.8
F27: 1420 | G27: 1704
F28: 1704 | G28: 2044.8
F29: 2044 | G29: 2452.8
F30: 2452 | G30: 2942.4
F31: 2942 | G31: 3530.4
F32: 3530 | G32: 4236
F33: 190 | G33: 228
F34: =FLOOR(F33*1.2,1) -> 228 | G34: 273.6
F35: 273 | G35: 327.6
F36: 327 | G36: 392.4
F37: 392 | G37: 470.4
F38: 470 | G38: 564
F39: 564 | G39: 676.8
F40: 676 | G40: 811.2
F41: 811 | G41: 973.2
F42: =FLOOR(F41*1.32,1) -> 1070 | G42: 1284
F43: 1284 | G43: 1540.8
F44: 1540 | G44: 1848
F45: 1848 | G45: 2217.6
F46: 2217 | G46: 2660.4
F47: 2660 | G47: 3192
F48: 3192 | G48: 3830.4
F49: 275 | G49: 330
F50: =FLOOR(F49*1.2,1) -> 330 | G50: 396
F51: 396 | G51: 475.2
F52: 475 | G52: 570
F53: 570 | G53: 684
F54: 684 | G54: 820.8
F55: 820 | G55: 984
F56: 984 | G56: 1180.8
F57: 1180 | G57: 1416
F58: =FLOOR(F57*1.32,1) -> 1557 | G58: 1868.4
F59: 1868 | G59: 2241.6
F60: 2241 | G60: 2689.2
F61: 2689 | G61: 3226.8
F62: 3226 | G62: 3871.2
F63: 3871 | G63: 4645.2
F64: 4645 | G64: 5574
F65: 232 | G65: 278.4
F66: =FLOOR(F65*1.2,1) -> 278 | G66: =F66*1.2 -> 333.6
F67: 333 | G67: 399.6
F68: 399 | G68: 478.8
F69: 478 | G69: 573.6
F70: 573 | G70: 687.6
F71: 687 | G71: 824.4
F72: 824 | G72: 988.8
F73: 988 | G73: 1185.6
F74: =FLOOR(F73*1.32,1) -> 1304 | G74: 1564.8
F75: 1564 | G75: 1876.8
F76: 1876 | G76: 2251.2
F77: 2251 | G77: 2701.2
F78: 2701 | G78: 3241.2
F79: 3241 | G79: 3889.2
F80: 3889 | G80: 4666.8
F81: 215 | G81: 258
F82: =FLOOR(F81*1.2,1) -> 258 | G82: 309.6
F83: =FLOOR(F82*1.2,1) -> 309 | G83: 370.8
F84: =FLOOR(F83*1.32,1) -> 407 | G84: 488.4
F85: =FLOOR(F84*1.2,1) -> 488 | G85: 585.6
F86: 585 | G86: 702
F87: 702 | G87: 842.4
F88: 842 | G88: 1010.4
F89: 1010 | G89: 1212
F90: =FLOOR(F89*1.32,1) -> 1333 | G90: 1599.6
F91: 1599 | G91: 1918.8
F92: 1918 | G92: 2301.6
F93: 2301 | G93: 2761.2
F94: 2761 | G94: 3313.2
F95: 3313 | G95: 3975.6
F96: 3975 | G96: 4770
F97: 200 | G97: 240
F98: =FLOOR(F97*1.2,1) -> 240 | G98: 288
F99: 288 | G99: 345.6
F100: 345 | G100: 414
F101: 414 | G101: 496.8
F102: 496 | G102: 595.2
F103: 595 | G103: 714
F104: 714 | G104: 856.8
F105: 856 | G105: 1027.2
F106: =FLOOR(F105*1.32,1) -> 1129 | G106: 1354.8
F107: 1354 | G107: 1624.8
F108: 1624 | G108: 1948.8
F109: 1948 | G109: 2337.6
F110: 2337 | G110: 2804.4
F111: 2804 | G111: 3364.8
F112: 3364 | G112: 4036.8
F113: 120 | G113: 144
F114: =FLOOR(F113*1.2,1) -> 144 | G114: 172.8
F115: 172 | G115: 206.4
F116: 206 | G116: 247.2
F117: 247 | G117: 296.4
F118: 296 | G118: 355.2
F119: 355 | G119: 426
F120: 426 | G120: 511.2
F121: 511 | G121: 613.2
F122: =FLOOR(F121*1.32,1) -> 674 | G122: 808.8
F123: 808 | G123: 969.6
F124: 969 | G124: 1162.8
F125: 1162 | G125: 1394.4
F126: 1394 | G126: 1672.8
F127: 1672 | G127: 2006.4
F128: 2006 | G128: 2407.2
F129: 140 | G129: 168
F130: =FLOOR(F129*1.2,1) -> 168 | G130: =F130*1.2 -> 201.6
F131: 201 | G131: 241.2
F132: 241 | G132: 289.2
F133: 289 | G133: 346.8
F134: 346 | G134: 415.2
F135: 415 | G135: 498
F136: 498 | G136: 597.6
F137: 597 | G137: 716.4
F138: =FLOOR(F137*1.32,1) -> 788 | G138: 945.6
F139: 945 | G139: 1134
F140: 1134 | G140: 1360.8
F141: 1360 | G141: 1632
F142: 1632 | G142: 1958.4
F143: 1958 | G143: 2349.6
F144: 2349 | G144: 2818.8
F145: 550 | G145: 660
F146: =FLOOR(F145*1.2,1) -> 660 | G146: 792
F147: 792 | G147: 950.4
F148: 950 | G148: 1140
F149: 1140 | G149: 1368
F150: 1368 | G150: 1641.6
F151: =FLOOR(F150*1.32,1) -> 1805 | G151: 2166
F152: 2166 | G152: 2599.2
F153: 2599 | G153: 3118.8
F154: =FLOOR(F153*1.32,1) -> 3430 | G154: 4116
F155: 4116 | G155: 4939.2
F156: 4939 | G156: 5926.8
F157: 5926 | G157: 7111.2
F158: 7111 | G158: 8533.2
F159: 8533 | G159: 10239.6
F160: 10239 | G160: 12286.8
F161: 340 | G161: 408
F162: =FLOOR(F161*1.2,1) -> 408 | G162: 489.6
F163: 489 | G163: 586.8
F164: 586 | G164: 703.2
F165: 703 | G165: 843.6
F166: 843 | G166: 1011.6
F167: 1011 | G167: 1213.2
F168: 1213 | G168: 1455.6
F169: 1455 | G169: 1746
F170: =FLOOR(F169*1.32,1) -> 1920 | G170: 2304
F171: 2304 | G171: 2764.8
F172: 2764 | G172: 3316.8
F173: 3316 | G173: 3979.2
F174: 3979 | G174: 4774.8
F175: 4774 | G175: 5728.8
F176: 5728 | G176: 6873.6
F177: 200 | G177: 240
F178: =FLOOR(F177*1.2,1) -> 240 | G178: 288
F179: =FLOOR(F178*1.2,1) -> 288 | G179: 345.6
F180: =FLOOR(F179*1.38,1) -> 397 | G180: 476.4
F181: =FLOOR(F180*1.2,1) -> 476 | G181: 571.2
F182: 571 | G182: 685.2
F183: 685 | G183: 822
F184: 822 | G184: 986.4
F185: 986 | G185: 1183.2
F186: =FLOOR(F185*1.32,1) -> 1301 | G186: 1561.2
F187: 1561 | G187: 1873.2
F188: 1873 | G188: 2247.6
F189: 2247 | G189: 2696.4
F190: 2696 | G190: 3235.2
F191: 3235 | G191: 3882
F192: 3882 | G192: 4658.4
F193: 5000 | G193: 6000
F194: 200 | G194: =F194*1.2 -> 240
F195: =FLOOR(F194*1.2,1) -> 240 | G195: 288
F196: =FLOOR(F195*1.2,1) -> 288 | G196: 345.6
F197: =FLOOR(F196*1.2,1) -> 345 | G197: 414
F198: 414 | G198: 496.8
F199: 496 | G199: 595.2
F200: 595 | G200: 714
... 360 more rows

Sheet 调试区
B1: ID[csknu] | C1: name[ct] | D1: profession[csn] | E1: quality[csn] | F1: qualityType[cn] | G1: type[cn] | H1: HP[csn] | I1: attack[csn] | J1: spellAttack[csn] | K1: cost[cn]
B2: ID区间(0-10w) | C2: 名称 | D2: 职业类型 | E2: 品阶 | F2: 品质 | G2: 类型 | H2: 血量 | I2: 攻击力 | J2: 法术攻击力 | K2: 召唤费用 | M2: 攻击间隔 | N2: HP | O2: 每一点费DPS | P2: DPS修正 | Q2: 费用修正 | R2: 费用修正 | S2: 唯一角色血量修正 | T2: 唯一角色攻击修正
A3: 枪兵 | B3: 10101 | C3: t2700 | D3: 1 | E3: 1 | F3: 1 | G3: 1 | H3: 490 | I3: 90 | J3: 0 | K3: 3 | L3: =K3-3 -> 0 | M3: 0.5 | N3: =H3/K3 -> 163.3333333 | O3: =I3/M3/K3 -> 60 | Q3: =FLOOR(H3*(1+0.05*L3),1) -> 490 | R3: =FLOOR(I3*(1+0.05*L3),1) -> 90
B4: 10102 | C4: t2700 | D4: 1 | E4: 2 | F4: 2 | G4: 1 | H4: =FLOOR(H3*1.2,1) -> 588 | I4: 108 | J4: 0 | K4: 3
B5: 10103 | C5: t2700 | D5: 1 | E5: 3 | F5: 3 | G5: 1 | H5: 705 | I5: 129 | J5: 0 | K5: 3
B6: 10104 | C6: t2700 | D6: 1 | E6: 4 | F6: 4 | G6: 1 | H6: =FLOOR(H5*1.54,1) -> 1085 | I6: =FLOOR(I5*1.4,1) -> 180 | J6: 0 | K6: 3
B7: 10105 | C7: t2700 | D7: 1 | E7: 5 | F7: 4 | G7: 1 | H7: 1302 | I7: 216 | J7: 0 | K7: 3
B8: 10106 | C8: t2700 | D8: 1 | E8: 6 | F8: 4 | G8: 1 | H8: 1562 | I8: 259 | J8: 0 | K8: 3
B9: 10107 | C9: t2700 | D9: 1 | E9: 7 | F9: 5 | G9: 1 | H9: =FLOOR(H8*1.32,1) -> 2061 | I9: =FLOOR(I8*1.32,1) -> 341 | J9: 0 | K9: 3
B10: 10108 | C10: t2700 | D10: 1 | E10: 8 | F10: 5 | G10: 1 | H10: 2473 | I10: 409 | J10: 0 | K10: 3
B11: 10109 | C11: t2700 | D11: 1 | E11: 9 | F11: 5 | G11: 1 | H11: 2967 | I11: 490 | J11: 0 | K11: 3
B12: 10110 | C12: t2700 | D12: 1 | E12: 10 | F12: 5 | G12: 1 | H12: 3560 | I12: 588 | J12: 0 | K12: 3
B13: 10111 | C13: t2700 | D13: 1 | E13: 11 | F13: 6 | G13: 1 | H13: =FLOOR(H12*1.32,1) -> 4699 | I13: =FLOOR(I12*1.32,1) -> 776 | J13: 0 | K13: 3
B14: 10112 | C14: t2700 | D14: 1 | E14: 12 | F14: 6 | G14: 1 | H14: 5638 | I14: 931 | J14: 0 | K14: 3
B15: 10113 | C15: t2700 | D15: 1 | E15: 13 | F15: 6 | G15: 1 | H15: 6765 | I15: 1117 | J15: 0 | K15: 3
B16: 10114 | C16: t2700 | D16: 1 | E16: 14 | F16: 6 | G16: 1 | H16: 8118 | I16: 1340 | J16: 0 | K16: 3
B17: 10115 | C17: t2700 | D17: 1 | E17: 15 | F17: 6 | G17: 1 | H17: 9741 | I17: 1608 | J17: 0 | K17: 3
B18: 10116 | C18: t2700 | D18: 1 | E18: 16 | F18: 6 | G18: 1 | H18: 11689 | I18: 1929 | J18: 0 | K18: 3
A19: 火枪 | B19: 10301 | C19: t2701 | D19: 4 | E19: 1 | F19: 1 | G19: 1 | H19: 210 | I19: 115 | J19: 0 | K19: 3 | L19: =K19-3 -> 0 | M19: 0.7 | N19: =H19/K19 -> 70 | O19: =I19/M19/K19 -> 54.76190476 | Q19: =FLOOR(H19*(1+0.05*L19),1) -> 210 | R19: =FLOOR(I19*(1+0.05*L19),1) -> 115
B20: 10302 | C20: t2701 | D20: 4 | E20: 2 | F20: 2 | G20: 1 | H20: =FLOOR(H19*1.2,1) -> 252 | I20: 138 | J20: 0 | K20: 3
B21: 10303 | C21: t2701 | D21: 4 | E21: 3 | F21: 3 | G21: 1 | H21: 302 | I21: 165 | J21: 0 | K21: 3
B22: 10304 | C22: t2701 | D22: 4 | E22: 4 | F22: 4 | G22: 1 | H22: =FLOOR(H21*1.4,1) -> 422 | I22: =FLOOR(I21*1.4,1) -> 231 | J22: 0 | K22: 3
B23: 10305 | C23: t2701 | D23: 4 | E23: 5 | F23: 4 | G23: 1 | H23: 506 | I23: 277 | J23: 0 | K23: 3
B24: 10306 | C24: t2701 | D24: 4 | E24: 6 | F24: 4 | G24: 1 | H24: 607 | I24: 332 | J24: 0 | K24: 3
B25: 10307 | C25: t2701 | D25: 4 | E25: 7 | F25: 5 | G25: 1 | H25: =FLOOR(H24*1.32,1) -> 801 | I25: =FLOOR(I24*1.32,1) -> 438 | J25: 0 | K25: 3
B26: 10308 | C26: t2701 | D26: 4 | E26: 8 | F26: 5 | G26: 1 | H26: 961 | I26: 525 | J26: 0 | K26: 3
B27: 10309 | C27: t2701 | D27: 4 | E27: 9 | F27: 5 | G27: 1 | H27: 1153 | I27: 630 | J27: 0 | K27: 3
B28: 10310 | C28: t2701 | D28: 4 | E28: 10 | F28: 5 | G28: 1 | H28: 1383 | I28: 756 | J28: 0 | K28: 3
B29: 10311 | C29: t2701 | D29: 4 | E29: 11 | F29: 6 | G29: 1 | H29: =FLOOR(H28*1.32,1) -> 1825 | I29: =FLOOR(I28*1.32,1) -> 997 | J29: 0 | K29: 3
B30: 10312 | C30: t2701 | D30: 4 | E30: 12 | F30: 6 | G30: 1 | H30: 2190 | I30: 1196 | J30: 0 | K30: 3
B31: 10313 | C31: t2701 | D31: 4 | E31: 13 | F31: 6 | G31: 1 | H31: 2628 | I31: 1435 | J31: 0 | K31: 3
B32: 10314 | C32: t2701 | D32: 4 | E32: 14 | F32: 6 | G32: 1 | H32: 3153 | I32: 1722 | J32: 0 | K32: 3
B33: 10315 | C33: t2701 | D33: 4 | E33: 15 | F33: 6 | G33: 1 | H33: 3783 | I33: 2066 | J33: 0 | K33: 3
B34: 10316 | C34: t2701 | D34: 4 | E34: 16 | F34: 6 | G34: 1 | H34: 4539 | I34: 2479 | J34: 0 | K34: 3
A35: 罗宾 | B35: 10401 | C35: t2702 | D35: 4 | E35: 1 | F35: 1 | G35: 2 | H35: 190 | I35: 115 | J35: 0 | K35: 5 | L35: =K35-3 -> 2 | M35: 0.8 | N35: =H35/K35 -> 38 | O35: =I35/M35/K35 -> 28.75 | Q35: =FLOOR(H35*(1+0.05*L35),1) -> 209 | R35: =FLOOR(I35*(1+0.05*L35),1) -> 126 | S35: =FLOOR(Q35*(1+G35*0.35),1) -> 355 | T35: =FLOOR(R35*(1+G35*0.3),1) -> 201
B36: 10402 | C36: t2702 | D36: 4 | E36: 2 | F36: 2 | G36: 2 | H36: =FLOOR(H35*1.2,1) -> 228 | I36: 138 | J36: 0 | K36: 5
B37: 10403 | C37: t2702 | D37: 4 | E37: 3 | F37: 3 | G37: 2 | H37: 273 | I37: 165 | J37: 0 | K37: 5
B38: 10404 | C38: t2702 | D38: 4 | E38: 4 | F38: 4 | G38: 2 | H38: =FLOOR(H37*1.4,1) -> 382 | I38: =FLOOR(I37*1.54,1) -> 254 | J38: 0 | K38: 5
B39: 10405 | C39: t2702 | D39: 4 | E39: 5 | F39: 4 | G39: 2 | H39: 458 | I39: 304 | J39: 0 | K39: 5
B40: 10406 | C40: t2702 | D40: 4 | E40: 6 | F40: 4 | G40: 2 | H40: 549 | I40: 364 | J40: 0 | K40: 5
B41: 10407 | C41: t2702 | D41: 4 | E41: 7 | F41: 5 | G41: 2 | H41: =FLOOR(H40*1.32,1) -> 724 | I41: =FLOOR(I40*1.32,1) -> 480 | J41: 0 | K41: 5
B42: 10408 | C42: t2702 | D42: 4 | E42: 8 | F42: 5 | G42: 2 | H42: 868 | I42: 576 | J42: 0 | K42: 5
B43: 10409 | C43: t2702 | D43: 4 | E43: 9 | F43: 5 | G43: 2 | H43: 1041 | I43: 691 | J43: 0 | K43: 5
B44: 10410 | C44: t2702 | D44: 4 | E44: 10 | F44: 5 | G44: 2 | H44: 1249 | I44: 829 | J44: 0 | K44: 5
B45: 10411 | C45: t2702 | D45: 4 | E45: 11 | F45: 6 | G45: 2 | H45: =FLOOR(H44*1.32,1) -> 1648 | I45: =FLOOR(I44*1.32,1) -> 1094 | J45: 0 | K45: 5
B46: 10412 | C46: t2702 | D46: 4 | E46: 12 | F46: 6 | G46: 2 | H46: 1977 | I46: 1312 | J46: 0 | K46: 5
B47: 10413 | C47: t2702 | D47: 4 | E47: 13 | F47: 6 | G47: 2 | H47: 2372 | I47: 1574 | J47: 0 | K47: 5
B48: 10414 | C48: t2702 | D48: 4 | E48: 14 | F48: 6 | G48: 2 | H48: 2846 | I48: 1888 | J48: 0 | K48: 5
B49: 10415 | C49: t2702 | D49: 4 | E49: 15 | F49: 6 | G49: 2 | H49: 3415 | I49: 2265 | J49: 0 | K49: 5
B50: 10416 | C50: t2702 | D50: 4 | E50: 16 | F50: 6 | G50: 2 | H50: 4098 | I50: 2718 | J50: 0 | K50: 5
A51: 小丑 | B51: 10501 | C51: t2703 | D51: 3 | E51: 1 | F51: 1 | G51: 1 | H51: 335 | I51: 125 | J51: 0 | K51: 4 | L51: =K51-3 -> 1 | M51: 0.65 | N51: =H51/K51 -> 83.75 | O51: =I51/M51/K51 -> 48.07692308 | Q51: =FLOOR(H51*(1+0.05*L51),1) -> 351 | R51: =FLOOR(I51*(1+0.05*L51),1) -> 131
B52: 10502 | C52: t2703 | D52: 3 | E52: 2 | F52: 2 | G52: 1 | H52: =FLOOR(H51*1.2,1) -> 402 | I52: 150 | J52: 0 | K52: 4
B53: 10503 | C53: t2703 | D53: 3 | E53: 3 | F53: 3 | G53: 1 | H53: 482 | I53: 180 | J53: 0 | K53: 4
B54: 10504 | C54: t2703 | D54: 3 | E54: 4 | F54: 4 | G54: 1 | H54: =FLOOR(H53*1.4,1) -> 674 | I54: =FLOOR(I53*1.4,1) -> 252 | J54: 0 | K54: 4
B55: 10505 | C55: t2703 | D55: 3 | E55: 5 | F55: 4 | G55: 1 | H55: 808 | I55: 302 | J55: 0 | K55: 4
B56: 10506 | C56: t2703 | D56: 3 | E56: 6 | F56: 4 | G56: 1 | H56: 969 | I56: 362 | J56: 0 | K56: 4
B57: 10507 | C57: t2703 | D57: 3 | E57: 7 | F57: 5 | G57: 1 | H57: =FLOOR(H56*1.32,1) -> 1279 | I57: =FLOOR(I56*1.32,1) -> 477 | J57: 0 | K57: 4
B58: 10508 | C58: t2703 | D58: 3 | E58: 8 | F58: 5 | G58: 1 | H58: 1534 | I58: 572 | J58: 0 | K58: 4
B59: 10509 | C59: t2703 | D59: 3 | E59: 9 | F59: 5 | G59: 1 | H59: 1840 | I59: 686 | J59: 0 | K59: 4
B60: 10510 | C60: t2703 | D60: 3 | E60: 10 | F60: 5 | G60: 1 | H60: 2208 | I60: 823 | J60: 0 | K60: 4
B61: 10511 | C61: t2703 | D61: 3 | E61: 11 | F61: 6 | G61: 1 | H61: =FLOOR(H60*1.32,1) -> 2914 | I61: =FLOOR(I60*1.32,1) -> 1086 | J61: 0 | K61: 4
B62: 10512 | C62: t2703 | D62: 3 | E62: 12 | F62: 6 | G62: 1 | H62: 3496 | I62: 1303 | J62: 0 | K62: 4
B63: 10513 | C63: t2703 | D63: 3 | E63: 13 | F63: 6 | G63: 1 | H63: 4195 | I63: 1563 | J63: 0 | K63: 4
B64: 10514 | C64: t2703 | D64: 3 | E64: 14 | F64: 6 | G64: 1 | H64: 5034 | I64: 1875 | J64: 0 | K64: 4
B65: 10515 | C65: t2703 | D65: 3 | E65: 15 | F65: 6 | G65: 1 | H65: 6040 | I65: 2250 | J65: 0 | K65: 4
B66: 10516 | C66: t2703 | D66: 3 | E66: 16 | F66: 6 | G66: 1 | H66: 7248 | I66: 2700 | J66: 0 | K66: 4
A67: 特查拉 | B67: 10601 | C67: t2704 | D67: 3 | E67: 1 | F67: 1 | G67: 1 | H67: 262 | I67: 135 | J67: 0 | K67: 5 | L67: =K67-3 -> 2 | M67: 0.75 | N67: =H67/K67 -> 52.4 | O67: =I67/M67/K67 -> 36 | Q67: =FLOOR(H67*(1+0.05*L67),1) -> 288 | R67: =FLOOR(I67*(1+0.05*L67),1) -> 148
B68: 10602 | C68: t2704 | D68: 3 | E68: 2 | F68: 2 | G68: 1 | H68: =FLOOR(H67*1.2,1) -> 314 | I68: 162 | J68: 0 | K68: 5
B69: 10603 | C69: t2704 | D69: 3 | E69: 3 | F69: 3 | G69: 1 | H69: 376 | I69: 194 | J69: 0 | K69: 5
B70: 10604 | C70: t2704 | D70: 3 | E70: 4 | F70: 4 | G70: 1 | H70: =FLOOR(H69*1.4,1) -> 526 | I70: =FLOOR(I69*1.4,1) -> 271 | J70: 0 | K70: 5
B71: 10605 | C71: t2704 | D71: 3 | E71: 5 | F71: 4 | G71: 1 | H71: 631 | I71: 325 | J71: 0 | K71: 5
B72: 10606 | C72: t2704 | D72: 3 | E72: 6 | F72: 4 | G72: 1 | H72: 757 | I72: 390 | J72: 0 | K72: 5
B73: 10607 | C73: t2704 | D73: 3 | E73: 7 | F73: 5 | G73: 1 | H73: =FLOOR(H72*1.32,1) -> 999 | I73: =FLOOR(I72*1.44,1) -> 561 | J73: 0 | K73: 5
B74: 10608 | C74: t2704 | D74: 3 | E74: 8 | F74: 5 | G74: 1 | H74: =FLOOR(H73*1.2,1) -> 1198 | I74: 673 | J74: 0 | K74: 5
B75: 10609 | C75: t2704 | D75: 3 | E75: 9 | F75: 5 | G75: 1 | H75: 1437 | I75: 807 | J75: 0 | K75: 5
B76: 10610 | C76: t2704 | D76: 3 | E76: 10 | F76: 5 | G76: 1 | H76: 1724 | I76: 968 | J76: 0 | K76: 5
B77: 10611 | C77: t2704 | D77: 3 | E77: 11 | F77: 6 | G77: 1 | H77: =FLOOR(H76*1.32,1) -> 2275 | I77: =FLOOR(I76*1.32,1) -> 1277 | J77: 0 | K77: 5
B78: 10612 | C78: t2704 | D78: 3 | E78: 12 | F78: 6 | G78: 1 | H78: 2730 | I78: 1532 | J78: 0 | K78: 5
B79: 10613 | C79: t2704 | D79: 3 | E79: 13 | F79: 6 | G79: 1 | H79: 3276 | I79: 1838 | J79: 0 | K79: 5
B80: 10614 | C80: t2704 | D80: 3 | E80: 14 | F80: 6 | G80: 1 | H80: 3931 | I80: 2205 | J80: 0 | K80: 5
B81: 10615 | C81: t2704 | D81: 3 | E81: 15 | F81: 6 | G81: 1 | H81: 4717 | I81: 2646 | J81: 0 | K81: 5
B82: 10616 | C82: t2704 | D82: 3 | E82: 16 | F82: 6 | G82: 1 | H82: 5660 | I82: 3175 | J82: 0 | K82: 5
A83: 宇智波 | B83: 10701 | C83: t2705 | D83: 3 | E83: 1 | F83: 1 | G83: 2 | H83: 285 | I83: 210 | J83: 0 | K83: 8 | L83: =K83-3 -> 5 | M83: 0.75 | N83: =H83/K83 -> 35.625 | O83: =I83/M83/K83 -> 35 | Q83: =FLOOR(H83*(1+0.05*L83),1) -> 356 | R83: =FLOOR(I83*(1+0.05*L83),1) -> 262 | S83: =FLOOR(Q83*(1+G83*0.35),1) -> 605 | T83: =FLOOR(R83*(1+G83*0.3),1) -> 419
B84: 10702 | C84: t2705 | D84: 3 | E84: 2 | F84: 2 | G84: 2 | H84: =FLOOR(H83*1.2,1) -> 342 | I84: =FLOOR(I83*1.2,1) -> 252 | J84: 0 | K84: 7
B85: 10703 | C85: t2705 | D85: 3 | E85: 3 | F85: 3 | G85: 2 | H85: =FLOOR(H84*1.2,1) -> 410 | I85: =FLOOR(I84*1.2,1) -> 302 | J85: 0 | K85: 7
B86: 10704 | C86: t2705 | D86: 3 | E86: 4 | F86: 4 | G86: 2 | H86: =FLOOR(H85*1.54,1) -> 631 | I86: =FLOOR(I85*1.4,1) -> 422 | J86: 0 | K86: 7
B87: 10705 | C87: t2705 | D87: 3 | E87: 5 | F87: 4 | G87: 2 | H87: =FLOOR(H86*1.2,1) -> 757 | I87: 506 | J87: 0 | K87: 7
B88: 10706 | C88: t2705 | D88: 3 | E88: 6 | F88: 4 | G88: 2 | H88: 908 | I88: 607 | J88: 0 | K88: 7
B89: 10707 | C89: t2705 | D89: 3 | E89: 7 | F89: 5 | G89: 2 | H89: =FLOOR(H88*1.32,1) -> 1198 | I89: =FLOOR(I88*1.32,1) -> 801 | J89: 0 | K89: 7
B90: 10708 | C90: t2705 | D90: 3 | E90: 8 | F90: 5 | G90: 2 | H90: =FLOOR(H89*1.2,1) -> 1437 | I90: 961 | J90: 0 | K90: 7
B91: 10709 | C91: t2705 | D91: 3 | E91: 9 | F91: 5 | G91: 2 | H91: 1724 | I91: 1153 | J91: 0 | K91: 7
B92: 10710 | C92: t2705 | D92: 3 | E92: 10 | F92: 5 | G92: 2 | H92: 2068 | I92: 1383 | J92: 0 | K92: 7
B93: 10711 | C93: t2705 | D93: 3 | E93: 11 | F93: 6 | G93: 2 | H93: =FLOOR(H92*1.32,1) -> 2729 | I93: =FLOOR(I92*1.32,1) -> 1825 | J93: 0 | K93: 7
B94: 10712 | C94: t2705 | D94: 3 | E94: 12 | F94: 6 | G94: 2 | H94: 3274 | I94: 2190 | J94: 0 | K94: 7
B95: 10713 | C95: t2705 | D95: 3 | E95: 13 | F95: 6 | G95: 2 | H95: 3928 | I95: 2628 | J95: 0 | K95: 7
B96: 10714 | C96: t2705 | D96: 3 | E96: 14 | F96: 6 | G96: 2 | H96: 4713 | I96: 3153 | J96: 0 | K96: 7
B97: 10715 | C97: t2705 | D97: 3 | E97: 15 | F97: 6 | G97: 2 | H97: 5655 | I97: 3783 | J97: 0 | K97: 7
B98: 10716 | C98: t2705 | D98: 3 | E98: 16 | F98: 6 | G98: 2 | H98: 6786 | I98: 4539 | J98: 0 | K98: 7
A99: 阿拉丁 | B99: 10801 | C99: t2706 | D99: 2 | E99: 1 | F99: 1 | G99: 1 | H99: 200 | I99: 72 | J99: 72 | K99: 6 | L99: =K99-3 -> 3 | M99: 1 | N99: =H99/K99 -> 33.33333333 | O99: =I99/M99/K99 -> 12 | Q99: =FLOOR(H99*(1+0.05*L99),1) -> 230 | R99: =FLOOR(I99*(1+0.05*L99),1) -> 82
B100: 10802 | C100: t2706 | D100: 2 | E100: 2 | F100: 2 | G100: 1 | H100: =FLOOR(H99*1.2,1) -> 240 | I100: 0 | J100: =FLOOR(J99*1.2,1) -> 86 | K100: 6
B101: 10803 | C101: t2706 | D101: 2 | E101: 3 | F101: 3 | G101: 1 | H101: 288 | I101: 0 | J101: =FLOOR(J100*1.2,1) -> 103 | K101: 6
B102: 10804 | C102: t2706 | D102: 2 | E102: 4 | F102: 4 | G102: 1 | H102: =FLOOR(H101*1.4,1) -> 403 | I102: 0 | J102: =FLOOR(J101*1.4,1) -> 144 | K102: 6
B103: 10805 | C103: t2706 | D103: 2 | E103: 5 | F103: 4 | G103: 1 | H103: 483 | I103: 0 | J103: =FLOOR(J102*1.2,1) -> 172 | K103: 6
B104: 10806 | C104: t2706 | D104: 2 | E104: 6 | F104: 4 | G104: 1 | H104: 579 | I104: 0 | J104: =FLOOR(J103*1.2,1) -> 206 | K104: 6
B105: 10807 | C105: t2706 | D105: 2 | E105: 7 | F105: 5 | G105: 1 | H105: =FLOOR(H104*1.32,1) -> 764 | I105: 0 | J105: =FLOOR(J104*1.32,1) -> 271 | K105: 6
B106: 10808 | C106: t2706 | D106: 2 | E106: 8 | F106: 5 | G106: 1 | H106: 916 | I106: 0 | J106: =FLOOR(J105*1.2,1) -> 325 | K106: 6
B107: 10809 | C107: t2706 | D107: 2 | E107: 9 | F107: 5 | G107: 1 | H107: 1099 | I107: 0 | J107: =FLOOR(J106*1.2,1) -> 390 | K107: 6
B108: 10810 | C108: t2706 | D108: 2 | E108: 10 | F108: 5 | G108: 1 | H108: 1318 | I108: 0 | J108: =FLOOR(J107*1.2,1) -> 468 | K108: 6
B109: 10811 | C109: t2706 | D109: 2 | E109: 11 | F109: 6 | G109: 1 | H109: =FLOOR(H108*1.32,1) -> 1739 | I109: =FLOOR(I108*1.32,1) -> 0 | J109: =FLOOR(J108*1.32,1) -> 617 | K109: 6
B110: 10812 | C110: t2706 | D110: 2 | E110: 12 | F110: 6 | G110: 1 | H110: 2086 | I110: 0 | J110: =FLOOR(J109*1.2,1) -> 740 | K110: 6
B111: 10813 | C111: t2706 | D111: 2 | E111: 13 | F111: 6 | G111: 1 | H111: 2503 | I111: 0 | J111: =FLOOR(J110*1.2,1) -> 888 | K111: 6
B112: 10814 | C112: t2706 | D112: 2 | E112: 14 | F112: 6 | G112: 1 | H112: 3003 | I112: 0 | J112: =FLOOR(J111*1.2,1) -> 1065 | K112: 6
B113: 10815 | C113: t2706 | D113: 2 | E113: 15 | F113: 6 | G113: 1 | H113: 3603 | I113: 0 | J113: =FLOOR(J112*1.2,1) -> 1278 | K113: 6
B114: 10816 | C114: t2706 | D114: 2 | E114: 16 | F114: 6 | G114: 1 | H114: 4323 | I114: 0 | J114: =FLOOR(J113*1.2,1) -> 1533 | K114: 6
A115: 黑魔王 | B115: 10901 | C115: t2707 | D115: 2 | E115: 1 | F115: 1 | G115: 1 | H115: 135 | I115: 165 | J115: 145 | K115: 7 | L115: =K115-3 -> 4 | M115: 1.2 | N115: =H115/K115 -> 19.28571429 | O115: =I115/M115/K115 -> 19.64285714 | Q115: =FLOOR(H115*(1+0.05*L115),1) -> 162 | R115: =FLOOR(I115*(1+0.05*L115),1) -> 198
B116: 10902 | C116: t2707 | D116: 2 | E116: 2 | F116: 2 | G116: 1 | H116: =FLOOR(H115*1.2,1) -> 162 | I116: 0 | J116: =FLOOR(J115*1.2,1) -> 174 | K116: 7
B117: 10903 | C117: t2707 | D117: 2 | E117: 3 | F117: 3 | G117: 1 | H117: 194 | I117: 0 | J117: 208 | K117: 7
B118: 10904 | C118: t2707 | D118: 2 | E118: 4 | F118: 4 | G118: 1 | H118: =FLOOR(H117*1.4,1) -> 271 | I118: 0 | J118: =FLOOR(J117*1.4,1) -> 291 | K118: 7
B119: 10905 | C119: t2707 | D119: 2 | E119: 5 | F119: 4 | G119: 1 | H119: 325 | I119: 0 | J119: 349 | K119: 7
B120: 10906 | C120: t2707 | D120: 2 | E120: 6 | F120: 4 | G120: 1 | H120: 390 | I120: 0 | J120: 418 | K120: 7
B121: 10907 | C121: t2707 | D121: 2 | E121: 7 | F121: 5 | G121: 1 | H121: =FLOOR(H120*1.32,1) -> 514 | I121: 0 | J121: =FLOOR(J120*1.32,1) -> 551 | K121: 7
B122: 10908 | C122: t2707 | D122: 2 | E122: 8 | F122: 5 | G122: 1 | H122: 616 | I122: 0 | J122: 661 | K122: 7
B123: 10909 | C123: t2707 | D123: 2 | E123: 9 | F123: 5 | G123: 1 | H123: 739 | I123: 0 | J123: 793 | K123: 7
B124: 10910 | C124: t2707 | D124: 2 | E124: 10 | F124: 5 | G124: 1 | H124: 886 | I124: 0 | J124: 951 | K124: 7
B125: 10911 | C125: t2707 | D125: 2 | E125: 11 | F125: 6 | G125: 1 | H125: =FLOOR(H124*1.32,1) -> 1169 | I125: =FLOOR(I124*1.32,1) -> 0 | J125: =FLOOR(J124*1.32,1) -> 1255 | K125: 7
B126: 10912 | C126: t2707 | D126: 2 | E126: 12 | F126: 6 | G126: 1 | H126: 1402 | I126: 0 | J126: 1506 | K126: 7
B127: 10913 | C127: t2707 | D127: 2 | E127: 13 | F127: 6 | G127: 1 | H127: 1682 | I127: 0 | J127: 1807 | K127: 7
B128: 10914 | C128: t2707 | D128: 2 | E128: 14 | F128: 6 | G128: 1 | H128: 2018 | I128: 0 | J128: 2168 | K128: 7
B129: 10915 | C129: t2707 | D129: 2 | E129: 15 | F129: 6 | G129: 1 | H129: 2421 | I129: 0 | J129: 2601 | K129: 7
B130: 10916 | C130: t2707 | D130: 2 | E130: 16 | F130: 6 | G130: 1 | H130: 2905 | I130: 0 | J130: 3121 | K130: 7
A131: 萨莉 | B131: 11001 | C131: t2708 | D131: 2 | E131: 1 | F131: 1 | G131: 1 | H131: 150 | I131: 60 | J131: 60 | K131: 5 | L131: =K131-3 -> 2 | M131: 1.2 | N131: =H131/K131 -> 30 | O131: =I131/M131/K131 -> 10 | Q131: =FLOOR(H131*(1+0.05*L131),1) -> 165 | R131: =FLOOR(I131*(1+0.05*L131),1) -> 66
B132: 11002 | C132: t2708 | D132: 2 | E132: 2 | F132: 2 | G132: 1 | H132: =FLOOR(H131*1.2,1) -> 180 | I132: 0 | J132: =FLOOR(J131*1.2,1) -> 72 | K132: 5
B133: 11003 | C133: t2708 | D133: 2 | E133: 3 | F133: 3 | G133: 1 | H133: 216 | I133: 0 | J133: 86 | K133: 5
B134: 11004 | C134: t2708 | D134: 2 | E134: 4 | F134: 4 | G134: 1 | H134: =FLOOR(H133*1.4,1) -> 302 | I134: 0 | J134: =FLOOR(J133*1.4,1) -> 120 | K134: 5
B135: 11005 | C135: t2708 | D135: 2 | E135: 5 | F135: 4 | G135: 1 | H135: 362 | I135: 0 | J135: 144 | K135: 5
B136: 11006 | C136: t2708 | D136: 2 | E136: 6 | F136: 4 | G136: 1 | H136: 434 | I136: 0 | J136: 172 | K136: 5
B137: 11007 | C137: t2708 | D137: 2 | E137: 7 | F137: 5 | G137: 1 | H137: =FLOOR(H136*1.32,1) -> 572 | I137: 0 | J137: =FLOOR(J136*1.32,1) -> 227 | K137: 5
B138: 11008 | C138: t2708 | D138: 2 | E138: 8 | F138: 5 | G138: 1 | H138: 686 | I138: 0 | J138: 272 | K138: 5
B139: 11009 | C139: t2708 | D139: 2 | E139: 9 | F139: 5 | G139: 1 | H139: 823 | I139: 0 | J139: 326 | K139: 5
B140: 11010 | C140: t2708 | D140: 2 | E140: 10 | F140: 5 | G140: 1 | H140: 987 | I140: 0 | J140: 391 | K140: 5
B141: 11011 | C141: t2708 | D141: 2 | E141: 11 | F141: 6 | G141: 1 | H141: =FLOOR(H140*1.32,1) -> 1302 | I141: =FLOOR(I140*1.32,1) -> 0 | J141: =FLOOR(J140*1.32,1) -> 516 | K141: 5
B142: 11012 | C142: t2708 | D142: 2 | E142: 12 | F142: 6 | G142: 1 | H142: 1562 | I142: 0 | J142: 619 | K142: 5
B143: 11013 | C143: t2708 | D143: 2 | E143: 13 | F143: 6 | G143: 1 | H143: 1874 | I143: 0 | J143: 742 | K143: 5
B144: 11014 | C144: t2708 | D144: 2 | E144: 14 | F144: 6 | G144: 1 | H144: 2248 | I144: 0 | J144: 890 | K144: 5
B145: 11015 | C145: t2708 | D145: 2 | E145: 15 | F145: 6 | G145: 1 | H145: 2697 | I145: 0 | J145: 1068 | K145: 5
B146: 11016 | C146: t2708 | D146: 2 | E146: 16 | F146: 6 | G146: 1 | H146: 3236 | I146: 0 | J146: 1281 | K146: 5
A147: 巨汉 | B147: 11101 | C147: t2709 | D147: 1 | E147: 1 | F147: 1 | G147: 1 | H147: 638 | I147: 85 | J147: 0 | K147: 4 | L147: =K147-3 -> 1 | M147: 1 | N147: =H147/K147 -> 159.5 | O147: =I147/M147/K147 -> 21.25 | Q147: =FLOOR(H147*(1+0.05*L147),1) -> 669 | R147: =FLOOR(I147*(1+0.05*L147),1) -> 89
B148: 11102 | C148: t2709 | D148: 1 | E148: 2 | F148: 2 | G148: 1 | H148: =FLOOR(H147*1.2,1) -> 765 | I148: 102 | J148: 0 | K148: 4
B149: 11103 | C149: t2709 | D149: 1 | E149: 3 | F149: 3 | G149: 1 | H149: 918 | I149: 122 | J149: 0 | K149: 4
B150: 11104 | C150: t2709 | D150: 1 | E150: 4 | F150: 4 | G150: 1 | H150: =FLOOR(H149*1.4,1) -> 1285 | I150: =FLOOR(I149*1.4,1) -> 170 | J150: 0 | K150: 4
B151: 11105 | C151: t2709 | D151: 1 | E151: 5 | F151: 4 | G151: 1 | H151: 1542 | I151: 204 | J151: 0 | K151: 4
B152: 11106 | C152: t2709 | D152: 1 | E152: 6 | F152: 4 | G152: 1 | H152: 1850 | I152: 244 | J152: 0 | K152: 4
B153: 11107 | C153: t2709 | D153: 1 | E153: 7 | F153: 5 | G153: 1 | H153: =FLOOR(H152*1.44,1) -> 2664 | I153: =FLOOR(I152*1.32,1) -> 322 | J153: 0 | K153: 4
B154: 11108 | C154: t2709 | D154: 1 | E154: 8 | F154: 5 | G154: 1 | H154: 3196 | I154: 386 | J154: 0 | K154: 4
B155: 11109 | C155: t2709 | D155: 1 | E155: 9 | F155: 5 | G155: 1 | H155: 3835 | I155: 463 | J155: 0 | K155: 4
B156: 11110 | C156: t2709 | D156: 1 | E156: 10 | F156: 5 | G156: 1 | H156: 4602 | I156: 555 | J156: =FLOOR(J155*1.32,1) -> 0 | K156: 4
B157: 11111 | C157: t2709 | D157: 1 | E157: 11 | F157: 6 | G157: 1 | H157: =FLOOR(H156*1.32,1) -> 6074 | I157: =FLOOR(I156*1.32,1) -> 732 | J157: 0 | K157: 4
B158: 11112 | C158: t2709 | D158: 1 | E158: 12 | F158: 6 | G158: 1 | H158: 7288 | I158: 878 | J158: 0 | K158: 4
B159: 11113 | C159: t2709 | D159: 1 | E159: 13 | F159: 6 | G159: 1 | H159: 8745 | I159: 1053 | J159: 0 | K159: 4
B160: 11114 | C160: t2709 | D160: 1 | E160: 14 | F160: 6 | G160: 1 | H160: 10494 | I160: 1263 | J160: 0 | K160: 4
B161: 11115 | C161: t2709 | D161: 1 | E161: 15 | F161: 6 | G161: 1 | H161: 12592 | I161: 1515 | J161: 0 | K161: 4
B162: 11116 | C162: t2709 | D162: 1 | E162: 16 | F162: 6 | G162: 1 | H162: 15110 | I162: 1818 | J162: 0 | K162: 4
A163: 奥利尔 | B163: 11201 | C163: t2710 | D163: 3 | E163: 1 | F163: 1 | G163: 2 | H163: 600 | I163: 145 | J163: 0 | K163: 7 | L163: =K163-3 -> 4 | M163: 0.8 | N163: =H163/K163 -> 85.71428571 | O163: =I163/M163/K163 -> 25.89285714 | Q163: =FLOOR(H163*(1+0.05*L163),1) -> 720 | R163: =FLOOR(I163*(1+0.05*L163),1) -> 174 | S163: =FLOOR(Q163*(1+G163*0.35),1) -> 1224 | T163: =FLOOR(R163*(1+G163*0.3),1) -> 278
B164: 11202 | C164: t2710 | D164: 3 | E164: 2 | F164: 2 | G164: 2 | H164: =FLOOR(H163*1.2,1) -> 720 | I164: 174 | J164: 0 | K164: 7
B165: 11203 | C165: t2710 | D165: 3 | E165: 3 | F165: 3 | G165: 2 | H165: 864 | I165: 208 | J165: 0 | K165: 7
B166: 11204 | C166: t2710 | D166: 3 | E166: 4 | F166: 4 | G166: 2 | H166: =FLOOR(H165*1.4,1) -> 1209 | I166: =FLOOR(I165*1.4,1) -> 291 | J166: 0 | K166: 7
B167: 11205 | C167: t2710 | D167: 3 | E167: 5 | F167: 4 | G167: 2 | H167: 1450 | I167: 349 | J167: 0 | K167: 7
B168: 11206 | C168: t2710 | D168: 3 | E168: 6 | F168: 4 | G168: 2 | H168: 1740 | I168: 418 | J168: 0 | K168: 7
B169: 11207 | C169: t2710 | D169: 3 | E169: 7 | F169: 5 | G169: 2 | H169: =FLOOR(H168*1.32,1) -> 2296 | I169: =FLOOR(I168*1.32,1) -> 551 | J169: 0 | K169: 7
B170: 11208 | C170: t2710 | D170: 3 | E170: 8 | F170: 5 | G170: 2 | H170: 2755 | I170: 661 | J170: 0 | K170: 7
B171: 11209 | C171: t2710 | D171: 3 | E171: 9 | F171: 5 | G171: 2 | H171: 3306 | I171: 793 | J171: 0 | K171: 7
B172: 11210 | C172: t2710 | D172: 3 | E172: 10 | F172: 5 | G172: 2 | H172: 3967 | I172: 951 | J172: =FLOOR(J171*1.32,1) -> 0 | K172: 7
B173: 11211 | C173: t2710 | D173: 3 | E173: 11 | F173: 6 | G173: 2 | H173: =FLOOR(H172*1.32,1) -> 5236 | I173: =FLOOR(I172*1.32,1) -> 1255 | J173: 0 | K173: 7
B174: 11212 | C174: t2710 | D174: 3 | E174: 12 | F174: 6 | G174: 2 | H174: 6283 | I174: 1506 | J174: 0 | K174: 7
B175: 11213 | C175: t2710 | D175: 3 | E175: 13 | F175: 6 | G175: 2 | H175: 7539 | I175: 1807 | J175: 0 | K175: 7
B176: 11214 | C176: t2710 | D176: 3 | E176: 14 | F176: 6 | G176: 2 | H176: 9046 | I176: 2168 | J176: 0 | K176: 7
B177: 11215 | C177: t2710 | D177: 3 | E177: 15 | F177: 6 | G177: 2 | H177: 10855 | I177: 2601 | J177: 0 | K177: 7
B178: 11216 | C178: t2710 | D178: 3 | E178: 16 | F178: 6 | G178: 2 | H178: 13026 | I178: 3121 | J178: 0 | K178: 7
A179: 玛法里奥 | B179: 11301 | C179: t2711 | D179: 2 | E179: 1 | F179: 1 | G179: 1 | H179: 200 | I179: 40 | J179: 40 | K179: 5 | L179: =K179-3 -> 2 | M179: 1.2 | N179: =H179/K179 -> 40 | O179: =I179/M179/K179 -> 6.666666667 | Q179: =FLOOR(H179*(1+0.05*L179),1) -> 220 | R179: =FLOOR(I179*(1+0.05*L179),1) -> 44
B180: 11302 | C180: t2711 | D180: 2 | E180: 2 | F180: 2 | G180: 1 | H180: =FLOOR(H179*1.2,1) -> 240 | I180: 0 | J180: =FLOOR(J179*1.2,1) -> 48 | K180: 5
B181: 11303 | C181: t2711 | D181: 2 | E181: 3 | F181: 3 | G181: 1 | H181: =FLOOR(H180*1.2,1) -> 288 | I181: 0 | J181: 57 | K181: 5
B182: 11304 | C182: t2711 | D182: 2 | E182: 4 | F182: 4 | G182: 1 | H182: =FLOOR(H181*1.61,1) -> 463 | I182: 0 | J182: =FLOOR(J181*1.4,1) -> 79 | K182: 5
B183: 11305 | C183: t2711 | D183: 2 | E183: 5 | F183: 4 | G183: 1 | H183: =FLOOR(H182*1.2,1) -> 555 | I183: 0 | J183: 94 | K183: 5
B184: 11306 | C184: t2711 | D184: 2 | E184: 6 | F184: 4 | G184: 1 | H184: 666 | I184: 0 | J184: 112 | K184: 5
B185: 11307 | C185: t2711 | D185: 2 | E185: 7 | F185: 5 | G185: 1 | H185: =FLOOR(H184*1.32,1) -> 879 | I185: 0 | J185: =FLOOR(J184*1.32,1) -> 147 | K185: 5
B186: 11308 | C186: t2711 | D186: 2 | E186: 8 | F186: 5 | G186: 1 | H186: 1054 | I186: 0 | J186: 176 | K186: 5
B187: 11309 | C187: t2711 | D187: 2 | E187: 9 | F187: 5 | G187: 1 | H187: 1264 | I187: 0 | J187: 211 | K187: 5
B188: 11310 | C188: t2711 | D188: 2 | E188: 10 | F188: 5 | G188: 1 | H188: 1516 | I188: 0 | J188: 253 | K188: 5
B189: 11311 | C189: t2711 | D189: 2 | E189: 11 | F189: 6 | G189: 1 | H189: =FLOOR(H188*1.32,1) -> 2001 | I189: =FLOOR(I188*1.32,1) -> 0 | J189: =FLOOR(J188*1.32,1) -> 333 | K189: 5
B190: 11312 | C190: t2711 | D190: 2 | E190: 12 | F190: 6 | G190: 1 | H190: 2401 | I190: 0 | J190: 399 | K190: 5
B191: 11313 | C191: t2711 | D191: 2 | E191: 13 | F191: 6 | G191: 1 | H191: 2881 | I191: 0 | J191: 478 | K191: 5
B192: 11314 | C192: t2711 | D192: 2 | E192: 14 | F192: 6 | G192: 1 | H192: 3457 | I192: 0 | J192: 573 | K192: 5
B193: 11315 | C193: t2711 | D193: 2 | E193: 15 | F193: 6 | G193: 1 | H193: 4148 | I193: 0 | J193: 687 | K193: 5
B194: 11316 | C194: t2711 | D194: 2 | E194: 16 | F194: 6 | G194: 1 | H194: 4977 | I194: 0 | J194: 824 | K194: 5
A195: 图腾 | B195: 11401 | C195: 图腾 | D195: 0 | E195: 0 | F195: 0 | G195: 3 | H195: 5000 | I195: 0 | J195: 0 | K195: 0
A196: 露娜 | B196: 11501 | C196: t2712 | D196: 4 | E196: 1 | F196: 1 | G196: 1 | H196: 200 | I196: 100 | J196: 0 | K196: 5 | L196: =K196-3 -> 2 | M196: 1 | N196: =H196/K196 -> 40 | O196: =I196/M196/K196 -> 20 | Q196: =FLOOR(H196*(1+0.05*L196),1) -> 220 | R196: =FLOOR(I196*(1+0.05*L196),1) -> 110
B197: 11502 | C197: t2712 | D197: 4 | E197: 2 | F197: 2 | G197: 1 | H197: =FLOOR(H196*1.2,1) -> 240 | I197: =FLOOR(I196*1.2,1) -> 120 | J197: 0 | K197: 5
B198: 11503 | C198: t2712 | D198: 4 | E198: 3 | F198: 3 | G198: 1 | H198: =FLOOR(H197*1.2,1) -> 288 | I198: =FLOOR(I197*1.2,1) -> 144 | J198: 0 | K198: 5
B199: 11504 | C199: t2712 | D199: 4 | E199: 4 | F199: 4 | G199: 1 | H199: =FLOOR(H198*1.4,1) -> 403 | I199: =FLOOR(I198*1.54,1) -> 221 | J199: 0 | K199: 5
B200: 11505 | C200: t2712 | D200: 4 | E200: 5 | F200: 4 | G200: 1 | H200: =FLOOR(H199*1.2,1) -> 483 | I200: 265 | J200: 0 | K200: 5
... 129 more rows
